Workbook

Sheet Intro
A1: Vertebral Fracture Benefits Calculator
A2: Introduction and instructions
E80: Edit needed
A151: The Royal Osteoporosis Society has published clinical guidelines etc
A152: https://theros.org.uk/media/100017/vertebral-fracture-guidelines.pdf

Sheet Population
A1: =+Intro!A1 -> Vertebral Fracture Benefits Calculator
A2: Estimate vertebral factures in your population
C15: Select country of interest
C18: Selected Country | D18: England | F18: Select your country of interest from the drop down list
D19: =VLOOKUP(D18,Data!B6:C9,2,FALSE) -> CCGandorSTP | E19: =D19&"_pop" -> CCGandorSTP_pop
C21: Select population cohort for analysis (by age/gender)
E23: Male | F23: Female
C24: Include within analysis? | E24: Yes | F24: Yes | G24: Population can be refined by selecting one or both genders and an age range for each | M24: Row Numbers | N24: Male | O24: Female
C25: Age from | E25: 50 - 54 | F25: 50 - 54 | M25: From | N25: =IF(ISNA(HLOOKUP(E25,Data!I$96:Z$97,2,FALSE)),0,HLOOKUP(E25,Data!I$96:Z$97,2,FALSE)) -> 11 | O25: =IF(ISNA(HLOOKUP(F25,Data!J$96:AA$97,2,FALSE)),0,HLOOKUP(F25,Data!J$96:AA$97,2,FALSE)) -> 11
C26: Age to | E26: 85 + | F26: 85 + | M26: To | N26: =IF(ISNA(HLOOKUP(E26,Data!I$96:Z$97,2,FALSE)),0,HLOOKUP(E26,Data!I$96:Z$97,2,FALSE)) -> 18 | O26: =IF(ISNA(HLOOKUP(F26,Data!J$96:AA$97,2,FALSE)),0,HLOOKUP(F26,Data!J$96:AA$97,2,FALSE)) -> 18
C30: Specify population for inclusion | V30: Population growth in each year for each Organisation
C33: Select health economy type to customise selection: | E33: CCG and/or STP | G33: Refines the organisation list below to include CCG's, STP's or both
E36: 6 | V36: Male | W36: Male | X36: Male | Y36: Male | Z36: Male | AB36: Female | AC36: Female | AD36: Female | AE36: Female | AF36: Female
C37: Select one or more from list | E37: Percent of population in hospital catchment | F37: Population for inclusion | G37: 1 | L37: Total | M37: Male | N37: Female | P37: =+Population!F53 -> 2021 | Q37: =+P37+1 -> 2022 | R37: =+Q37+1 -> 2023 | S37: 2024 | T37: 2025 | V37: =+P37 -> 2021 | W37: =+Q37 -> 2022 | X37: =+R37 -> 2023 | Y37: =+S37 -> 2024 | Z37: =+T37 -> 2025 | AB37: =+P37 -> 2021 | AC37: =+Q37 -> 2022 | AD37: =+R37 -> 2023 | AE37: =+S37 -> 2024 | AF37: =+T37 -> 2025
F38: =IF(OR(ISBLANK(C38),ISBLANK(E$33)),"",VLOOKUP(C38,INDIRECT(E$19),E$36,FALSE)*IF(ISBLANK(E38),1,E38)) ->  | L38: =IF(OR(ISBLANK(C38),ISBLANK(E$33)),0,VLOOKUP(C38,INDIRECT(E$19),3,FALSE)*IF(ISBLANK(E38),1,E38)) -> 0 | M38: =IF(ISBLANK(C38),0,VLOOKUP(C38,Data!C$98:F$416,4,FALSE)*IF(ISBLANK(E38),1,E38)) -> 0 | N38: =IF(OR(ISBLANK(C38),ISBLANK(E$33)),0,F38-M38) -> 0 | P38: =IF(($M38+$N38=0),0,PRODUCT($V38:V38)*$M38+PRODUCT($AB38:AB38)*$N38-SUM($M38:$N38)-SUM($O38:O38)) -> 0 | Q38: =IF(($M38+$N38=0),0,PRODUCT($V38:W38)*$M38+PRODUCT($AB38:AC38)*$N38-SUM($M38:$N38)-SUM($O38:P38)) -> 0 | R38: =IF(($M38+$N38=0),0,PRODUCT($V38:X38)*$M38+PRODUCT($AB38:AD38)*$N38-SUM($M38:$N38)-SUM($O38:Q38)) -> 0 | S38: =IF(($M38+$N38=0),0,PRODUCT($V38:Y38)*$M38+PRODUCT($AB38:AE38)*$N38-SUM($M38:$N38)-SUM($O38:R38)) -> 0 | T38: =IF(($M38+$N38=0),0,PRODUCT($V38:Z38)*$M38+PRODUCT($AB38:AF38)*$N38-SUM($M38:$N38)-SUM($O38:S38)) -> 0 | V38: =IF(($M38=0),0,INDEX(Data!$AV$98:$BF$416,MATCH($C38,Data!$C$98:$C$416,0),MATCH(V$37,Data!$AV$94:$BF$94,0)))+1 -> 1 | W38: =IF(($M38=0),0,INDEX(Data!$AV$98:$BF$416,MATCH($C38,Data!$C$98:$C$416,0),MATCH(W$37,Data!$AV$94:$BF$94,0)))+1 -> 1 | X38: =IF(($M38=0),0,INDEX(Data!$AV$98:$BF$416,MATCH($C38,Data!$C$98:$C$416,0),MATCH(X$37,Data!$AV$94:$BF$94,0)))+1 -> 1 | Y38: =IF(($M38=0),0,INDEX(Data!$AV$98:$BF$416,MATCH($C38,Data!$C$98:$C$416,0),MATCH(Y$37,Data!$AV$94:$BF$94,0)))+1 -> 1 | Z38: =IF(($M38=0),0,INDEX(Data!$AV$98:$BF$416,MATCH($C38,Data!$C$98:$C$416,0),MATCH(Z$37,Data!$AV$94:$BF$94,0)))+1 -> 1 | AB38: =IF(($M38=0),0,INDEX(Data!$BG$98:$BQ$416,MATCH($C38,Data!$C$98:$C$416,0),MATCH(AB$37,Data!$BG$94:$BQ$94,0)))+1 -> 1 | AC38: =IF(($M38=0),0,INDEX(Data!$BG$98:$BQ$416,MATCH($C38,Data!$C$98:$C$416,0),MATCH(AC$37,Data!$BG$94:$BQ$94,0)))+1 -> 1 | AD38: =IF(($M38=0),0,INDEX(Data!$BG$98:$BQ$416,MATCH($C38,Data!$C$98:$C$416,0),MATCH(AD$37,Data!$BG$94:$BQ$94,0)))+1 -> 1 | AE38: =IF(($M38=0),0,INDEX(Data!$BG$98:$BQ$416,MATCH($C38,Data!$C$98:$C$416,0),MATCH(AE$37,Data!$BG$94:$BQ$94,0)))+1 -> 1 | AF38: =IF(($M38=0),0,INDEX(Data!$BG$98:$BQ$416,MATCH($C38,Data!$C$98:$C$416,0),MATCH(AF$37,Data!$BG$94:$BQ$94,0)))+1 -> 1
G39: The percent of population in hospital catchment allows you to estimate the number of patients attending your hospital from different CCGs or health boards. | L39: 0 | M39: =IF(ISBLANK(C39),0,VLOOKUP(C39,Data!C$98:F$416,4,FALSE)*IF(ISBLANK(E39),1,E39)) -> 0 | N39: 0 | P39: =IF(($M39+$N39=0),0,PRODUCT($V39:V39)*$M39+PRODUCT($AB39:AB39)*$N39-SUM($M39:$N39)-SUM($O39:O39)) -> 0 | Q39: =IF(($M39+$N39=0),0,PRODUCT($V39:W39)*$M39+PRODUCT($AB39:AC39)*$N39-SUM($M39:$N39)-SUM($O39:P39)) -> 0 | R39: =IF(($M39+$N39=0),0,PRODUCT($V39:X39)*$M39+PRODUCT($AB39:AD39)*$N39-SUM($M39:$N39)-SUM($O39:Q39)) -> 0 | S39: =IF(($M39+$N39=0),0,PRODUCT($V39:Y39)*$M39+PRODUCT($AB39:AE39)*$N39-SUM($M39:$N39)-SUM($O39:R39)) -> 0 | T39: =IF(($M39+$N39=0),0,PRODUCT($V39:Z39)*$M39+PRODUCT($AB39:AF39)*$N39-SUM($M39:$N39)-SUM($O39:S39)) -> 0 | V39: =IF(($M39=0),0,INDEX(Data!$AV$98:$BF$416,MATCH($C39,Data!$C$98:$C$416,0),MATCH(V$37,Data!$AV$94:$BF$94,0)))+1 -> 1 | W39: =IF(($M39=0),0,INDEX(Data!$AV$98:$BF$416,MATCH($C39,Data!$C$98:$C$416,0),MATCH(W$37,Data!$AV$94:$BF$94,0)))+1 -> 1 | X39: =IF(($M39=0),0,INDEX(Data!$AV$98:$BF$416,MATCH($C39,Data!$C$98:$C$416,0),MATCH(X$37,Data!$AV$94:$BF$94,0)))+1 -> 1 | Y39: =IF(($M39=0),0,INDEX(Data!$AV$98:$BF$416,MATCH($C39,Data!$C$98:$C$416,0),MATCH(Y$37,Data!$AV$94:$BF$94,0)))+1 -> 1 | Z39: =IF(($M39=0),0,INDEX(Data!$AV$98:$BF$416,MATCH($C39,Data!$C$98:$C$416,0),MATCH(Z$37,Data!$AV$94:$BF$94,0)))+1 -> 1 | AB39: =IF(($M39=0),0,INDEX(Data!$BG$98:$BQ$416,MATCH($C39,Data!$C$98:$C$416,0),MATCH(AB$37,Data!$BG$94:$BQ$94,0)))+1 -> 1 | AC39: =IF(($M39=0),0,INDEX(Data!$BG$98:$BQ$416,MATCH($C39,Data!$C$98:$C$416,0),MATCH(AC$37,Data!$BG$94:$BQ$94,0)))+1 -> 1 | AD39: =IF(($M39=0),0,INDEX(Data!$BG$98:$BQ$416,MATCH($C39,Data!$C$98:$C$416,0),MATCH(AD$37,Data!$BG$94:$BQ$94,0)))+1 -> 1 | AE39: =IF(($M39=0),0,INDEX(Data!$BG$98:$BQ$416,MATCH($C39,Data!$C$98:$C$416,0),MATCH(AE$37,Data!$BG$94:$BQ$94,0)))+1 -> 1 | AF39: =IF(($M39=0),0,INDEX(Data!$BG$98:$BQ$416,MATCH($C39,Data!$C$98:$C$416,0),MATCH(AF$37,Data!$BG$94:$BQ$94,0)))+1 -> 1
L40: 0 | M40: =IF(ISBLANK(C40),0,VLOOKUP(C40,Data!C$98:F$416,4,FALSE)*IF(ISBLANK(E40),1,E40)) -> 0 | N40: 0 | P40: =IF(($M40+$N40=0),0,PRODUCT($V40:V40)*$M40+PRODUCT($AB40:AB40)*$N40-SUM($M40:$N40)-SUM($O40:O40)) -> 0 | Q40: =IF(($M40+$N40=0),0,PRODUCT($V40:W40)*$M40+PRODUCT($AB40:AC40)*$N40-SUM($M40:$N40)-SUM($O40:P40)) -> 0 | R40: =IF(($M40+$N40=0),0,PRODUCT($V40:X40)*$M40+PRODUCT($AB40:AD40)*$N40-SUM($M40:$N40)-SUM($O40:Q40)) -> 0 | S40: =IF(($M40+$N40=0),0,PRODUCT($V40:Y40)*$M40+PRODUCT($AB40:AE40)*$N40-SUM($M40:$N40)-SUM($O40:R40)) -> 0 | T40: =IF(($M40+$N40=0),0,PRODUCT($V40:Z40)*$M40+PRODUCT($AB40:AF40)*$N40-SUM($M40:$N40)-SUM($O40:S40)) -> 0 | V40: =IF(($M40=0),0,INDEX(Data!$AV$98:$BF$416,MATCH($C40,Data!$C$98:$C$416,0),MATCH(V$37,Data!$AV$94:$BF$94,0)))+1 -> 1 | W40: =IF(($M40=0),0,INDEX(Data!$AV$98:$BF$416,MATCH($C40,Data!$C$98:$C$416,0),MATCH(W$37,Data!$AV$94:$BF$94,0)))+1 -> 1 | X40: =IF(($M40=0),0,INDEX(Data!$AV$98:$BF$416,MATCH($C40,Data!$C$98:$C$416,0),MATCH(X$37,Data!$AV$94:$BF$94,0)))+1 -> 1 | Y40: =IF(($M40=0),0,INDEX(Data!$AV$98:$BF$416,MATCH($C40,Data!$C$98:$C$416,0),MATCH(Y$37,Data!$AV$94:$BF$94,0)))+1 -> 1 | Z40: =IF(($M40=0),0,INDEX(Data!$AV$98:$BF$416,MATCH($C40,Data!$C$98:$C$416,0),MATCH(Z$37,Data!$AV$94:$BF$94,0)))+1 -> 1 | AB40: =IF(($M40=0),0,INDEX(Data!$BG$98:$BQ$416,MATCH($C40,Data!$C$98:$C$416,0),MATCH(AB$37,Data!$BG$94:$BQ$94,0)))+1 -> 1 | AC40: =IF(($M40=0),0,INDEX(Data!$BG$98:$BQ$416,MATCH($C40,Data!$C$98:$C$416,0),MATCH(AC$37,Data!$BG$94:$BQ$94,0)))+1 -> 1 | AD40: =IF(($M40=0),0,INDEX(Data!$BG$98:$BQ$416,MATCH($C40,Data!$C$98:$C$416,0),MATCH(AD$37,Data!$BG$94:$BQ$94,0)))+1 -> 1 | AE40: =IF(($M40=0),0,INDEX(Data!$BG$98:$BQ$416,MATCH($C40,Data!$C$98:$C$416,0),MATCH(AE$37,Data!$BG$94:$BQ$94,0)))+1 -> 1 | AF40: =IF(($M40=0),0,INDEX(Data!$BG$98:$BQ$416,MATCH($C40,Data!$C$98:$C$416,0),MATCH(AF$37,Data!$BG$94:$BQ$94,0)))+1 -> 1
L41: 0 | M41: =IF(ISBLANK(C41),0,VLOOKUP(C41,Data!C$98:F$416,4,FALSE)*IF(ISBLANK(E41),1,E41)) -> 0 | N41: 0 | P41: =IF(($M41+$N41=0),0,PRODUCT($V41:V41)*$M41+PRODUCT($AB41:AB41)*$N41-SUM($M41:$N41)-SUM($O41:O41)) -> 0 | Q41: =IF(($M41+$N41=0),0,PRODUCT($V41:W41)*$M41+PRODUCT($AB41:AC41)*$N41-SUM($M41:$N41)-SUM($O41:P41)) -> 0 | R41: =IF(($M41+$N41=0),0,PRODUCT($V41:X41)*$M41+PRODUCT($AB41:AD41)*$N41-SUM($M41:$N41)-SUM($O41:Q41)) -> 0 | S41: =IF(($M41+$N41=0),0,PRODUCT($V41:Y41)*$M41+PRODUCT($AB41:AE41)*$N41-SUM($M41:$N41)-SUM($O41:R41)) -> 0 | T41: =IF(($M41+$N41=0),0,PRODUCT($V41:Z41)*$M41+PRODUCT($AB41:AF41)*$N41-SUM($M41:$N41)-SUM($O41:S41)) -> 0 | V41: =IF(($M41=0),0,INDEX(Data!$AV$98:$BF$416,MATCH($C41,Data!$C$98:$C$416,0),MATCH(V$37,Data!$AV$94:$BF$94,0)))+1 -> 1 | W41: =IF(($M41=0),0,INDEX(Data!$AV$98:$BF$416,MATCH($C41,Data!$C$98:$C$416,0),MATCH(W$37,Data!$AV$94:$BF$94,0)))+1 -> 1 | X41: =IF(($M41=0),0,INDEX(Data!$AV$98:$BF$416,MATCH($C41,Data!$C$98:$C$416,0),MATCH(X$37,Data!$AV$94:$BF$94,0)))+1 -> 1 | Y41: =IF(($M41=0),0,INDEX(Data!$AV$98:$BF$416,MATCH($C41,Data!$C$98:$C$416,0),MATCH(Y$37,Data!$AV$94:$BF$94,0)))+1 -> 1 | Z41: =IF(($M41=0),0,INDEX(Data!$AV$98:$BF$416,MATCH($C41,Data!$C$98:$C$416,0),MATCH(Z$37,Data!$AV$94:$BF$94,0)))+1 -> 1 | AB41: =IF(($M41=0),0,INDEX(Data!$BG$98:$BQ$416,MATCH($C41,Data!$C$98:$C$416,0),MATCH(AB$37,Data!$BG$94:$BQ$94,0)))+1 -> 1 | AC41: =IF(($M41=0),0,INDEX(Data!$BG$98:$BQ$416,MATCH($C41,Data!$C$98:$C$416,0),MATCH(AC$37,Data!$BG$94:$BQ$94,0)))+1 -> 1 | AD41: =IF(($M41=0),0,INDEX(Data!$BG$98:$BQ$416,MATCH($C41,Data!$C$98:$C$416,0),MATCH(AD$37,Data!$BG$94:$BQ$94,0)))+1 -> 1 | AE41: =IF(($M41=0),0,INDEX(Data!$BG$98:$BQ$416,MATCH($C41,Data!$C$98:$C$416,0),MATCH(AE$37,Data!$BG$94:$BQ$94,0)))+1 -> 1 | AF41: =IF(($M41=0),0,INDEX(Data!$BG$98:$BQ$416,MATCH($C41,Data!$C$98:$C$416,0),MATCH(AF$37,Data!$BG$94:$BQ$94,0)))+1 -> 1
L42: 0 | M42: =IF(ISBLANK(C42),0,VLOOKUP(C42,Data!C$98:F$416,4,FALSE)*IF(ISBLANK(E42),1,E42)) -> 0 | N42: 0 | P42: =IF(($M42+$N42=0),0,PRODUCT($V42:V42)*$M42+PRODUCT($AB42:AB42)*$N42-SUM($M42:$N42)-SUM($O42:O42)) -> 0 | Q42: =IF(($M42+$N42=0),0,PRODUCT($V42:W42)*$M42+PRODUCT($AB42:AC42)*$N42-SUM($M42:$N42)-SUM($O42:P42)) -> 0 | R42: =IF(($M42+$N42=0),0,PRODUCT($V42:X42)*$M42+PRODUCT($AB42:AD42)*$N42-SUM($M42:$N42)-SUM($O42:Q42)) -> 0 | S42: =IF(($M42+$N42=0),0,PRODUCT($V42:Y42)*$M42+PRODUCT($AB42:AE42)*$N42-SUM($M42:$N42)-SUM($O42:R42)) -> 0 | T42: =IF(($M42+$N42=0),0,PRODUCT($V42:Z42)*$M42+PRODUCT($AB42:AF42)*$N42-SUM($M42:$N42)-SUM($O42:S42)) -> 0 | V42: =IF(($M42=0),0,INDEX(Data!$AV$98:$BF$416,MATCH($C42,Data!$C$98:$C$416,0),MATCH(V$37,Data!$AV$94:$BF$94,0)))+1 -> 1 | W42: =IF(($M42=0),0,INDEX(Data!$AV$98:$BF$416,MATCH($C42,Data!$C$98:$C$416,0),MATCH(W$37,Data!$AV$94:$BF$94,0)))+1 -> 1 | X42: =IF(($M42=0),0,INDEX(Data!$AV$98:$BF$416,MATCH($C42,Data!$C$98:$C$416,0),MATCH(X$37,Data!$AV$94:$BF$94,0)))+1 -> 1 | Y42: =IF(($M42=0),0,INDEX(Data!$AV$98:$BF$416,MATCH($C42,Data!$C$98:$C$416,0),MATCH(Y$37,Data!$AV$94:$BF$94,0)))+1 -> 1 | Z42: =IF(($M42=0),0,INDEX(Data!$AV$98:$BF$416,MATCH($C42,Data!$C$98:$C$416,0),MATCH(Z$37,Data!$AV$94:$BF$94,0)))+1 -> 1 | AB42: =IF(($M42=0),0,INDEX(Data!$BG$98:$BQ$416,MATCH($C42,Data!$C$98:$C$416,0),MATCH(AB$37,Data!$BG$94:$BQ$94,0)))+1 -> 1 | AC42: =IF(($M42=0),0,INDEX(Data!$BG$98:$BQ$416,MATCH($C42,Data!$C$98:$C$416,0),MATCH(AC$37,Data!$BG$94:$BQ$94,0)))+1 -> 1 | AD42: =IF(($M42=0),0,INDEX(Data!$BG$98:$BQ$416,MATCH($C42,Data!$C$98:$C$416,0),MATCH(AD$37,Data!$BG$94:$BQ$94,0)))+1 -> 1 | AE42: =IF(($M42=0),0,INDEX(Data!$BG$98:$BQ$416,MATCH($C42,Data!$C$98:$C$416,0),MATCH(AE$37,Data!$BG$94:$BQ$94,0)))+1 -> 1 | AF42: =IF(($M42=0),0,INDEX(Data!$BG$98:$BQ$416,MATCH($C42,Data!$C$98:$C$416,0),MATCH(AF$37,Data!$BG$94:$BQ$94,0)))+1 -> 1
L43: 0 | M43: =IF(ISBLANK(C43),0,VLOOKUP(C43,Data!C$98:F$416,4,FALSE)*IF(ISBLANK(E43),1,E43)) -> 0 | N43: 0 | P43: =IF(($M43+$N43=0),0,PRODUCT($V43:V43)*$M43+PRODUCT($AB43:AB43)*$N43-SUM($M43:$N43)-SUM($O43:O43)) -> 0 | Q43: =IF(($M43+$N43=0),0,PRODUCT($V43:W43)*$M43+PRODUCT($AB43:AC43)*$N43-SUM($M43:$N43)-SUM($O43:P43)) -> 0 | R43: =IF(($M43+$N43=0),0,PRODUCT($V43:X43)*$M43+PRODUCT($AB43:AD43)*$N43-SUM($M43:$N43)-SUM($O43:Q43)) -> 0 | S43: =IF(($M43+$N43=0),0,PRODUCT($V43:Y43)*$M43+PRODUCT($AB43:AE43)*$N43-SUM($M43:$N43)-SUM($O43:R43)) -> 0 | T43: =IF(($M43+$N43=0),0,PRODUCT($V43:Z43)*$M43+PRODUCT($AB43:AF43)*$N43-SUM($M43:$N43)-SUM($O43:S43)) -> 0 | V43: =IF(($M43=0),0,INDEX(Data!$AV$98:$BF$416,MATCH($C43,Data!$C$98:$C$416,0),MATCH(V$37,Data!$AV$94:$BF$94,0)))+1 -> 1 | W43: =IF(($M43=0),0,INDEX(Data!$AV$98:$BF$416,MATCH($C43,Data!$C$98:$C$416,0),MATCH(W$37,Data!$AV$94:$BF$94,0)))+1 -> 1 | X43: =IF(($M43=0),0,INDEX(Data!$AV$98:$BF$416,MATCH($C43,Data!$C$98:$C$416,0),MATCH(X$37,Data!$AV$94:$BF$94,0)))+1 -> 1 | Y43: =IF(($M43=0),0,INDEX(Data!$AV$98:$BF$416,MATCH($C43,Data!$C$98:$C$416,0),MATCH(Y$37,Data!$AV$94:$BF$94,0)))+1 -> 1 | Z43: =IF(($M43=0),0,INDEX(Data!$AV$98:$BF$416,MATCH($C43,Data!$C$98:$C$416,0),MATCH(Z$37,Data!$AV$94:$BF$94,0)))+1 -> 1 | AB43: =IF(($M43=0),0,INDEX(Data!$BG$98:$BQ$416,MATCH($C43,Data!$C$98:$C$416,0),MATCH(AB$37,Data!$BG$94:$BQ$94,0)))+1 -> 1 | AC43: =IF(($M43=0),0,INDEX(Data!$BG$98:$BQ$416,MATCH($C43,Data!$C$98:$C$416,0),MATCH(AC$37,Data!$BG$94:$BQ$94,0)))+1 -> 1 | AD43: =IF(($M43=0),0,INDEX(Data!$BG$98:$BQ$416,MATCH($C43,Data!$C$98:$C$416,0),MATCH(AD$37,Data!$BG$94:$BQ$94,0)))+1 -> 1 | AE43: =IF(($M43=0),0,INDEX(Data!$BG$98:$BQ$416,MATCH($C43,Data!$C$98:$C$416,0),MATCH(AE$37,Data!$BG$94:$BQ$94,0)))+1 -> 1 | AF43: =IF(($M43=0),0,INDEX(Data!$BG$98:$BQ$416,MATCH($C43,Data!$C$98:$C$416,0),MATCH(AF$37,Data!$BG$94:$BQ$94,0)))+1 -> 1
L44: 0 | M44: =IF(ISBLANK(C44),0,VLOOKUP(C44,Data!C$98:F$416,4,FALSE)*IF(ISBLANK(E44),1,E44)) -> 0 | N44: 0 | P44: =IF(($M44+$N44=0),0,PRODUCT($V44:V44)*$M44+PRODUCT($AB44:AB44)*$N44-SUM($M44:$N44)-SUM($O44:O44)) -> 0 | Q44: =IF(($M44+$N44=0),0,PRODUCT($V44:W44)*$M44+PRODUCT($AB44:AC44)*$N44-SUM($M44:$N44)-SUM($O44:P44)) -> 0 | R44: =IF(($M44+$N44=0),0,PRODUCT($V44:X44)*$M44+PRODUCT($AB44:AD44)*$N44-SUM($M44:$N44)-SUM($O44:Q44)) -> 0 | S44: =IF(($M44+$N44=0),0,PRODUCT($V44:Y44)*$M44+PRODUCT($AB44:AE44)*$N44-SUM($M44:$N44)-SUM($O44:R44)) -> 0 | T44: =IF(($M44+$N44=0),0,PRODUCT($V44:Z44)*$M44+PRODUCT($AB44:AF44)*$N44-SUM($M44:$N44)-SUM($O44:S44)) -> 0 | V44: =IF(($M44=0),0,INDEX(Data!$AV$98:$BF$416,MATCH($C44,Data!$C$98:$C$416,0),MATCH(V$37,Data!$AV$94:$BF$94,0)))+1 -> 1 | W44: =IF(($M44=0),0,INDEX(Data!$AV$98:$BF$416,MATCH($C44,Data!$C$98:$C$416,0),MATCH(W$37,Data!$AV$94:$BF$94,0)))+1 -> 1 | X44: =IF(($M44=0),0,INDEX(Data!$AV$98:$BF$416,MATCH($C44,Data!$C$98:$C$416,0),MATCH(X$37,Data!$AV$94:$BF$94,0)))+1 -> 1 | Y44: =IF(($M44=0),0,INDEX(Data!$AV$98:$BF$416,MATCH($C44,Data!$C$98:$C$416,0),MATCH(Y$37,Data!$AV$94:$BF$94,0)))+1 -> 1 | Z44: =IF(($M44=0),0,INDEX(Data!$AV$98:$BF$416,MATCH($C44,Data!$C$98:$C$416,0),MATCH(Z$37,Data!$AV$94:$BF$94,0)))+1 -> 1 | AB44: =IF(($M44=0),0,INDEX(Data!$BG$98:$BQ$416,MATCH($C44,Data!$C$98:$C$416,0),MATCH(AB$37,Data!$BG$94:$BQ$94,0)))+1 -> 1 | AC44: =IF(($M44=0),0,INDEX(Data!$BG$98:$BQ$416,MATCH($C44,Data!$C$98:$C$416,0),MATCH(AC$37,Data!$BG$94:$BQ$94,0)))+1 -> 1 | AD44: =IF(($M44=0),0,INDEX(Data!$BG$98:$BQ$416,MATCH($C44,Data!$C$98:$C$416,0),MATCH(AD$37,Data!$BG$94:$BQ$94,0)))+1 -> 1 | AE44: =IF(($M44=0),0,INDEX(Data!$BG$98:$BQ$416,MATCH($C44,Data!$C$98:$C$416,0),MATCH(AE$37,Data!$BG$94:$BQ$94,0)))+1 -> 1 | AF44: =IF(($M44=0),0,INDEX(Data!$BG$98:$BQ$416,MATCH($C44,Data!$C$98:$C$416,0),MATCH(AF$37,Data!$BG$94:$BQ$94,0)))+1 -> 1
L45: 0 | M45: =IF(ISBLANK(C45),0,VLOOKUP(C45,Data!C$98:F$416,4,FALSE)*IF(ISBLANK(E45),1,E45)) -> 0 | N45: 0 | P45: =IF(($M45+$N45=0),0,PRODUCT($V45:V45)*$M45+PRODUCT($AB45:AB45)*$N45-SUM($M45:$N45)-SUM($O45:O45)) -> 0 | Q45: =IF(($M45+$N45=0),0,PRODUCT($V45:W45)*$M45+PRODUCT($AB45:AC45)*$N45-SUM($M45:$N45)-SUM($O45:P45)) -> 0 | R45: =IF(($M45+$N45=0),0,PRODUCT($V45:X45)*$M45+PRODUCT($AB45:AD45)*$N45-SUM($M45:$N45)-SUM($O45:Q45)) -> 0 | S45: =IF(($M45+$N45=0),0,PRODUCT($V45:Y45)*$M45+PRODUCT($AB45:AE45)*$N45-SUM($M45:$N45)-SUM($O45:R45)) -> 0 | T45: =IF(($M45+$N45=0),0,PRODUCT($V45:Z45)*$M45+PRODUCT($AB45:AF45)*$N45-SUM($M45:$N45)-SUM($O45:S45)) -> 0 | V45: =IF(($M45=0),0,INDEX(Data!$AV$98:$BF$416,MATCH($C45,Data!$C$98:$C$416,0),MATCH(V$37,Data!$AV$94:$BF$94,0)))+1 -> 1 | W45: =IF(($M45=0),0,INDEX(Data!$AV$98:$BF$416,MATCH($C45,Data!$C$98:$C$416,0),MATCH(W$37,Data!$AV$94:$BF$94,0)))+1 -> 1 | X45: =IF(($M45=0),0,INDEX(Data!$AV$98:$BF$416,MATCH($C45,Data!$C$98:$C$416,0),MATCH(X$37,Data!$AV$94:$BF$94,0)))+1 -> 1 | Y45: =IF(($M45=0),0,INDEX(Data!$AV$98:$BF$416,MATCH($C45,Data!$C$98:$C$416,0),MATCH(Y$37,Data!$AV$94:$BF$94,0)))+1 -> 1 | Z45: =IF(($M45=0),0,INDEX(Data!$AV$98:$BF$416,MATCH($C45,Data!$C$98:$C$416,0),MATCH(Z$37,Data!$AV$94:$BF$94,0)))+1 -> 1 | AB45: =IF(($M45=0),0,INDEX(Data!$BG$98:$BQ$416,MATCH($C45,Data!$C$98:$C$416,0),MATCH(AB$37,Data!$BG$94:$BQ$94,0)))+1 -> 1 | AC45: =IF(($M45=0),0,INDEX(Data!$BG$98:$BQ$416,MATCH($C45,Data!$C$98:$C$416,0),MATCH(AC$37,Data!$BG$94:$BQ$94,0)))+1 -> 1 | AD45: =IF(($M45=0),0,INDEX(Data!$BG$98:$BQ$416,MATCH($C45,Data!$C$98:$C$416,0),MATCH(AD$37,Data!$BG$94:$BQ$94,0)))+1 -> 1 | AE45: =IF(($M45=0),0,INDEX(Data!$BG$98:$BQ$416,MATCH($C45,Data!$C$98:$C$416,0),MATCH(AE$37,Data!$BG$94:$BQ$94,0)))+1 -> 1 | AF45: =IF(($M45=0),0,INDEX(Data!$BG$98:$BQ$416,MATCH($C45,Data!$C$98:$C$416,0),MATCH(AF$37,Data!$BG$94:$BQ$94,0)))+1 -> 1
L46: 0 | M46: =IF(ISBLANK(C46),0,VLOOKUP(C46,Data!C$98:F$416,4,FALSE)*IF(ISBLANK(E46),1,E46)) -> 0 | N46: 0 | P46: =IF(($M46+$N46=0),0,PRODUCT($V46:V46)*$M46+PRODUCT($AB46:AB46)*$N46-SUM($M46:$N46)-SUM($O46:O46)) -> 0 | Q46: =IF(($M46+$N46=0),0,PRODUCT($V46:W46)*$M46+PRODUCT($AB46:AC46)*$N46-SUM($M46:$N46)-SUM($O46:P46)) -> 0 | R46: =IF(($M46+$N46=0),0,PRODUCT($V46:X46)*$M46+PRODUCT($AB46:AD46)*$N46-SUM($M46:$N46)-SUM($O46:Q46)) -> 0 | S46: =IF(($M46+$N46=0),0,PRODUCT($V46:Y46)*$M46+PRODUCT($AB46:AE46)*$N46-SUM($M46:$N46)-SUM($O46:R46)) -> 0 | T46: =IF(($M46+$N46=0),0,PRODUCT($V46:Z46)*$M46+PRODUCT($AB46:AF46)*$N46-SUM($M46:$N46)-SUM($O46:S46)) -> 0 | V46: =IF(($M46=0),0,INDEX(Data!$AV$98:$BF$416,MATCH($C46,Data!$C$98:$C$416,0),MATCH(V$37,Data!$AV$94:$BF$94,0)))+1 -> 1 | W46: =IF(($M46=0),0,INDEX(Data!$AV$98:$BF$416,MATCH($C46,Data!$C$98:$C$416,0),MATCH(W$37,Data!$AV$94:$BF$94,0)))+1 -> 1 | X46: =IF(($M46=0),0,INDEX(Data!$AV$98:$BF$416,MATCH($C46,Data!$C$98:$C$416,0),MATCH(X$37,Data!$AV$94:$BF$94,0)))+1 -> 1 | Y46: =IF(($M46=0),0,INDEX(Data!$AV$98:$BF$416,MATCH($C46,Data!$C$98:$C$416,0),MATCH(Y$37,Data!$AV$94:$BF$94,0)))+1 -> 1 | Z46: =IF(($M46=0),0,INDEX(Data!$AV$98:$BF$416,MATCH($C46,Data!$C$98:$C$416,0),MATCH(Z$37,Data!$AV$94:$BF$94,0)))+1 -> 1 | AB46: =IF(($M46=0),0,INDEX(Data!$BG$98:$BQ$416,MATCH($C46,Data!$C$98:$C$416,0),MATCH(AB$37,Data!$BG$94:$BQ$94,0)))+1 -> 1 | AC46: =IF(($M46=0),0,INDEX(Data!$BG$98:$BQ$416,MATCH($C46,Data!$C$98:$C$416,0),MATCH(AC$37,Data!$BG$94:$BQ$94,0)))+1 -> 1 | AD46: =IF(($M46=0),0,INDEX(Data!$BG$98:$BQ$416,MATCH($C46,Data!$C$98:$C$416,0),MATCH(AD$37,Data!$BG$94:$BQ$94,0)))+1 -> 1 | AE46: =IF(($M46=0),0,INDEX(Data!$BG$98:$BQ$416,MATCH($C46,Data!$C$98:$C$416,0),MATCH(AE$37,Data!$BG$94:$BQ$94,0)))+1 -> 1 | AF46: =IF(($M46=0),0,INDEX(Data!$BG$98:$BQ$416,MATCH($C46,Data!$C$98:$C$416,0),MATCH(AF$37,Data!$BG$94:$BQ$94,0)))+1 -> 1
L47: 0 | M47: =IF(ISBLANK(C47),0,VLOOKUP(C47,Data!C$98:F$416,4,FALSE)*IF(ISBLANK(E47),1,E47)) -> 0 | N47: 0 | P47: =IF(($M47+$N47=0),0,PRODUCT($V47:V47)*$M47+PRODUCT($AB47:AB47)*$N47-SUM($M47:$N47)-SUM($O47:O47)) -> 0 | Q47: =IF(($M47+$N47=0),0,PRODUCT($V47:W47)*$M47+PRODUCT($AB47:AC47)*$N47-SUM($M47:$N47)-SUM($O47:P47)) -> 0 | R47: =IF(($M47+$N47=0),0,PRODUCT($V47:X47)*$M47+PRODUCT($AB47:AD47)*$N47-SUM($M47:$N47)-SUM($O47:Q47)) -> 0 | S47: =IF(($M47+$N47=0),0,PRODUCT($V47:Y47)*$M47+PRODUCT($AB47:AE47)*$N47-SUM($M47:$N47)-SUM($O47:R47)) -> 0 | T47: =IF(($M47+$N47=0),0,PRODUCT($V47:Z47)*$M47+PRODUCT($AB47:AF47)*$N47-SUM($M47:$N47)-SUM($O47:S47)) -> 0 | V47: =IF(($M47=0),0,INDEX(Data!$AV$98:$BF$416,MATCH($C47,Data!$C$98:$C$416,0),MATCH(V$37,Data!$AV$94:$BF$94,0)))+1 -> 1 | W47: =IF(($M47=0),0,INDEX(Data!$AV$98:$BF$416,MATCH($C47,Data!$C$98:$C$416,0),MATCH(W$37,Data!$AV$94:$BF$94,0)))+1 -> 1 | X47: =IF(($M47=0),0,INDEX(Data!$AV$98:$BF$416,MATCH($C47,Data!$C$98:$C$416,0),MATCH(X$37,Data!$AV$94:$BF$94,0)))+1 -> 1 | Y47: =IF(($M47=0),0,INDEX(Data!$AV$98:$BF$416,MATCH($C47,Data!$C$98:$C$416,0),MATCH(Y$37,Data!$AV$94:$BF$94,0)))+1 -> 1 | Z47: =IF(($M47=0),0,INDEX(Data!$AV$98:$BF$416,MATCH($C47,Data!$C$98:$C$416,0),MATCH(Z$37,Data!$AV$94:$BF$94,0)))+1 -> 1 | AB47: =IF(($M47=0),0,INDEX(Data!$BG$98:$BQ$416,MATCH($C47,Data!$C$98:$C$416,0),MATCH(AB$37,Data!$BG$94:$BQ$94,0)))+1 -> 1 | AC47: =IF(($M47=0),0,INDEX(Data!$BG$98:$BQ$416,MATCH($C47,Data!$C$98:$C$416,0),MATCH(AC$37,Data!$BG$94:$BQ$94,0)))+1 -> 1 | AD47: =IF(($M47=0),0,INDEX(Data!$BG$98:$BQ$416,MATCH($C47,Data!$C$98:$C$416,0),MATCH(AD$37,Data!$BG$94:$BQ$94,0)))+1 -> 1 | AE47: =IF(($M47=0),0,INDEX(Data!$BG$98:$BQ$416,MATCH($C47,Data!$C$98:$C$416,0),MATCH(AE$37,Data!$BG$94:$BQ$94,0)))+1 -> 1 | AF47: =IF(($M47=0),0,INDEX(Data!$BG$98:$BQ$416,MATCH($C47,Data!$C$98:$C$416,0),MATCH(AF$37,Data!$BG$94:$BQ$94,0)))+1 -> 1
F48: =SUM(F38:F47) -> 0 | P48: =SUM(P38:P47) -> 0 | Q48: =SUM(Q38:Q47) -> 0 | R48: =SUM(R38:R47) -> 0 | S48: 0 | T48: 0
L49: =SUM(L38:L48) -> 0 | O49: =SUM(M38:N47) -> 0 | P49: =+O49+P48 -> 0 | Q49: =+P49+Q48 -> 0 | R49: =+Q49+R48 -> 0 | S49: 0 | T49: 0
P50: =IF(P48=0,0,+P49/O49-1) -> 0 | Q50: =IF(Q48=0,0,+Q49/P49-1) -> 0 | R50: =IF(R48=0,0,+R49/Q49-1) -> 0 | S50: 0 | T50: 0
C51: Include population growth in estimate?
C53: Select 1st Year to be included within model | F53: 2021
C55: Do you want to include population growth? | F55: Yes
C56: Year | D56: Population growth % | F56: 2 | N56: =(VLOOKUP(D18,Data!AU84:BS87,Data!BR81,FALSE)*Data!F53+VLOOKUP(D18,Data!AU84:BS87,Data!BS81,FALSE)*Data!G53)+1 -> 1
C57: =F53+1 -> 2022 | D57: =IF(OR(D$18=Data!B$6,D$18=Data!B$7),Q50,0) -> 0 | F57: Population growth is estimated for the | N57: =(IF(F$55=Data!$B$15,IF(ISBLANK(E57),D57,E57),0)+1) -> 1
C58: =C57+1 -> 2023 | D58: =IF(OR(D$18=Data!B$6,D$18=Data!B$7),R50,0) -> 0 | F58: age/sex groups of the selected population | N58: =(IF(F$55=Data!$B$15,IF(ISBLANK(E58),D58,E58),0)+1)*(1*N57) -> 1
C59: =C58+1 -> 2024 | D59: =IF(OR(D$18=Data!B$6,D$18=Data!B$7),S50,0) -> 0 | N59: =(IF(F$55=Data!$B$15,IF(ISBLANK(E59),D59,E59),0)+1)*(1*N58) -> 1
C60: =C59+1 -> 2025 | D60: =IF(OR(D$18=Data!B$6,D$18=Data!B$7),T50,0) -> 0 | N60: =(IF(F$55=Data!$B$15,IF(ISBLANK(E60),D60,E60),0)+1)*(1*N59) -> 1
C63: Output - estimate of vertebral fractures in defined population
E65: Incidence in year | F65: 3 | G65: Prevalence | H65: 4
C66: Number of cases in year | D66: =+F53 -> 2021 | E66: =ROUND(Data!D59*$N56,0) -> 0 | G66: =ROUND(Data!D65*$N56,0) -> 0
D67: =+C57 -> 2022 | E67: =+E66*N57 -> 0 | G67: =+G66*N57 -> 0
D68: =+C58 -> 2023 | E68: =+E67*N58 -> 0 | G68: =+G67*N58 -> 0
D69: =+C59 -> 2024 | E69: =+E68*N59 -> 0 | G69: =+G68*N59 -> 0
D70: =+C60 -> 2025 | E70: =+E69*N60 -> 0 | G70: =+G69*N60 -> 0
D71: Cases are adjusted to take account of population growth in the selected cohort

Sheet Fxfind
A1: =+Intro!A1 -> Vertebral Fracture Benefits Calculator
A2: Current and additional cases
C15: Estimate of vertebral fractures in defined population
E17: Incidence in year | G17: Prevalence
C18: Cases in year | D18: =+Population!D66 -> 2021 | E18: =+Population!E66 -> 0 | G18: =+Population!G66 -> 0
D19: =+Population!D67 -> 2022 | E19: =+Population!E67 -> 0 | G19: =+Population!G67 -> 0 | I19: Data for information only. Not used to estimate benefits.
D20: =+Population!D68 -> 2023 | E20: =+Population!E68 -> 0 | G20: =+Population!G68 -> 0
D21: =+Population!D69 -> 2024 | E21: =+Population!E69 -> 0 | G21: =+Population!G69 -> 0
D22: =+Population!D70 -> 2025 | E22: =+Population!E70 -> 0 | G22: =+Population!G70 -> 0
C25: Enter the number of vertebral fractures seen in your service in one year
C27: Current cases found | F27: Enter number here | I27: Data for information only. Not used to estimate benefits.
C30: Enter the number of additional cases you expect to find
C32: Additional cases | F32: Enter number here | H32: This number will be used to calculate the benefit of effective treatment
C35: Number of cases expected
D37: Estimate of cases found using current case finding methods | I37: Additional cases
C39: =+Population!D66 -> 2021 | E39: =+$E$27 -> 0 | F39: Adjusted for estimated population growth Data for information only. Not used to estimate benefits. | I39: =+$E$32 -> 0 | J39: These data are used to calculate the benefit of effective treatment
C40: =+Population!D67 -> 2022 | E40: =+E39*(1+Population!D57) -> 0 | I40: =+$E$32 -> 0
C41: =+Population!D68 -> 2023 | E41: =+E40*(1+Population!D58) -> 0 | I41: 0
C42: =+Population!D69 -> 2024 | E42: =+E41*(1+Population!D59) -> 0 | I42: 0
C43: =+Population!D70 -> 2025 | E43: =+E42*(1+Population!D60) -> 0 | I43: 0

Sheet Fxtreat
A1: =+Intro!A1 -> Vertebral Fracture Benefits Calculator
A2: Treatment selection and compliance for additional cases
C20: Specify the number of additional cases to go onto treatment
C22: Additional cases found | E22: =Fxfind!I39 -> 0 | F22: From previous step
C24: % of patients not treated | E24: 0.25 | F24: Use data from local audit
C26: Number of additional cases treated | E26: =+E22*(1-E24) -> 0
C29: Specify treatment options for additional cases
H31: % of cases treated
C32: Treatment | G32: National prescribing data | H32: 5 | I32: Enter local data here | K32: Additional cases on treatment selected
C33: Alendronic acid (effervescent solution) | K33: =IF(I$48=0,G33*$E$26,I33*$E$26) -> 0 | L33: Treatments are shown in alphabetical order No recommendation of any treatment is implied.
C34: Alendronic acid (oral tablet) | G34: =+References!H59 -> 0.872566209 | I34: 0.8726 | K34: 0
C35: Alendronic acid and calciferol | G35: =+References!H60 -> 0.0007817993337 | I35: 0.0008 | K35: 0
C36: Denosumab | G36: =+References!H61 -> 0.009730730779 | I36: 0.0097 | K36: 0
C37: Ibandronic acid (intravenous) | K37: 0
C38: Ibandronic acid (oral) | G38: =+References!H63 -> 0.02398019678 | I38: 0.024 | K38: 0
C39: Risedronate | G39: =+References!H64 -> 0.09274282742 | I39: 0.0927 | K39: 0
C40: Romosozumab | K40: 0
C41: Strontium ranelate | G41: =+References!H66 -> 0.0001834232865 | I41: 0.0002 | K41: 0
C42: Teriparatide | K42: 0
C43: Zoledronic acid | G43: =+References!H68 -> 7.96850963e-06 | I43: 0.0001 | K43: 0
C44: Other treatment 1 - type to overwrite | K44: 0
C45: Other treatment 2 - type to overwrite | K45: 0
C46: Other treatment 3 - type to overwrite | K46: 0
C48: All cases | G48: These values are used if no local data is entered. | I48: =SUM(I33:I46) -> 1.0001 | K48: =SUM(K33:K47) -> 0
I50: =IF(ABS(1-I48)>0.005,K51,K52) -> Good | J50: Cell value check
K51: Must equal 100%. Please adjust values
K52: Good
C56: Specify compliance data by treatment
C58: Treatment | G58: Compliance rate at 1 year | H58: 6 | I58: Override Enter local data here | K58: Cases on treatment that are compliant
C59: =+C33 -> Alendronic acid (effervescent solution) | G59: =+References!I82 -> 0.413 | K59: =IF(I59="",K33*G59,K33*I59) -> 0 | L59: Treatments are shown in alphabetical order No recommendation of any treatment is implied.
C60: =+C34 -> Alendronic acid (oral tablet) | G60: =+References!I83 -> 0.413 | I60: 0.6 | K60: 0
C61: =+C35 -> Alendronic acid and calciferol | G61: =+References!I84 -> 0.413 | K61: 0
C62: =+C36 -> Denosumab | G62: =+References!I85 -> 0.769 | K62: 0
C63: Ibandronic acid (intravenous) | G63: =+References!I86 -> 1 | K63: 0
C64: Ibandronic acid (oral) | G64: =+References!I87 -> 0.465 | K64: 0
C65: Risedronate | G65: =+References!I88 -> 0.264 | I65: 0.6 | K65: 0
C66: Romosozumab | G66: =+References!I89 -> 1 | I66: 1 | K66: 0
C67: Strontium ranelate | K67: 0
C68: Teriparatide | G68: =+References!I91 -> 1 | I68: 1 | K68: 0
C69: Zoledronic acid | G69: =+References!I92 -> 1 | I69: 1 | K69: 0
C70: Other treatment 1 - type to overwrite | K70: 0
C71: Other treatment 2 - type to overwrite | K71: 0
C72: Other treatment 3 - type to overwrite | K72: 0
G73: These values are used if no local data is entered.
C74: =+C48 -> All cases | K74: =SUM(K59:K73) -> 0
C78: Apply relative risk reduction rates
C80: Treatment | G80: Hip fracture (inpatient) | H80: Other fracture site (inpatient) | I80: Other fracture site (outpatient) | J80: Clinical vertebral | K80: 7
C81: =+C33 -> Alendronic acid (effervescent solution) | G81: =+References!G100 -> 0.61 | H81: =+References!H100 -> 0.84 | I81: =+References!I100 -> 0.84 | J81: =+References!J100 -> 0.55 | K81: All fracture risk reduction rates shown here assume that patients are treated in accordance with manufacturers instructions and in accordance with prevailing best practice guidelines. | V81: =IFERROR(G81*($K59/$K$74),0) -> 0 | W81: =IFERROR(H81*($K59/$K$74),0) -> 0 | X81: 0 | Y81: 0
C82: =+C34 -> Alendronic acid (oral tablet) | G82: =+References!G101 -> 0.61 | H82: =+References!H101 -> 0.84 | I82: =+References!I101 -> 0.84 | J82: =+References!J101 -> 0.55 | V82: =IFERROR(G82*($K60/$K$74),0) -> 0 | W82: 0 | X82: 0 | Y82: 0
C83: =+C35 -> Alendronic acid and calciferol | G83: =+References!G102 -> 0.61 | H83: =+References!H102 -> 0.84 | I83: =+References!I102 -> 0.84 | J83: =+References!J102 -> 0.55 | V83: =IFERROR(G83*($K61/$K$74),0) -> 0 | W83: 0 | X83: 0 | Y83: 0
C84: =+C36 -> Denosumab | G84: =+References!G103 -> 0.6 | H84: =+References!H103 -> 0.8 | I84: =+References!I103 -> 0.8 | J84: =+References!J103 -> 0.32 | V84: =IFERROR(G84*($K62/$K$74),0) -> 0 | W84: 0 | X84: 0 | Y84: 0
C85: Ibandronic acid (intravenous) | G85: =+References!G104 -> 1 | H85: =+References!H104 -> 1.11 | I85: =+References!I104 -> 1.11 | J85: =+References!J104 -> 0.51 | V85: =IFERROR(G85*($K63/$K$74),0) -> 0 | W85: 0 | X85: 0 | Y85: 0
C86: Ibandronic acid (oral) | G86: =+References!G105 -> 1 | H86: =+References!H105 -> 1.11 | I86: =+References!I105 -> 1.11 | J86: =+References!J105 -> 0.51 | V86: =IFERROR(G86*($K64/$K$74),0) -> 0 | W86: 0 | X86: 0 | Y86: 0
C87: Risedronate | G87: =+References!G106 -> 0.74 | H87: =+References!H106 -> 0.8 | I87: =+References!I106 -> 0.8 | J87: =+References!J106 -> 0.61 | V87: =IFERROR(G87*($K65/$K$74),0) -> 0 | W87: 0 | X87: 0 | Y87: 0
C88: Romosozumab | G88: =+References!G107 -> 0 | H88: =+References!H107 -> 0 | I88: =+References!I107 -> 0 | J88: =+References!J107 -> 0 | V88: =IFERROR(G88*($K66/$K$74),0) -> 0 | W88: 0 | X88: 0 | Y88: 0
C89: Strontium ranelate | G89: =+References!G108 -> 0.85 | H89: =+References!H108 -> 0.86 | I89: =+References!I108 -> 0.86 | J89: =+References!J108 -> 0.62 | V89: =IFERROR(G89*($K67/$K$74),0) -> 0 | W89: 0 | X89: 0 | Y89: 0
C90: Teriparatide | G90: =+References!G109 -> 1 | H90: =+References!H109 -> 0.47 | I90: =+References!I109 -> 0.47 | J90: =+References!J109 -> 0.35 | V90: =IFERROR(G90*($K68/$K$74),0) -> 0 | W90: 0 | X90: 0 | Y90: 0
C91: Zoledronic acid | G91: =+References!G110 -> 0.59 | H91: =+References!H110 -> 0.75 | I91: =+References!I110 -> 0.75 | J91: =+References!J110 -> 0.3 | V91: =IFERROR(G91*($K69/$K$74),0) -> 0 | W91: 0 | X91: 0 | Y91: 0
C92: Other treatment 1 - type to overwrite | F92: Enter data | V92: =IFERROR(G92*($K70/$K$74),0) -> 0 | W92: 0 | X92: 0 | Y92: 0
C93: Other treatment 2 - type to overwrite | F93: Enter data | V93: =IFERROR(G93*($K71/$K$74),0) -> 0 | W93: 0 | X93: 0 | Y93: 0
C94: Other treatment 3 - type to overwrite | F94: Enter data | V94: =IFERROR(G94*($K72/$K$74),0) -> 0 | W94: 0 | X94: 0 | Y94: 0
C96: Weighted risk reduction for selected mix of treatments | G96: =+V96 -> 0 | H96: =+W96 -> 0 | I96: =+X96 -> 0 | J96: =+Y96 -> 0 | V96: =SUM(V81:V95) -> 0 | W96: =SUM(W81:W95) -> 0 | X96: =SUM(X81:X95) -> 0 | Y96: =SUM(Y81:Y95) -> 0

Sheet Fxexpect
A1: =+Intro!A1 -> Vertebral Fracture Benefits Calculator
A2: Secondary fractures expected for additional cases - with no treatment
C14: Risk of secondary fracture following a vertebral fracture
E16: Hip fracture (inpatient) | F16: Other fracture site (inpatient) | G16: Other fracture site (outpatient) | H16: Clinical vertebral | I16: 8
C17: 1st year post primary fracture | E17: =+References!K120 -> 0.038 | F17: =+References!L120 -> 0.012 | G17: =+References!M120 -> 0.006 | H17: =+References!N120 -> 0.014
C18: 2nd year post primary fracture | E18: =+References!K121 -> 0.022 | F18: =+References!L121 -> 0.004 | G18: =+References!M121 -> 0.01 | H18: =+References!N121 -> 0.032
C19: 3rd year post primary fracture | E19: =+References!K122 -> 0.04 | F19: =+References!L122 -> 0.006 | G19: =+References!M122 -> 0.016 | H19: =+References!N122 -> 0.036
C20: 4th year post primary fracture | E20: =+References!K123 -> 0.02 | F20: =+References!L123 -> 0.006 | G20: =+References!M123 -> 0.008 | H20: =+References!N123 -> 0.018
C21: 5th year post primary fracture | E21: =+References!K124 -> 0.01 | F21: =+References!L124 -> 0.002 | G21: =+References!M124 -> 0 | H21: =+References!N124 -> 0.008
C23: Number of patients in annual cohort | G23: =+Fxtreat!K48 -> 0 | H23: From sheet Fxtreat
C26: Risk of secondary fracture by cohort in each year | K26: Number of secondary fractures by cohort in each year
D28: Year 1 cohort | K28: =+D28 -> Year 1 cohort
D29: Year | E29: Number in cohort | F29: Hip fracture (inpatient) | G29: Other fracture site (inpatient) | H29: Other fracture site (outpatient) | I29: Clinical vertebral | K29: Year | L29: Number in cohort | M29: Hip fracture (inpatient) | N29: Other fracture site (inpatient) | O29: Other fracture site (outpatient) | P29: Clinical vertebral
D30: =+Fxfind!C39 -> 2021 | E30: =+G23 -> 0 | F30: =+E17 -> 0.038 | G30: 0.012 | H30: 0.006 | I30: 0.014 | K30: =+D30 -> 2021 | L30: =+E30 -> 0 | M30: =+$E$30*F30 -> 0 | N30: =+$E$30*G30 -> 0 | O30: 0 | P30: 0
D31: =+Fxfind!C40 -> 2022 | F31: 0.022 | G31: 0.004 | H31: 0.01 | I31: 0.032 | K31: 2022 | M31: =+$E$30*F31 -> 0 | N31: =+$E$30*G31 -> 0 | O31: =+$E$30*H31 -> 0 | P31: =+$E$30*I31 -> 0
D32: =+Fxfind!C41 -> 2023 | F32: 0.04 | G32: 0.006 | H32: 0.016 | I32: 0.036 | K32: 2023 | M32: 0 | N32: 0 | O32: 0 | P32: 0
D33: =+Fxfind!C42 -> 2024 | F33: 0.02 | G33: 0.006 | H33: 0.008 | I33: 0.018 | K33: 2024 | M33: 0 | N33: 0 | O33: 0 | P33: 0
D34: =+Fxfind!C43 -> 2025 | F34: 0.01 | G34: 0.002 | H34: 0 | I34: 0.008 | K34: 2025 | M34: 0 | N34: 0 | O34: 0 | P34: 0
D36: Year 2 cohort | K36: Year 2 cohort
D37: Year | F37: Hip fracture (inpatient) | G37: Other fracture site (inpatient) | H37: Other fracture site (outpatient) | I37: Clinical vertebral | K37: Year | M37: Hip fracture (inpatient) | N37: Other fracture site (inpatient) | O37: Other fracture site (outpatient) | P37: Clinical vertebral
D38: =+D$30 -> 2021 | F38: 0 | G38: 0 | H38: 0 | I38: 0 | K38: =+K$30 -> 2021 | M38: =+$E$39*F38 -> 0 | N38: =+$E$39*G38 -> 0 | O38: 0 | P38: 0
D39: =+D$31 -> 2022 | E39: =+E$30 -> 0 | F39: =+F30 -> 0.038 | G39: =+G30 -> 0.012 | H39: 0.006 | I39: 0.014 | K39: =+K$31 -> 2022 | L39: =+E39 -> 0 | M39: =+$E$39*F39 -> 0 | N39: =+$E$39*G39 -> 0 | O39: =+$E$39*H39 -> 0 | P39: =+$E$39*I39 -> 0
D40: =+D$32 -> 2023 | F40: =+F31 -> 0.022 | G40: 0.004 | H40: 0.01 | I40: 0.032 | K40: =+K$32 -> 2023 | M40: 0 | N40: 0 | O40: 0 | P40: 0
D41: =+D$33 -> 2024 | F41: =+F32 -> 0.04 | G41: 0.006 | H41: 0.016 | I41: 0.036 | K41: =+K$33 -> 2024 | M41: 0 | N41: 0 | O41: 0 | P41: 0
D42: =+D$34 -> 2025 | F42: =+F33 -> 0.02 | G42: 0.006 | H42: 0.008 | I42: 0.018 | K42: =+K$34 -> 2025 | M42: 0 | N42: 0 | O42: 0 | P42: 0
D45: Year 3 cohort | K45: Year 3 cohort
D46: Year | F46: Hip fracture (inpatient) | G46: Other fracture site (inpatient) | H46: Other fracture site (outpatient) | I46: Clinical vertebral | K46: Year | M46: Hip fracture (inpatient) | N46: Other fracture site (inpatient) | O46: Other fracture site (outpatient) | P46: Clinical vertebral
D47: =+D$30 -> 2021 | F47: 0 | G47: 0 | H47: 0 | I47: 0 | K47: =+K$30 -> 2021 | M47: =+$E$49*F47 -> 0 | N47: =+$E$49*G47 -> 0 | O47: 0 | P47: 0
D48: =+D$31 -> 2022 | F48: 0 | G48: 0 | H48: 0 | I48: 0 | K48: =+K$31 -> 2022 | M48: =+$E$49*F48 -> 0 | N48: =+$E$49*G48 -> 0 | O48: =+$E$49*H48 -> 0 | P48: =+$E$49*I48 -> 0
D49: =+D$32 -> 2023 | E49: =+E$30 -> 0 | F49: =+F30 -> 0.038 | G49: =+G30 -> 0.012 | H49: 0.006 | I49: 0.014 | K49: =+K$32 -> 2023 | L49: =+E49 -> 0 | M49: 0 | N49: 0 | O49: 0 | P49: 0
D50: =+D$33 -> 2024 | F50: =+F31 -> 0.022 | G50: 0.004 | H50: 0.01 | I50: 0.032 | K50: =+K$33 -> 2024 | M50: 0 | N50: 0 | O50: 0 | P50: 0
D51: =+D$34 -> 2025 | F51: =+F32 -> 0.04 | G51: 0.006 | H51: 0.016 | I51: 0.036 | K51: =+K$34 -> 2025 | M51: 0 | N51: 0 | O51: 0 | P51: 0
D54: Year 4 cohort | K54: Year 4 cohort
D55: Year | F55: Hip fracture (inpatient) | G55: Other fracture site (inpatient) | H55: Other fracture site (outpatient) | I55: Clinical vertebral | K55: Year | M55: Hip fracture (inpatient) | N55: Other fracture site (inpatient) | O55: Other fracture site (outpatient) | P55: Clinical vertebral
D56: =+D$30 -> 2021 | F56: 0 | G56: 0 | H56: 0 | I56: 0 | K56: =+K$30 -> 2021 | M56: =+$E$59*F56 -> 0 | N56: =+$E$59*G56 -> 0 | O56: 0 | P56: 0
D57: =+D$31 -> 2022 | F57: 0 | G57: 0 | H57: 0 | I57: 0 | K57: =+K$31 -> 2022 | M57: =+$E$59*F57 -> 0 | N57: =+$E$59*G57 -> 0 | O57: =+$E$59*H57 -> 0 | P57: =+$E$59*I57 -> 0
D58: =+D$32 -> 2023 | F58: 0 | G58: 0 | H58: 0 | I58: 0 | K58: =+K$32 -> 2023 | M58: 0 | N58: 0 | O58: 0 | P58: 0
D59: =+D$33 -> 2024 | E59: =+E$30 -> 0 | F59: =+F30 -> 0.038 | G59: =+G30 -> 0.012 | H59: 0.006 | I59: 0.014 | K59: =+K$33 -> 2024 | L59: =+E59 -> 0 | M59: 0 | N59: 0 | O59: 0 | P59: 0
D60: =+D$34 -> 2025 | F60: =+F31 -> 0.022 | G60: 0.004 | H60: 0.01 | I60: 0.032 | K60: =+K$34 -> 2025 | M60: 0 | N60: 0 | O60: 0 | P60: 0
D63: Year 5 cohort | K63: Year 5 cohort
D64: Year | F64: Hip fracture (inpatient) | G64: Other fracture site (inpatient) | H64: Other fracture site (outpatient) | I64: Clinical vertebral | K64: Year | M64: Hip fracture (inpatient) | N64: Other fracture site (inpatient) | O64: Other fracture site (outpatient) | P64: Clinical vertebral
D65: =+D$30 -> 2021 | F65: 0 | G65: 0 | H65: 0 | I65: 0 | K65: =+K$30 -> 2021 | M65: =+$E$69*F65 -> 0 | N65: =+$E$69*G65 -> 0 | O65: 0 | P65: 0
D66: =+D$31 -> 2022 | F66: 0 | G66: 0 | H66: 0 | I66: 0 | K66: =+K$31 -> 2022 | M66: =+$E$69*F66 -> 0 | N66: =+$E$69*G66 -> 0 | O66: =+$E$69*H66 -> 0 | P66: =+$E$69*I66 -> 0
D67: =+D$32 -> 2023 | F67: 0 | G67: 0 | H67: 0 | I67: 0 | K67: =+K$32 -> 2023 | M67: 0 | N67: 0 | O67: 0 | P67: 0
D68: =+D$33 -> 2024 | F68: 0 | G68: 0 | H68: 0 | I68: 0 | K68: =+K$33 -> 2024 | M68: 0 | N68: 0 | O68: 0 | P68: 0
D69: =+D$34 -> 2025 | E69: =+E$30 -> 0 | F69: =+F30 -> 0.038 | G69: =+G30 -> 0.012 | H69: 0.006 | I69: 0.014 | K69: =+K$34 -> 2025 | L69: =+E69 -> 0 | M69: 0 | N69: 0 | O69: 0 | P69: 0
B74: Estimate of secondary fractures if no treatment offered total all cohorts
C76: Year | D76: Cohort | E76: Hip fracture (inpatient) | F76: Other fracture site (inpatient) | G76: Other fracture site (outpatient) | H76: Clinical vertebral
C77: =+D$30 -> 2021 | D77: =+E30 -> 0 | E77: =+M30+M38+M47+M56+M65 -> 0 | F77: 0 | G77: 0 | H77: 0
C78: =+D$31 -> 2022 | D78: =+E39 -> 0 | E78: 0 | F78: 0 | G78: 0 | H78: 0
C79: =+D$32 -> 2023 | D79: =+E49 -> 0 | E79: 0 | F79: 0 | G79: 0 | H79: 0
C80: =+D$33 -> 2024 | D80: =+E59 -> 0 | E80: 0 | F80: 0 | G80: 0 | H80: 0
C81: =+D$34 -> 2025 | D81: =+E69 -> 0 | E81: 0 | F81: 0 | G81: 0 | H81: 0
D82: =SUM(D77:D81) -> 0 | E82: =SUM(E77:E81) -> 0 | F82: =SUM(F77:F81) -> 0 | G82: 0 | H82: 0

Sheet Fxprevent
A1: =+Intro!A1 -> Vertebral Fracture Benefits Calculator
A2: Secondary fractures expected and prevented for additional cases under effective treatment
C16: Risk of secondary fracture following a vertebral fracture
E18: Hip fracture (inpatient) | F18: Other fracture site (inpatient) | G18: Other fracture site (outpatient) | H18: Clinical vertebral | I18: 8
C19: 1st year post primary fracture | E19: =+References!K120 -> 0.038 | F19: =+References!L120 -> 0.012 | G19: =+References!M120 -> 0.006 | H19: =+References!N120 -> 0.014
C20: 2nd year post primary fracture | E20: =+References!K121 -> 0.022 | F20: =+References!L121 -> 0.004 | G20: =+References!M121 -> 0.01 | H20: =+References!N121 -> 0.032
C21: 3rd year post primary fracture | E21: =+References!K122 -> 0.04 | F21: =+References!L122 -> 0.006 | G21: =+References!M122 -> 0.016 | H21: =+References!N122 -> 0.036
C22: 4th year post primary fracture | E22: =+References!K123 -> 0.02 | F22: =+References!L123 -> 0.006 | G22: =+References!M123 -> 0.008 | H22: =+References!N123 -> 0.018
C23: 5th year post primary fracture | E23: =+References!K124 -> 0.01 | F23: =+References!L124 -> 0.002 | G23: =+References!M124 -> 0 | H23: =+References!N124 -> 0.008
C25: Number of patients in annual cohort under effective treatment | G25: =+Fxtreat!K74 -> 0 | H25: From sheet Fxtreat
C29: Risk of secondary fracture by cohort in each year | K29: Number of secondary fractures by cohort in each year
D31: Year 1 cohort | K31: =+D31 -> Year 1 cohort
D32: Year | E32: Number in cohort | F32: Hip fracture (inpatient) | G32: Other fracture site (inpatient) | H32: Other fracture site (outpatient) | I32: Clinical vertebral | K32: Year | L32: Number in cohort | M32: Hip fracture (inpatient) | N32: Other fracture site (inpatient) | O32: Other fracture site (outpatient) | P32: Clinical vertebral
D33: =+Fxfind!C39 -> 2021 | E33: =+G25 -> 0 | F33: =+E19 -> 0.038 | G33: 0.012 | H33: 0.006 | I33: 0.014 | K33: =+D33 -> 2021 | L33: =+E33 -> 0 | M33: =+$E$33*F33 -> 0 | N33: =+$E$33*G33 -> 0 | O33: 0 | P33: 0
D34: =+Fxfind!C40 -> 2022 | F34: 0.022 | G34: 0.004 | H34: 0.01 | I34: 0.032 | K34: 2022 | M34: =+$E$33*F34 -> 0 | N34: 0 | O34: 0 | P34: 0
D35: =+Fxfind!C41 -> 2023 | F35: 0.04 | G35: 0.006 | H35: 0.016 | I35: 0.036 | K35: 2023 | M35: 0 | N35: 0 | O35: 0 | P35: 0
D36: =+Fxfind!C42 -> 2024 | F36: 0.02 | G36: 0.006 | H36: 0.008 | I36: 0.018 | K36: 2024 | M36: 0 | N36: 0 | O36: 0 | P36: 0
D37: =+Fxfind!C43 -> 2025 | F37: 0.01 | G37: 0.002 | H37: 0 | I37: 0.008 | K37: 2025 | M37: 0 | N37: 0 | O37: 0 | P37: 0
D39: Year 2 cohort | K39: Year 2 cohort
D40: Year | F40: Hip fracture (inpatient) | G40: Other fracture site (inpatient) | H40: Other fracture site (outpatient) | I40: Clinical vertebral | K40: Year | M40: Hip fracture (inpatient) | N40: Other fracture site (inpatient) | O40: Other fracture site (outpatient) | P40: Clinical vertebral
D41: =+D$33 -> 2021 | F41: 0 | G41: 0 | H41: 0 | I41: 0 | K41: =+K$33 -> 2021 | M41: =+$E$42*F41 -> 0 | N41: =+$E$42*G41 -> 0 | O41: 0 | P41: 0
D42: =+D$34 -> 2022 | E42: =+E$33 -> 0 | F42: =+F33 -> 0.038 | G42: =+G33 -> 0.012 | H42: 0.006 | I42: 0.014 | K42: =+K$34 -> 2022 | L42: =+E42 -> 0 | M42: =+$E$42*F42 -> 0 | N42: 0 | O42: 0 | P42: 0
D43: =+D$35 -> 2023 | F43: =+F34 -> 0.022 | G43: 0.004 | H43: 0.01 | I43: 0.032 | K43: =+K$35 -> 2023 | M43: 0 | N43: 0 | O43: 0 | P43: 0
D44: =+D$36 -> 2024 | F44: 0.04 | G44: 0.006 | H44: 0.016 | I44: 0.036 | K44: =+K$36 -> 2024 | M44: 0 | N44: 0 | O44: 0 | P44: 0
D45: =+D$37 -> 2025 | F45: 0.02 | G45: 0.006 | H45: 0.008 | I45: 0.018 | K45: =+K$37 -> 2025 | M45: 0 | N45: 0 | O45: 0 | P45: 0
D48: Year 3 cohort | K48: Year 3 cohort
D49: Year | F49: Hip fracture (inpatient) | G49: Other fracture site (inpatient) | H49: Other fracture site (outpatient) | I49: Clinical vertebral | K49: Year | M49: Hip fracture (inpatient) | N49: Other fracture site (inpatient) | O49: Other fracture site (outpatient) | P49: Clinical vertebral
D50: =+D$33 -> 2021 | F50: 0 | G50: 0 | H50: 0 | I50: 0 | K50: =+K$33 -> 2021 | M50: =+$E$52*F50 -> 0 | N50: =+$E$52*G50 -> 0 | O50: 0 | P50: 0
D51: =+D$34 -> 2022 | F51: 0 | G51: 0 | H51: 0 | I51: 0 | K51: =+K$34 -> 2022 | M51: =+$E$52*F51 -> 0 | N51: 0 | O51: 0 | P51: 0
D52: =+D$35 -> 2023 | E52: =+E$33 -> 0 | F52: =+F33 -> 0.038 | G52: =+G33 -> 0.012 | H52: 0.006 | I52: 0.014 | K52: =+K$35 -> 2023 | L52: =+E52 -> 0 | M52: 0 | N52: 0 | O52: 0 | P52: 0
D53: =+D$36 -> 2024 | F53: =+F34 -> 0.022 | G53: 0.004 | H53: 0.01 | I53: 0.032 | K53: =+K$36 -> 2024 | M53: 0 | N53: 0 | O53: 0 | P53: 0
D54: =+D$37 -> 2025 | F54: 0.04 | G54: 0.006 | H54: 0.016 | I54: 0.036 | K54: =+K$37 -> 2025 | M54: 0 | N54: 0 | O54: 0 | P54: 0
D57: Year 4 cohort | K57: Year 4 cohort
D58: Year | F58: Hip fracture (inpatient) | G58: Other fracture site (inpatient) | H58: Other fracture site (outpatient) | I58: Clinical vertebral | K58: Year | M58: Hip fracture (inpatient) | N58: Other fracture site (inpatient) | O58: Other fracture site (outpatient) | P58: Clinical vertebral
D59: =+D$33 -> 2021 | F59: 0 | G59: 0 | H59: 0 | I59: 0 | K59: =+K$33 -> 2021 | M59: =+$E$62*F59 -> 0 | N59: =+$E$62*G59 -> 0 | O59: 0 | P59: 0
D60: =+D$34 -> 2022 | F60: 0 | G60: 0 | H60: 0 | I60: 0 | K60: =+K$34 -> 2022 | M60: =+$E$62*F60 -> 0 | N60: 0 | O60: 0 | P60: 0
D61: =+D$35 -> 2023 | F61: 0 | G61: 0 | H61: 0 | I61: 0 | K61: =+K$35 -> 2023 | M61: 0 | N61: 0 | O61: 0 | P61: 0
D62: =+D$36 -> 2024 | E62: =+E$33 -> 0 | F62: =+F33 -> 0.038 | G62: =+G33 -> 0.012 | H62: 0.006 | I62: 0.014 | K62: =+K$36 -> 2024 | L62: =+E62 -> 0 | M62: 0 | N62: 0 | O62: 0 | P62: 0
D63: =+D$37 -> 2025 | F63: =+F34 -> 0.022 | G63: 0.004 | H63: 0.01 | I63: 0.032 | K63: =+K$37 -> 2025 | M63: 0 | N63: 0 | O63: 0 | P63: 0
D66: Year 5 cohort | K66: Year 5 cohort
D67: Year | F67: Hip fracture (inpatient) | G67: Other fracture site (inpatient) | H67: Other fracture site (outpatient) | I67: Clinical vertebral | K67: Year | M67: Hip fracture (inpatient) | N67: Other fracture site (inpatient) | O67: Other fracture site (outpatient) | P67: Clinical vertebral
D68: =+D$33 -> 2021 | F68: 0 | G68: 0 | H68: 0 | I68: 0 | K68: =+K$33 -> 2021 | M68: =+$E$72*F68 -> 0 | N68: =+$E$72*G68 -> 0 | O68: 0 | P68: 0
D69: =+D$34 -> 2022 | F69: 0 | G69: 0 | H69: 0 | I69: 0 | K69: =+K$34 -> 2022 | M69: =+$E$72*F69 -> 0 | N69: 0 | O69: 0 | P69: 0
D70: =+D$35 -> 2023 | F70: 0 | G70: 0 | H70: 0 | I70: 0 | K70: =+K$35 -> 2023 | M70: 0 | N70: 0 | O70: 0 | P70: 0
D71: =+D$36 -> 2024 | F71: 0 | G71: 0 | H71: 0 | I71: 0 | K71: =+K$36 -> 2024 | M71: 0 | N71: 0 | O71: 0 | P71: 0
D72: =+D$37 -> 2025 | E72: =+E$33 -> 0 | F72: =+F33 -> 0.038 | G72: =+G33 -> 0.012 | H72: 0.006 | I72: 0.014 | K72: =+K$37 -> 2025 | L72: =+E72 -> 0 | M72: 0 | N72: 0 | O72: 0 | P72: 0
B77: Estimate of secondary fractures if no treatment offered total all cohorts
C79: Year | D79: Cohort | E79: Hip fracture (inpatient) | F79: Other fracture site (inpatient) | G79: Other fracture site (outpatient) | H79: Clinical vertebral
C80: =+D$33 -> 2021 | D80: =+E33 -> 0 | E80: =+M33+M41+M50+M59+M68 -> 0 | F80: 0 | G80: 0 | H80: 0
C81: =+D$34 -> 2022 | D81: =+E42 -> 0 | E81: 0 | F81: 0 | G81: 0 | H81: 0
C82: =+D$35 -> 2023 | D82: =+E52 -> 0 | E82: 0 | F82: 0 | G82: 0 | H82: 0
C83: =+D$36 -> 2024 | D83: =+E62 -> 0 | E83: 0 | F83: 0 | G83: 0 | H83: 0
C84: =+D$37 -> 2025 | D84: =+E72 -> 0 | E84: 0 | F84: 0 | G84: 0 | H84: 0
D85: =SUM(D80:D84) -> 0 | E85: =SUM(E80:E84) -> 0 | F85: =SUM(F80:F84) -> 0 | G85: 0 | H85: 0
B88: Reduction in risk of fracture if effective treatment offered
E90: Hip fracture (inpatient) | F90: Other fracture site (inpatient) | G90: Other fracture site (outpatient) | H90: Clinical vertebral
C91: Risk reduction as a result of selected treatment mix | E91: =+Fxtreat!G96 -> 0 | F91: =+Fxtreat!H96 -> 0 | G91: =+Fxtreat!I96 -> 0 | H91: =+Fxtreat!J96 -> 0 | I91: From sheet Fxtreat
B95: Estimate of secondary fractures prevented
C97: Year | D97: Cohort | E97: Hip fracture (inpatient) | F97: Other fracture site (inpatient) | G97: Other fracture site (outpatient) | H97: Clinical vertebral
C98: =+D$33 -> 2021 | D98: =+D80 -> 0 | E98: =+E80*(1-E$91) -> 0 | F98: 0 | G98: 0 | H98: 0
C99: =+D$34 -> 2022 | D99: =+D81 -> 0 | E99: 0 | F99: 0 | G99: 0 | H99: 0
C100: =+D$35 -> 2023 | D100: 0 | E100: 0 | F100: 0 | G100: 0 | H100: 0
C101: =+D$36 -> 2024 | D101: 0 | E101: 0 | F101: 0 | G101: 0 | H101: 0
C102: =+D$37 -> 2025 | D102: 0 | E102: 0 | F102: 0 | G102: 0 | H102: 0
C103: Total - all years | D103: =SUM(D98:D102) -> 0 | E103: =SUM(E98:E102) -> 0 | F103: =SUM(F98:F102) -> 0 | G103: 0 | H103: 0

Sheet Fxbenefits
A1: =+Intro!A1 -> Vertebral Fracture Benefits Calculator
A2: Benefits of preventing a fracture
C15: Estimated costs of treatment of secondary fragility fracture
C17: Estimated costs | D17: 9 | E17: Hip fracture (inpatient) | F17: Other fracture site (inpatient) | G17: Other fracture site (outpatient) | H17: Clinical vertebral
C18: Acute care | E18: =ROUND(+'Benefits detail'!D7,0) -> 7843 | F18: =ROUND(+'Benefits detail'!E7,0) -> 1768 | G18: =ROUND(+'Benefits detail'!F7,0) -> 366 | H18: =ROUND(+'Benefits detail'!G7,0) -> 1923
C19: Community and primary care | E19: =ROUND(+'Benefits detail'!D8,0) -> 448 | F19: =ROUND(+'Benefits detail'!E8,0) -> 57 | G19: =ROUND(+'Benefits detail'!F8,0) -> 57 | H19: =ROUND(+'Benefits detail'!G8,0) -> 59
C20: Social care | E20: =ROUND(+'Benefits detail'!D9,0) -> 8237 | F20: =ROUND(+'Benefits detail'!E9,0) -> 150 | G20: =ROUND(+'Benefits detail'!F9,0) -> 150 | H20: =ROUND(+'Benefits detail'!G9,0) -> 2908
C21: All | E21: =ROUND(+'Benefits detail'!D10,0) -> 16528 | F21: =ROUND(+'Benefits detail'!E10,0) -> 1975 | G21: =ROUND(+'Benefits detail'!F10,0) -> 573 | H21: =ROUND(+'Benefits detail'!G10,0) -> 4890
C24: Apply Market Forces Factor (England only)
C26: Select Trust | D26: 10 | E26: Base tariff | H26: =IF(OR(NOT(Population!D18=Data!B6),ISNA(VLOOKUP(E26,Data!C422:F654,4,FALSE))),1,VLOOKUP(E26,Data!C422:F654,4,FALSE)) -> 1
E28: For Scotland, Wales and Northern Ireland ensure 'Base tariff' is selected.
C31: Benefits of preventing a secondary fragility fracture
E33: =+E17 -> Hip fracture (inpatient) | F33: =+F17 -> Other fracture site (inpatient) | G33: =+G17 -> Other fracture site (outpatient) | H33: =+H17 -> Clinical vertebral
C34: Acute care | E34: =+E18*$H$26 -> 7843 | F34: =+F18*$H$26 -> 1768 | G34: 366 | H34: 1923
C35: Community and primary care | E35: =E19 -> 448 | F35: =F19 -> 57 | G35: 57 | H35: 59
C36: Social care | E36: =E20 -> 8237 | F36: =F20 -> 150 | G36: 150 | H36: 2908
C37: All | E37: =SUM(E34:E36) -> 16528 | F37: =SUM(F34:F36) -> 1975 | G37: =SUM(G34:G36) -> 573 | H37: =SUM(H34:H36) -> 4890

Sheet Benefits
A1: =+Intro!A1 -> Vertebral Fracture Benefits Calculator
A2: Benefits of preventing secondary fragility fractures
C11: Acute care
C12: Year | D12: Hip fracture (inpatient) | E12: Other fracture site (inpatient) | F12: Other fracture site (outpatient) | G12: Clinical vertebral | I12: Total
C13: =+Fxprevent!C98 -> 2021 | D13: =+Fxprevent!E98*Fxbenefits!E$34 -> 0 | E13: =+Fxprevent!F98*Fxbenefits!F$34 -> 0 | F13: =+Fxprevent!G98*Fxbenefits!G$34 -> 0 | G13: =+Fxprevent!H98*Fxbenefits!H$34 -> 0 | H13: =+Fxprevent!I98*Fxbenefits!I$34 -> 0 | I13: =SUM(D13:G13) -> 0
C14: =+Fxprevent!C99 -> 2022 | D14: =+Fxprevent!E99*Fxbenefits!E$34 -> 0 | E14: =+Fxprevent!F99*Fxbenefits!F$34 -> 0 | F14: =+Fxprevent!G99*Fxbenefits!G$34 -> 0 | G14: =+Fxprevent!H99*Fxbenefits!H$34 -> 0 | I14: 0
C15: =+Fxprevent!C100 -> 2023 | D15: =+Fxprevent!E100*Fxbenefits!E$34 -> 0 | E15: =+Fxprevent!F100*Fxbenefits!F$34 -> 0 | F15: =+Fxprevent!G100*Fxbenefits!G$34 -> 0 | G15: =+Fxprevent!H100*Fxbenefits!H$34 -> 0 | I15: 0
C16: =+Fxprevent!C101 -> 2024 | D16: =+Fxprevent!E101*Fxbenefits!E$34 -> 0 | E16: =+Fxprevent!F101*Fxbenefits!F$34 -> 0 | F16: =+Fxprevent!G101*Fxbenefits!G$34 -> 0 | G16: =+Fxprevent!H101*Fxbenefits!H$34 -> 0 | I16: 0
C17: =+Fxprevent!C102 -> 2025 | D17: =+Fxprevent!E102*Fxbenefits!E$34 -> 0 | E17: =+Fxprevent!F102*Fxbenefits!F$34 -> 0 | F17: =+Fxprevent!G102*Fxbenefits!G$34 -> 0 | G17: =+Fxprevent!H102*Fxbenefits!H$34 -> 0 | I17: 0
C18: =("TOTAL - "&C11) -> TOTAL - Acute care | D18: =SUM(D13:D17) -> 0 | E18: =SUM(E13:E17) -> 0 | F18: =SUM(F13:F17) -> 0 | G18: =SUM(G13:G17) -> 0 | I18: =SUM(I13:I17) -> 0
C21: Social care
C22: Year | D22: =+D32 -> Hip fracture (inpatient) | E22: =+E32 -> Other fracture site (inpatient) | F22: =+F32 -> Other fracture site (outpatient) | G22: =+G32 -> Clinical vertebral | I22: =+I32 -> Total
C23: =+C13 -> 2021 | D23: =+Fxprevent!E98*Fxbenefits!E$36 -> 0 | E23: =+Fxprevent!F98*Fxbenefits!F$36 -> 0 | F23: =+Fxprevent!G98*Fxbenefits!G$36 -> 0 | G23: =+Fxprevent!H98*Fxbenefits!H$36 -> 0 | I23: =SUM(D23:G23) -> 0
C24: =+C14 -> 2022 | D24: =+Fxprevent!E99*Fxbenefits!E$36 -> 0 | E24: =+Fxprevent!F99*Fxbenefits!F$36 -> 0 | F24: =+Fxprevent!G99*Fxbenefits!G$36 -> 0 | G24: =+Fxprevent!H99*Fxbenefits!H$36 -> 0 | I24: =SUM(D24:G24) -> 0
C25: =+C15 -> 2023 | D25: =+Fxprevent!E100*Fxbenefits!E$36 -> 0 | E25: =+Fxprevent!F100*Fxbenefits!F$36 -> 0 | F25: =+Fxprevent!G100*Fxbenefits!G$36 -> 0 | G25: =+Fxprevent!H100*Fxbenefits!H$36 -> 0 | I25: 0
C26: =+C16 -> 2024 | D26: =+Fxprevent!E101*Fxbenefits!E$36 -> 0 | E26: =+Fxprevent!F101*Fxbenefits!F$36 -> 0 | F26: =+Fxprevent!G101*Fxbenefits!G$36 -> 0 | G26: =+Fxprevent!H101*Fxbenefits!H$36 -> 0 | I26: 0
C27: =+C17 -> 2025 | D27: =+Fxprevent!E102*Fxbenefits!E$36 -> 0 | E27: =+Fxprevent!F102*Fxbenefits!F$36 -> 0 | F27: =+Fxprevent!G102*Fxbenefits!G$36 -> 0 | G27: =+Fxprevent!H102*Fxbenefits!H$36 -> 0 | I27: 0
C28: =("TOTAL - "&C21) -> TOTAL - Social care | D28: =SUM(D23:D27) -> 0 | E28: =SUM(E23:E27) -> 0 | F28: =SUM(F23:F27) -> 0 | G28: =SUM(G23:G27) -> 0 | I28: =SUM(I23:I27) -> 0
C31: Community and primary care
C32: Year | D32: =+D12 -> Hip fracture (inpatient) | E32: =+E12 -> Other fracture site (inpatient) | F32: =+F12 -> Other fracture site (outpatient) | G32: =+G12 -> Clinical vertebral | I32: =+I12 -> Total
C33: =+C13 -> 2021 | D33: =+Fxprevent!E98*Fxbenefits!E$35 -> 0 | E33: =+Fxprevent!F98*Fxbenefits!F$35 -> 0 | F33: =+Fxprevent!G98*Fxbenefits!G$35 -> 0 | G33: =+Fxprevent!H98*Fxbenefits!H$35 -> 0 | I33: =SUM(D33:G33) -> 0
C34: =+C14 -> 2022 | D34: =+Fxprevent!E99*Fxbenefits!E$35 -> 0 | E34: =+Fxprevent!F99*Fxbenefits!F$35 -> 0 | F34: =+Fxprevent!G99*Fxbenefits!G$35 -> 0 | G34: =+Fxprevent!H99*Fxbenefits!H$35 -> 0 | I34: =SUM(D34:G34) -> 0
C35: =+C15 -> 2023 | D35: =+Fxprevent!E100*Fxbenefits!E$35 -> 0 | E35: =+Fxprevent!F100*Fxbenefits!F$35 -> 0 | F35: =+Fxprevent!G100*Fxbenefits!G$35 -> 0 | G35: =+Fxprevent!H100*Fxbenefits!H$35 -> 0 | I35: 0
C36: =+C16 -> 2024 | D36: =+Fxprevent!E101*Fxbenefits!E$35 -> 0 | E36: =+Fxprevent!F101*Fxbenefits!F$35 -> 0 | F36: =+Fxprevent!G101*Fxbenefits!G$35 -> 0 | G36: =+Fxprevent!H101*Fxbenefits!H$35 -> 0 | I36: 0
C37: =+C17 -> 2025 | D37: =+Fxprevent!E102*Fxbenefits!E$35 -> 0 | E37: =+Fxprevent!F102*Fxbenefits!F$35 -> 0 | F37: =+Fxprevent!G102*Fxbenefits!G$35 -> 0 | G37: =+Fxprevent!H102*Fxbenefits!H$35 -> 0 | I37: 0
C38: =("TOTAL - "&C31) -> TOTAL - Community and primary care | D38: =SUM(D33:D37) -> 0 | E38: =SUM(E33:E37) -> 0 | F38: =SUM(F33:F37) -> 0 | G38: =SUM(G33:G37) -> 0 | I38: =SUM(I33:I37) -> 0
C41: Total benefits
C42: Year | D42: =+D22 -> Hip fracture (inpatient) | E42: =+E22 -> Other fracture site (inpatient) | F42: =+F22 -> Other fracture site (outpatient) | G42: =+G22 -> Clinical vertebral | I42: =+I22 -> Total
C43: =+C13 -> 2021 | D43: =SUMIF($C$13:$C$28,$C43,D$13:D$28)+SUMIF($C$33:$C$38,$C43,D$33:D$38) -> 0 | E43: 0 | F43: 0 | G43: 0 | I43: =SUM(D43:G43) -> 0
C44: =+C14 -> 2022 | D44: 0 | E44: 0 | F44: 0 | G44: 0 | I44: =SUM(D44:G44) -> 0
C45: =+C15 -> 2023 | D45: 0 | E45: 0 | F45: 0 | G45: 0 | I45: 0
C46: =+C16 -> 2024 | D46: 0 | E46: 0 | F46: 0 | G46: 0 | I46: 0
C47: =+C17 -> 2025 | D47: 0 | E47: 0 | F47: 0 | G47: 0 | I47: 0
C48: =(C41) -> Total benefits | D48: =SUM(D43:D47) -> 0 | E48: =SUM(E43:E47) -> 0 | F48: 0 | G48: 0 | I48: =SUM(I43:I47) -> 0

Sheet Output
A1: =+Intro!A1 -> Vertebral Fracture Benefits Calculator
A2: Output report
C25: NHS contact | L25: Royal Osteoporosis Society / partner contact
C26: Name of organisation | L26: Contact name
C27: Contact name | L27: Contact tel.
C28: Contact tel. | L28: Contact email
C29: Contact email
C31: Date of this report | L31: Output version
C33: Population selected
H34: Male | I34: Female
C35: Include within analysis? | H35: =+Population!E24 -> Yes | I35: =+Population!F24 -> Yes
C36: Age from | H36: =+Population!E25 -> 50 - 54 | I36: =+Population!F25 -> 50 - 54
C37: Age to | H37: =+Population!E26 -> 85 + | I37: =+Population!F26 -> 85 +
C39: Start year selected | H39: =+Population!F53 -> 2021
C41: Population selected | F41: 1 | H41: =Population!F48 -> 0 | I41: Estimates are based on local age/sex stratified data for the selected population
C43: Population growth | F43: =+H39 -> 2021 | H43: n/a | I43: These are the growth estimates for the selected local population
F44: =+Population!C57 -> 2022 | H44: =+Population!D57 -> 0
D45: 2 | F45: =+Population!C58 -> 2023 | H45: =+Population!D58 -> 0
F46: =+Population!C59 -> 2024 | H46: =+Population!D59 -> 0
F47: =+Population!C60 -> 2025 | H47: =+Population!D60 -> 0
C50: Prevalence and incidence of vertebral fractures in selected population
C52: Number of cases in year | H52: Incidence in year | I52: 3 | J52: Prevalence | K52: 4
F53: =+Population!D66 -> 2021 | H53: =+Population!E66 -> 0 | J53: =+Population!G66 -> 0
F54: =+Population!D67 -> 2022 | H54: =+Population!E67 -> 0 | J54: =+Population!G67 -> 0
F55: =+Population!D68 -> 2023 | H55: =+Population!E68 -> 0 | J55: =+Population!G68 -> 0
F56: =+Population!D69 -> 2024 | H56: =+Population!E69 -> 0 | J56: =+Population!G69 -> 0
F57: =+Population!D70 -> 2025 | H57: =+Population!E70 -> 0 | J57: =+Population!G70 -> 0
D59: Cases are adjusted to take account of population growth in the at selected cohort
C62: Number of additional cases each year
C64: Additional cases found | J64: =+Fxtreat!E22 -> 0
C66: Patients not treated | H66: =+Fxtreat!E24 -> 0.25 | J66: =+J64*H66 -> 0
C68: Number of additional cases treated | J68: =+Fxtreat!E26 -> 0 | K68: Additional cases found less patients not treated
C70: Number of additional cases on effective treatment | J70: =+Fxtreat!K74 -> 0 | K70: Takes account of compliance for selected mix of | P70: 5, 6
K71: treatments
C74: Secondary fractures expected for additional cases - with no treatment
F76: Year | H76: Cohort | I76: Hip fracture (inpatient) | J76: Other fracture site (inpatient) | K76: Other fracture site (outpatient) | L76: Clinical vertebral | N76: 8
F77: =+Fxexpect!C77 -> 2021 | H77: =+Fxexpect!D77 -> 0 | I77: =+Fxexpect!E77 -> 0 | J77: =+Fxexpect!F77 -> 0 | K77: =+Fxexpect!G77 -> 0 | L77: =+Fxexpect!H77 -> 0
F78: =+Fxexpect!C78 -> 2022 | H78: =+Fxexpect!D78 -> 0 | I78: =+Fxexpect!E78 -> 0 | J78: =+Fxexpect!F78 -> 0 | K78: =+Fxexpect!G78 -> 0 | L78: =+Fxexpect!H78 -> 0
F79: =+Fxexpect!C79 -> 2023 | H79: =+Fxexpect!D79 -> 0 | I79: =+Fxexpect!E79 -> 0 | J79: =+Fxexpect!F79 -> 0 | K79: =+Fxexpect!G79 -> 0 | L79: =+Fxexpect!H79 -> 0
F80: =+Fxexpect!C80 -> 2024 | H80: =+Fxexpect!D80 -> 0 | I80: =+Fxexpect!E80 -> 0 | J80: =+Fxexpect!F80 -> 0 | K80: =+Fxexpect!G80 -> 0 | L80: =+Fxexpect!H80 -> 0
F81: =+Fxexpect!C81 -> 2025 | H81: =+Fxexpect!D81 -> 0 | I81: =+Fxexpect!E81 -> 0 | J81: =+Fxexpect!F81 -> 0 | K81: =+Fxexpect!G81 -> 0 | L81: =+Fxexpect!H81 -> 0
F82: Total - all years | H82: =+Fxexpect!D82 -> 0 | I82: =+Fxexpect!E82 -> 0 | J82: =+Fxexpect!F82 -> 0 | K82: =+Fxexpect!G82 -> 0 | L82: =+Fxexpect!H82 -> 0
C85: Secondary fractures expected and prevented for additional cases under effective treatment
F87: Year | H87: Cohort | I87: Hip fracture (inpatient) | J87: Other fracture site (inpatient) | K87: Other fracture site (outpatient) | L87: Clinical vertebral | N87: 7, 8
F88: =+Fxprevent!C98 -> 2021 | H88: =+Fxprevent!D98 -> 0 | I88: =+Fxprevent!E98 -> 0 | J88: =+Fxprevent!F98 -> 0 | K88: =+Fxprevent!G98 -> 0 | L88: =+Fxprevent!H98 -> 0
F89: =+Fxprevent!C99 -> 2022 | H89: =+Fxprevent!D99 -> 0 | I89: =+Fxprevent!E99 -> 0 | J89: =+Fxprevent!F99 -> 0 | K89: =+Fxprevent!G99 -> 0 | L89: =+Fxprevent!H99 -> 0
F90: =+Fxprevent!C100 -> 2023 | H90: =+Fxprevent!D100 -> 0 | I90: =+Fxprevent!E100 -> 0 | J90: =+Fxprevent!F100 -> 0 | K90: =+Fxprevent!G100 -> 0 | L90: =+Fxprevent!H100 -> 0
F91: =+Fxprevent!C101 -> 2024 | H91: =+Fxprevent!D101 -> 0 | I91: =+Fxprevent!E101 -> 0 | J91: =+Fxprevent!F101 -> 0 | K91: =+Fxprevent!G101 -> 0 | L91: =+Fxprevent!H101 -> 0
F92: =+Fxprevent!C102 -> 2025 | H92: =+Fxprevent!D102 -> 0 | I92: =+Fxprevent!E102 -> 0 | J92: =+Fxprevent!F102 -> 0 | K92: =+Fxprevent!G102 -> 0 | L92: =+Fxprevent!H102 -> 0
F93: Total - all years | H93: =SUM(H88:H92) -> 0 | I93: =SUM(I88:I92) -> 0 | J93: =SUM(J88:J92) -> 0 | K93: =SUM(K88:K92) -> 0 | L93: =SUM(L88:L92) -> 0
C98: Costs per fracture prevented
H99: 9 | I99: Hip fracture (inpatient) | J99: Other fracture site (inpatient) | K99: Other fracture site (outpatient) | L99: Clinical vertebral
C100: =+Fxbenefits!C34 -> Acute care | I100: =+Fxbenefits!E34 -> 7843 | J100: =+Fxbenefits!F34 -> 1768 | K100: =+Fxbenefits!G34 -> 366 | L100: =+Fxbenefits!H34 -> 1923
C101: =+Fxbenefits!C35 -> Community and primary care | I101: =+Fxbenefits!E35 -> 448 | J101: =+Fxbenefits!F35 -> 57 | K101: =+Fxbenefits!G35 -> 57 | L101: =+Fxbenefits!H35 -> 59 | M101: =+Fxbenefits!I34 -> 0
C102: =+Fxbenefits!C36 -> Social care | I102: =+Fxbenefits!E36 -> 8237 | J102: =+Fxbenefits!F36 -> 150 | K102: =+Fxbenefits!G36 -> 150 | L102: =+Fxbenefits!H36 -> 2908 | M102: =+Fxbenefits!I35 -> 0
M103: =+Fxbenefits!I36 -> 0
C104: Name of trust for MFF calculation and MFF value | H104: 10 | I104: =+IF(Fxbenefits!E26>0,Fxbenefits!E26,"Not applied") -> Base tariff | N104: =+IF(Fxbenefits!H26>0,Fxbenefits!H26,"Not applied") -> 1
C105: MFF value
C108: Financial benefits
H109: Year | I109: Hip fracture (inpatient) | J109: Other fracture site (inpatient) | K109: Other fracture site (outpatient) | L109: Clinical vertebral | N109: Total | P109: Average benefit per year
C110: Acute care | H110: =+F43 -> 2021 | I110: =+Benefits!D13 -> 0 | J110: =+Benefits!E13 -> 0 | K110: =+Benefits!F13 -> 0 | L110: =+Benefits!G13 -> 0 | N110: =+Benefits!I13 -> 0
H111: =+F44 -> 2022 | I111: =+Benefits!D14 -> 0 | J111: =+Benefits!E14 -> 0 | K111: =+Benefits!F14 -> 0 | L111: =+Benefits!G14 -> 0 | N111: =+Benefits!I14 -> 0
H112: =+F45 -> 2023 | I112: =+Benefits!D15 -> 0 | J112: =+Benefits!E15 -> 0 | K112: =+Benefits!F15 -> 0 | L112: =+Benefits!G15 -> 0 | N112: =+Benefits!I15 -> 0
H113: =+F46 -> 2024 | I113: =+Benefits!D16 -> 0 | J113: =+Benefits!E16 -> 0 | K113: =+Benefits!F16 -> 0 | L113: =+Benefits!G16 -> 0 | N113: =+Benefits!I16 -> 0
H114: =+F47 -> 2025 | I114: =+Benefits!D17 -> 0 | J114: =+Benefits!E17 -> 0 | K114: =+Benefits!F17 -> 0 | L114: =+Benefits!G17 -> 0 | N114: =+Benefits!I17 -> 0
H116: All years | I116: =+Benefits!D18 -> 0 | J116: =+Benefits!E18 -> 0 | K116: =+Benefits!F18 -> 0 | L116: =+Benefits!G18 -> 0 | N116: =+Benefits!I18 -> 0 | P116: =AVERAGE(N110:N114) -> 0
H118: Year | I118: Hip fracture (inpatient) | J118: Other fracture site (inpatient) | K118: Other fracture site (outpatient) | L118: Clinical vertebral | N118: Total | P118: Average benefit per year
C119: Community and primary care | H119: =+H110 -> 2021 | I119: =+Benefits!D33 -> 0 | J119: =+Benefits!E33 -> 0 | K119: =+Benefits!F33 -> 0 | L119: =+Benefits!G33 -> 0 | N119: =+Benefits!I33 -> 0
H120: =+H111 -> 2022 | I120: =+Benefits!D34 -> 0 | J120: =+Benefits!E34 -> 0 | K120: =+Benefits!F34 -> 0 | L120: =+Benefits!G34 -> 0 | N120: =+Benefits!I34 -> 0
H121: 2023 | I121: =+Benefits!D35 -> 0 | J121: =+Benefits!E35 -> 0 | K121: =+Benefits!F35 -> 0 | L121: =+Benefits!G35 -> 0 | N121: =+Benefits!I35 -> 0
H122: 2024 | I122: =+Benefits!D36 -> 0 | J122: =+Benefits!E36 -> 0 | K122: =+Benefits!F36 -> 0 | L122: =+Benefits!G36 -> 0 | N122: =+Benefits!I36 -> 0
H123: 2025 | I123: =+Benefits!D37 -> 0 | J123: =+Benefits!E37 -> 0 | K123: =+Benefits!F37 -> 0 | L123: =+Benefits!G37 -> 0 | N123: =+Benefits!I37 -> 0
H125: All years | I125: =+Benefits!D38 -> 0 | J125: =+Benefits!E38 -> 0 | K125: =+Benefits!F38 -> 0 | L125: =+Benefits!G38 -> 0 | N125: =+Benefits!I38 -> 0 | P125: =AVERAGE(N119:N123) -> 0
H127: Year | I127: Hip fracture (inpatient) | J127: Other fracture site (inpatient) | K127: Other fracture site (outpatient) | L127: Clinical vertebral | N127: Total | P127: Average benefit per year
C128: Social care | H128: =+H110 -> 2021 | I128: =+Benefits!D23 -> 0 | J128: =+Benefits!E23 -> 0 | K128: =+Benefits!F23 -> 0 | L128: =+Benefits!G23 -> 0 | N128: =+Benefits!I23 -> 0
H129: =+H111 -> 2022 | I129: =+Benefits!D24 -> 0 | J129: =+Benefits!E24 -> 0 | K129: =+Benefits!F24 -> 0 | L129: =+Benefits!G24 -> 0 | N129: =+Benefits!I24 -> 0
H130: 2023 | I130: =+Benefits!D25 -> 0 | J130: =+Benefits!E25 -> 0 | K130: =+Benefits!F25 -> 0 | L130: =+Benefits!G25 -> 0 | N130: =+Benefits!I25 -> 0
H131: 2024 | I131: =+Benefits!D26 -> 0 | J131: =+Benefits!E26 -> 0 | K131: =+Benefits!F26 -> 0 | L131: =+Benefits!G26 -> 0 | N131: =+Benefits!I26 -> 0
H132: 2025 | I132: =+Benefits!D27 -> 0 | J132: =+Benefits!E27 -> 0 | K132: =+Benefits!F27 -> 0 | L132: =+Benefits!G27 -> 0 | N132: =+Benefits!I27 -> 0
H133: 0
H134: All years | I134: =+Benefits!D28 -> 0 | J134: =+Benefits!E28 -> 0 | K134: =+Benefits!F28 -> 0 | L134: =+Benefits!G28 -> 0 | N134: =+Benefits!I28 -> 0 | P134: =AVERAGE(N128:N132) -> 0
H136: Year | I136: Hip fracture (inpatient) | J136: Other fracture site (inpatient) | K136: Other fracture site (outpatient) | L136: Clinical vertebral | N136: Total | P136: Average benefit per year
C137: All benefits | H137: =+H110 -> 2021 | I137: =+Benefits!D43 -> 0 | J137: =+Benefits!E43 -> 0 | K137: =+Benefits!F43 -> 0 | L137: =+Benefits!G43 -> 0 | N137: =+Benefits!I43 -> 0
H138: =+H111 -> 2022 | I138: =+Benefits!D44 -> 0 | J138: =+Benefits!E44 -> 0 | K138: =+Benefits!F44 -> 0 | L138: =+Benefits!G44 -> 0 | N138: =+Benefits!I44 -> 0
H139: 2023 | I139: =+Benefits!D45 -> 0 | J139: =+Benefits!E45 -> 0 | K139: =+Benefits!F45 -> 0 | L139: =+Benefits!G45 -> 0 | N139: =+Benefits!I45 -> 0
H140: 2024 | I140: =+Benefits!D46 -> 0 | J140: =+Benefits!E46 -> 0 | K140: =+Benefits!F46 -> 0 | L140: =+Benefits!G46 -> 0 | N140: =+Benefits!I46 -> 0
H141: 2025 | I141: =+Benefits!D47 -> 0 | J141: =+Benefits!E47 -> 0 | K141: =+Benefits!F47 -> 0 | L141: =+Benefits!G47 -> 0 | N141: =+Benefits!I47 -> 0
H142: 0
H143: All years | I143: =+Benefits!D48 -> 0 | J143: =+Benefits!E48 -> 0 | K143: =+Benefits!F48 -> 0 | L143: =+Benefits!G48 -> 0 | N143: =+Benefits!I48 -> 0 | P143: =AVERAGE(N137:N141) -> 0
C146: Using the outputs of this Calculator
B147: This Calculator provides an estimate of the benefits of findings and treating people with vertebral fragility fractures. This information has been designed to be used
B148: in a business case showing the value of implementing and running a service for 5 years. It is not an economic model and does not take into account the costs of
B149: finding and treating the cases. These must be calculated separately and set against the expected benefits.
B150: If you require information on the references for the costs used in this model please contact us at the number shown in the contact box above.

Sheet Data
A1: =+Intro!A1 -> Vertebral Fracture Benefits Calculator
A2: Raw data and information sources used in this Calculator | N2: anystring
E3: Please do not make changes to any cells on this sheet as this will affect the working of the model.
B5: Countries
B6: England | C6: =IF(ISBLANK(Population!E33),"",VLOOKUP(Population!E33,B11:C13,2,FALSE)) -> CCGandorSTP
B7: Wales | C7: WHB
B8: Scotland | C8: SHB
B9: Northern Ireland | C9: HST
B11: CCG | C11: CCG
B12: STP | C12: STP
B13: CCG and/or STP | C13: CCGandorSTP
B15: Yes
B16: No
B18: Enter total population for analysis
B19: OR CCG's/Healthboard's from the list below
B20: =Data!B18&Data!B19 -> Enter total population for analysis OR CCG's/Healthboard's from the list below
B21: ="Select 1 or more "&IF(Population!D18=Data!B6,Population!E33,VLOOKUP(Population!D18,Data!B6:C9,2,FALSE))&"'s" -> Select 1 or more CCG and/or STP's
B24: Incidence of Fractures
B25: Data Source: | C25: Epidemiology and Economic Burden of Osteoporosis in UK (Svedbom 2013) | I25: Male | J25: Male | K25: Male | L25: Male | M25: Male | N25: Male | O25: Male | P25: Male | Q25: Male | R25: Male | S25: Male | T25: Male | U25: Male | V25: Male | W25: Male | X25: Male | Y25: Male | Z25: Male | AA25: Female | AB25: Female | AC25: Female | AD25: Female | AE25: Female | AF25: Female | AG25: Female | AH25: Female | AI25: Female | AJ25: Female | AK25: Female | AL25: Female | AM25: Female | AN25: Female | AO25: Female | AP25: Female | AQ25: Female | AR25: Female
I26: 0 - 4 | J26: 5 - 9 | K26: 10 - 14 | L26: 15 - 19 | M26: 20 - 24 | N26: 25 - 29 | O26: 30 - 34 | P26: 35 - 39 | Q26: 40 - 44 | R26: 45 - 49 | S26: 50 - 54 | T26: 55 - 59 | U26: 60 - 64 | V26: 65 - 69 | W26: 70 - 74 | X26: 75 - 79 | Y26: 80 - 84 | Z26: 85 + | AA26: 0 - 4 | AB26: 5 - 9 | AC26: 10 - 14 | AD26: 15 - 19 | AE26: 20 - 24 | AF26: 25 - 29 | AG26: 30 - 34 | AH26: 35 - 39 | AI26: 40 - 44 | AJ26: 45 - 49 | AK26: 50 - 54 | AL26: 55 - 59 | AM26: 60 - 64 | AN26: 65 - 69 | AO26: 70 - 74 | AP26: 75 - 79 | AQ26: 80 - 84 | AR26: 85 +
I27: 1 | J27: 2 | K27: 3 | L27: 4 | M27: 5 | N27: 6 | O27: 7 | P27: 8 | Q27: 9 | R27: 10 | S27: 11 | T27: 12 | U27: 13 | V27: 14 | W27: 15 | X27: 16 | Y27: 17 | Z27: 18 | AA27: 1 | AB27: 2 | AC27: 3 | AD27: 4 | AE27: 5 | AF27: 6 | AG27: 7 | AH27: 8 | AI27: 9 | AJ27: 10 | AK27: 11 | AL27: 12 | AM27: 13 | AN27: 14 | AO27: 15 | AP27: 16 | AQ27: 17 | AR27: 18
C28: Clinical vertebral | S28: 115 | T28: 102 | U28: 193 | V28: 169 | W28: 269 | X28: 361 | Y28: 433 | Z28: 819 | AK28: 84 | AL28: 142 | AM28: 143 | AN28: 192 | AO28: 397 | AP28: 602 | AQ28: 777 | AR28: 1061
C29: Incidence for fractures | E29: 100000
B31: Prevalence of Fractures
B32: Data Source: | C32: Waterloo et al, Prevalence of vertebral fractures in women and men in the population-based Tromsø Study, BMC Musculo-skeletal Disorders 2013, 13:3 | I32: Male | J32: Male | K32: Male | L32: Male | M32: Male | N32: Male | O32: Male | P32: Male | Q32: Male | R32: Male | S32: Male | T32: Male | U32: Male | V32: Male | W32: Male | X32: Male | Y32: Male | Z32: Male | AA32: Female | AB32: Female | AC32: Female | AD32: Female | AE32: Female | AF32: Female | AG32: Female | AH32: Female | AI32: Female | AJ32: Female | AK32: Female | AL32: Female | AM32: Female | AN32: Female | AO32: Female | AP32: Female | AQ32: Female | AR32: Female
I33: 0 - 4 | J33: 5 - 9 | K33: 10 - 14 | L33: 15 - 19 | M33: 20 - 24 | N33: 25 - 29 | O33: 30 - 34 | P33: 35 - 39 | Q33: 40 - 44 | R33: 45 - 49 | S33: 50 - 54 | T33: 55 - 59 | U33: 60 - 64 | V33: 65 - 69 | W33: 70 - 74 | X33: 75 - 79 | Y33: 80 - 84 | Z33: 85 + | AA33: 0 - 4 | AB33: 5 - 9 | AC33: 10 - 14 | AD33: 15 - 19 | AE33: 20 - 24 | AF33: 25 - 29 | AG33: 30 - 34 | AH33: 35 - 39 | AI33: 40 - 44 | AJ33: 45 - 49 | AK33: 50 - 54 | AL33: 55 - 59 | AM33: 60 - 64 | AN33: 65 - 69 | AO33: 70 - 74 | AP33: 75 - 79 | AQ33: 80 - 84 | AR33: 85 +
I34: 1 | J34: 2 | K34: 3 | L34: 4 | M34: 5 | N34: 6 | O34: 7 | P34: 8 | Q34: 9 | R34: 10 | S34: 11 | T34: 12 | U34: 13 | V34: 14 | W34: 15 | X34: 16 | Y34: 17 | Z34: 18 | AA34: 1 | AB34: 2 | AC34: 3 | AD34: 4 | AE34: 5 | AF34: 6 | AG34: 7 | AH34: 8 | AI34: 9 | AJ34: 10 | AK34: 11 | AL34: 12 | AM34: 13 | AN34: 14 | AO34: 15 | AP34: 16 | AQ34: 17 | AR34: 18
C35: Clinical vertebral | S35: =+References!E43 -> 7600 | T35: =+References!F43 -> 7600 | U35: =+References!G43 -> 11900 | V35: =+References!H43 -> 11900 | W35: =+References!I43 -> 20300 | X35: =+References!J43 -> 20300 | Y35: =+References!K43 -> 20300 | Z35: =+References!L43 -> 20300 | AK35: =+References!E44 -> 3400 | AL35: =+References!F44 -> 3400 | AM35: =+References!G44 -> 11100 | AN35: =+References!H44 -> 11100 | AO35: =+References!I44 -> 19200 | AP35: =+References!J44 -> 19200 | AQ35: =+References!K44 -> 19200 | AR35: =+References!L44 -> 19200
C36: Prevalence for fractures | E36: 100000
B38: Population by age/gender
B39: Calculation: | C39: Calculates cohort population based on user selection of age/gender and Country or CCG's/Health Boards | I39: =+I25 -> Male | J39: Male | K39: Male | L39: Male | M39: Male | N39: Male | O39: Male | P39: Male | Q39: Male | R39: Male | S39: Male | T39: Male | U39: Male | V39: Male | W39: Male | X39: Male | Y39: Male | Z39: Male | AA39: Female | AB39: Female | AC39: Female | AD39: Female | AE39: Female | AF39: Female | AG39: Female | AH39: Female | AI39: Female | AJ39: Female | AK39: Female | AL39: Female | AM39: Female | AN39: Female | AO39: Female | AP39: Female | AQ39: Female | AR39: Female
D40: 3 | I40: =+I26 -> 0 - 4 | J40: 5 - 9 | K40: 10 - 14 | L40: 15 - 19 | M40: 20 - 24 | N40: 25 - 29 | O40: 30 - 34 | P40: 35 - 39 | Q40: 40 - 44 | R40: 45 - 49 | S40: 50 - 54 | T40: 55 - 59 | U40: 60 - 64 | V40: 65 - 69 | W40: 70 - 74 | X40: 75 - 79 | Y40: 80 - 84 | Z40: 85 + | AA40: 0 - 4 | AB40: 5 - 9 | AC40: 10 - 14 | AD40: 15 - 19 | AE40: 20 - 24 | AF40: 25 - 29 | AG40: 30 - 34 | AH40: 35 - 39 | AI40: 40 - 44 | AJ40: 45 - 49 | AK40: 50 - 54 | AL40: 55 - 59 | AM40: 60 - 64 | AN40: 65 - 69 | AO40: 70 - 74 | AP40: 75 - 79 | AQ40: 80 - 84 | AR40: 85 +
D41: Population proportion | F41: Male | G41: Female | H41: Total | I41: 7 | J41: =+I41+1 -> 8 | K41: =+J41+1 -> 9 | L41: 10 | M41: 11 | N41: 12 | O41: 13 | P41: 14 | Q41: 15 | R41: 16 | S41: 17 | T41: 18 | U41: 19 | V41: 20 | W41: 21 | X41: 22 | Y41: 23 | Z41: 24 | AA41: =+Z41+1 -> 25 | AB41: =+AA41+1 -> 26 | AC41: =+AB41+1 -> 27 | AD41: =+AC41+1 -> 28 | AE41: =+AD41+1 -> 29 | AF41: =+AE41+1 -> 30 | AG41: =+AF41+1 -> 31 | AH41: =+AG41+1 -> 32 | AI41: =+AH41+1 -> 33 | AJ41: =+AI41+1 -> 34 | AK41: =+AJ41+1 -> 35 | AL41: =+AK41+1 -> 36 | AM41: =+AL41+1 -> 37 | AN41: =+AM41+1 -> 38 | AO41: =+AN41+1 -> 39 | AP41: =+AO41+1 -> 40 | AQ41: =+AP41+1 -> 41 | AR41: =+AQ41+1 -> 42
C42: =IF(ISBLANK(Population!C38),"",Population!C38) ->  | D42: =IF(ISNA(VLOOKUP(C42,Population!C$38:E$47,D$40,FALSE)),0,IF(ISBLANK(Population!E38),1,(VLOOKUP(C42,Population!C$38:E$47,D$40,FALSE)))) -> 0 | I42: =IF($C42="",0,VLOOKUP($C42,$C$98:$AR$416,I$41,FALSE)*I$94*$D42) -> 0 | J42: 0 | K42: 0 | L42: 0 | M42: 0 | N42: 0 | O42: 0 | P42: 0 | Q42: 0 | R42: 0 | S42: =IF($C42="",0,VLOOKUP($C42,$C$98:$AR$416,S$41,FALSE)*S$94*$D42) -> 0 | T42: =IF($C42="",0,VLOOKUP($C42,$C$98:$AR$416,T$41,FALSE)*T$94*$D42) -> 0 | U42: 0 | V42: 0 | W42: 0 | X42: 0 | Y42: 0 | Z42: 0 | AA42: 0 | AB42: 0 | AC42: =IF($C42="",0,VLOOKUP($C42,$C$98:$AR$416,AC$41,FALSE)*AC$94*$D42) -> 0 | AD42: 0 | AE42: 0 | AF42: 0 | AG42: 0 | AH42: 0 | AI42: 0 | AJ42: 0 | AK42: 0 | AL42: 0 | AM42: =IF($C42="",0,VLOOKUP($C42,$C$98:$AR$416,AM$41,FALSE)*AM$94*$D42) -> 0 | AN42: 0 | AO42: 0 | AP42: 0 | AQ42: 0 | AR42: 0
C43: =IF(ISBLANK(Population!C39),"",Population!C39) ->  | D43: =IF(ISNA(VLOOKUP(C43,Population!C$38:E$47,D$40,FALSE)),0,IF(ISBLANK(Population!E39),1,(VLOOKUP(C43,Population!C$38:E$47,D$40,FALSE)))) -> 0 | I43: 0 | J43: 0 | K43: 0 | L43: 0 | M43: 0 | N43: 0 | O43: 0 | P43: 0 | Q43: 0 | R43: 0 | S43: 0 | T43: 0 | U43: 0 | V43: 0 | W43: 0 | X43: 0 | Y43: 0 | Z43: 0 | AA43: 0 | AB43: 0 | AC43: 0 | AD43: 0 | AE43: 0 | AF43: 0 | AG43: 0 | AH43: 0 | AI43: 0 | AJ43: 0 | AK43: 0 | AL43: 0 | AM43: 0 | AN43: 0 | AO43: 0 | AP43: 0 | AQ43: 0 | AR43: 0
C44: =IF(ISBLANK(Population!C40),"",Population!C40) ->  | D44: =IF(ISNA(VLOOKUP(C44,Population!C$38:E$47,D$40,FALSE)),0,IF(ISBLANK(Population!E40),1,(VLOOKUP(C44,Population!C$38:E$47,D$40,FALSE)))) -> 0 | I44: 0 | J44: 0 | K44: 0 | L44: 0 | M44: 0 | N44: 0 | O44: 0 | P44: 0 | Q44: 0 | R44: 0 | S44: 0 | T44: 0 | U44: 0 | V44: 0 | W44: 0 | X44: 0 | Y44: 0 | Z44: 0 | AA44: 0 | AB44: 0 | AC44: 0 | AD44: 0 | AE44: 0 | AF44: 0 | AG44: 0 | AH44: 0 | AI44: 0 | AJ44: 0 | AK44: 0 | AL44: 0 | AM44: 0 | AN44: 0 | AO44: 0 | AP44: 0 | AQ44: 0 | AR44: 0
C45: =IF(ISBLANK(Population!C41),"",Population!C41) ->  | D45: =IF(ISNA(VLOOKUP(C45,Population!C$38:E$47,D$40,FALSE)),0,IF(ISBLANK(Population!E41),1,(VLOOKUP(C45,Population!C$38:E$47,D$40,FALSE)))) -> 0 | I45: 0 | J45: 0 | K45: 0 | L45: 0 | M45: 0 | N45: 0 | O45: 0 | P45: 0 | Q45: 0 | R45: 0 | S45: 0 | T45: 0 | U45: 0 | V45: 0 | W45: 0 | X45: 0 | Y45: 0 | Z45: 0 | AA45: 0 | AB45: 0 | AC45: 0 | AD45: 0 | AE45: 0 | AF45: 0 | AG45: 0 | AH45: 0 | AI45: 0 | AJ45: 0 | AK45: 0 | AL45: 0 | AM45: 0 | AN45: 0 | AO45: 0 | AP45: 0 | AQ45: 0 | AR45: 0
C46: =IF(ISBLANK(Population!C42),"",Population!C42) ->  | D46: =IF(ISNA(VLOOKUP(C46,Population!C$38:E$47,D$40,FALSE)),0,IF(ISBLANK(Population!E42),1,(VLOOKUP(C46,Population!C$38:E$47,D$40,FALSE)))) -> 0 | I46: 0 | J46: 0 | K46: 0 | L46: 0 | M46: 0 | N46: 0 | O46: 0 | P46: 0 | Q46: 0 | R46: 0 | S46: 0 | T46: 0 | U46: 0 | V46: 0 | W46: 0 | X46: 0 | Y46: 0 | Z46: 0 | AA46: 0 | AB46: 0 | AC46: 0 | AD46: 0 | AE46: 0 | AF46: 0 | AG46: 0 | AH46: 0 | AI46: 0 | AJ46: 0 | AK46: 0 | AL46: 0 | AM46: 0 | AN46: 0 | AO46: 0 | AP46: 0 | AQ46: 0 | AR46: 0
C47: =IF(ISBLANK(Population!C43),"",Population!C43) ->  | D47: =IF(ISNA(VLOOKUP(C47,Population!C$38:E$47,D$40,FALSE)),0,IF(ISBLANK(Population!E43),1,(VLOOKUP(C47,Population!C$38:E$47,D$40,FALSE)))) -> 0 | I47: 0 | J47: 0 | K47: 0 | L47: 0 | M47: 0 | N47: 0 | O47: 0 | P47: 0 | Q47: 0 | R47: 0 | S47: 0 | T47: 0 | U47: 0 | V47: 0 | W47: 0 | X47: 0 | Y47: 0 | Z47: 0 | AA47: 0 | AB47: 0 | AC47: 0 | AD47: 0 | AE47: 0 | AF47: 0 | AG47: 0 | AH47: 0 | AI47: 0 | AJ47: 0 | AK47: 0 | AL47: 0 | AM47: 0 | AN47: 0 | AO47: 0 | AP47: 0 | AQ47: 0 | AR47: 0
C48: =IF(ISBLANK(Population!C44),"",Population!C44) ->  | D48: =IF(ISNA(VLOOKUP(C48,Population!C$38:E$47,D$40,FALSE)),0,IF(ISBLANK(Population!E44),1,(VLOOKUP(C48,Population!C$38:E$47,D$40,FALSE)))) -> 0 | I48: 0 | J48: 0 | K48: 0 | L48: 0 | M48: 0 | N48: 0 | O48: 0 | P48: 0 | Q48: 0 | R48: 0 | S48: 0 | T48: 0 | U48: 0 | V48: 0 | W48: 0 | X48: 0 | Y48: 0 | Z48: 0 | AA48: 0 | AB48: 0 | AC48: 0 | AD48: 0 | AE48: 0 | AF48: 0 | AG48: 0 | AH48: 0 | AI48: 0 | AJ48: 0 | AK48: 0 | AL48: 0 | AM48: 0 | AN48: 0 | AO48: 0 | AP48: 0 | AQ48: 0 | AR48: 0
C49: =IF(ISBLANK(Population!C45),"",Population!C45) ->  | D49: =IF(ISNA(VLOOKUP(C49,Population!C$38:E$47,D$40,FALSE)),0,IF(ISBLANK(Population!E45),1,(VLOOKUP(C49,Population!C$38:E$47,D$40,FALSE)))) -> 0 | I49: 0 | J49: 0 | K49: 0 | L49: 0 | M49: 0 | N49: 0 | O49: 0 | P49: 0 | Q49: 0 | R49: 0 | S49: 0 | T49: 0 | U49: 0 | V49: 0 | W49: 0 | X49: 0 | Y49: 0 | Z49: 0 | AA49: 0 | AB49: 0 | AC49: 0 | AD49: 0 | AE49: 0 | AF49: 0 | AG49: 0 | AH49: 0 | AI49: 0 | AJ49: 0 | AK49: 0 | AL49: 0 | AM49: 0 | AN49: 0 | AO49: 0 | AP49: 0 | AQ49: 0 | AR49: 0
C50: =IF(ISBLANK(Population!C46),"",Population!C46) ->  | D50: =IF(ISNA(VLOOKUP(C50,Population!C$38:E$47,D$40,FALSE)),0,IF(ISBLANK(Population!E46),1,(VLOOKUP(C50,Population!C$38:E$47,D$40,FALSE)))) -> 0 | I50: 0 | J50: 0 | K50: 0 | L50: 0 | M50: 0 | N50: 0 | O50: 0 | P50: 0 | Q50: 0 | R50: 0 | S50: 0 | T50: 0 | U50: 0 | V50: 0 | W50: 0 | X50: 0 | Y50: 0 | Z50: 0 | AA50: 0 | AB50: 0 | AC50: 0 | AD50: 0 | AE50: 0 | AF50: 0 | AG50: 0 | AH50: 0 | AI50: 0 | AJ50: 0 | AK50: 0 | AL50: 0 | AM50: 0 | AN50: 0 | AO50: 0 | AP50: 0 | AQ50: 0 | AR50: 0
C51: =IF(ISBLANK(Population!C47),"",Population!C47) ->  | D51: =IF(ISNA(VLOOKUP(C51,Population!C$38:E$47,D$40,FALSE)),0,IF(ISBLANK(Population!E47),1,(VLOOKUP(C51,Population!C$38:E$47,D$40,FALSE)))) -> 0 | I51: 0 | J51: 0 | K51: 0 | L51: 0 | M51: 0 | N51: 0 | O51: 0 | P51: 0 | Q51: 0 | R51: 0 | S51: 0 | T51: 0 | U51: 0 | V51: 0 | W51: 0 | X51: 0 | Y51: 0 | Z51: 0 | AA51: 0 | AB51: 0 | AC51: 0 | AD51: 0 | AE51: 0 | AF51: 0 | AG51: 0 | AH51: 0 | AI51: 0 | AJ51: 0 | AK51: 0 | AL51: 0 | AM51: 0 | AN51: 0 | AO51: 0 | AP51: 0 | AQ51: 0 | AR51: 0
C52: Total cohort population | F52: =SUM(I52:Z52) -> 0 | G52: =SUM(AA52:AR52) -> 0 | H52: =+F52+G52 -> 0 | I52: =SUM(I42:I51) -> 0 | J52: 0 | K52: 0 | L52: 0 | M52: 0 | N52: 0 | O52: 0 | P52: 0 | Q52: 0 | R52: 0 | S52: 0 | T52: 0 | U52: 0 | V52: 0 | W52: 0 | X52: 0 | Y52: 0 | Z52: 0 | AA52: 0 | AB52: 0 | AC52: 0 | AD52: 0 | AE52: 0 | AF52: 0 | AG52: 0 | AH52: 0 | AI52: 0 | AJ52: 0 | AK52: 0 | AL52: 0 | AM52: 0 | AN52: 0 | AO52: 0 | AP52: 0 | AQ52: 0 | AR52: 0
F53: =IF(H52=0,0,F52/H52) -> 0 | G53: =IF(H52=0,0,G52/H52) -> 0
B56: Number of fractures within population cohort (INCIDENCE)
B57: Calculation: | C57: Calculates number of expected fractures from cohort population | I57: =+I25 -> Male | J57: Male | K57: Male | L57: Male | M57: Male | N57: Male | O57: Male | P57: Male | Q57: Male | R57: Male | S57: Male | T57: Male | U57: Male | V57: Male | W57: Male | X57: Male | Y57: Male | Z57: Male | AA57: Female | AB57: Female | AC57: Female | AD57: Female | AE57: Female | AF57: Female | AG57: Female | AH57: Female | AI57: Female | AJ57: Female | AK57: Female | AL57: Female | AM57: Female | AN57: Female | AO57: Female | AP57: Female | AQ57: Female | AR57: Female
D58: Fractures in population cohort | I58: =+I26 -> 0 - 4 | J58: 5 - 9 | K58: 10 - 14 | L58: 15 - 19 | M58: 20 - 24 | N58: 25 - 29 | O58: 30 - 34 | P58: 35 - 39 | Q58: 40 - 44 | R58: 45 - 49 | S58: 50 - 54 | T58: 55 - 59 | U58: 60 - 64 | V58: 65 - 69 | W58: 70 - 74 | X58: 75 - 79 | Y58: 80 - 84 | Z58: 85 + | AA58: 0 - 4 | AB58: 5 - 9 | AC58: 10 - 14 | AD58: 15 - 19 | AE58: 20 - 24 | AF58: 25 - 29 | AG58: 30 - 34 | AH58: 35 - 39 | AI58: 40 - 44 | AJ58: 45 - 49 | AK58: 50 - 54 | AL58: 55 - 59 | AM58: 60 - 64 | AN58: 65 - 69 | AO58: 70 - 74 | AP58: 75 - 79 | AQ58: 80 - 84 | AR58: 85 +
C59: =+C28 -> Clinical vertebral | D59: =SUM(I59:AR59) -> 0 | I59: =ROUND(I28/$E$29*I$52,0) -> 0 | J59: 0 | K59: 0 | L59: 0 | M59: 0 | N59: 0 | O59: 0 | P59: 0 | Q59: 0 | R59: 0 | S59: 0 | T59: 0 | U59: 0 | V59: 0 | W59: 0 | X59: 0 | Y59: 0 | Z59: 0 | AA59: 0 | AB59: 0 | AC59: 0 | AD59: 0 | AE59: 0 | AF59: 0 | AG59: 0 | AH59: 0 | AI59: 0 | AJ59: 0 | AK59: 0 | AL59: 0 | AM59: 0 | AN59: 0 | AO59: 0 | AP59: 0 | AQ59: 0 | AR59: 0
B62: Number of fractures within population cohort (PREVALENCE)
B63: Calculation: | C63: Waterloo et al, Prevalence of vertebral fractures in women and men in the population-based Tromsø Study, BMC Musculo-skeletal Disorders 2013, 13:3 | I63: =+I25 -> Male | J63: =+J25 -> Male | K63: Male | L63: Male | M63: Male | N63: Male | O63: Male | P63: Male | Q63: Male | R63: Male | S63: Male | T63: Male | U63: Male | V63: Male | W63: Male | X63: Male | Y63: Male | Z63: Male | AA63: Female | AB63: Female | AC63: Female | AD63: Female | AE63: Female | AF63: Female | AG63: Female | AH63: Female | AI63: Female | AJ63: Female | AK63: Female | AL63: Female | AM63: Female | AN63: Female | AO63: Female | AP63: Female | AQ63: Female | AR63: Female
D64: Fractures in population cohort | I64: =+I26 -> 0 - 4 | J64: =+J26 -> 5 - 9 | K64: 10 - 14 | L64: 15 - 19 | M64: 20 - 24 | N64: 25 - 29 | O64: 30 - 34 | P64: 35 - 39 | Q64: 40 - 44 | R64: 45 - 49 | S64: 50 - 54 | T64: 55 - 59 | U64: 60 - 64 | V64: 65 - 69 | W64: 70 - 74 | X64: 75 - 79 | Y64: 80 - 84 | Z64: 85 + | AA64: 0 - 4 | AB64: 5 - 9 | AC64: 10 - 14 | AD64: 15 - 19 | AE64: 20 - 24 | AF64: 25 - 29 | AG64: 30 - 34 | AH64: 35 - 39 | AI64: 40 - 44 | AJ64: 45 - 49 | AK64: 50 - 54 | AL64: 55 - 59 | AM64: 60 - 64 | AN64: 65 - 69 | AO64: 70 - 74 | AP64: 75 - 79 | AQ64: 80 - 84 | AR64: 85 +
C65: =C28 -> Clinical vertebral | D65: =SUM(I65:AR65) -> 0 | I65: =ROUND(I35/$E$36*I$52,0) -> 0 | J65: =ROUND(J35/$E$36*J$52,0) -> 0 | K65: 0 | L65: 0 | M65: 0 | N65: 0 | O65: 0 | P65: 0 | Q65: 0 | R65: 0 | S65: 0 | T65: 0 | U65: 0 | V65: 0 | W65: 0 | X65: 0 | Y65: 0 | Z65: 0 | AA65: 0 | AB65: 0 | AC65: 0 | AD65: 0 | AE65: 0 | AF65: 0 | AG65: 0 | AH65: 0 | AI65: 0 | AJ65: 0 | AK65: 0 | AL65: 0 | AM65: 0 | AN65: 0 | AO65: 0 | AP65: 0 | AQ65: 0 | AR65: 0
B71: Mortality
B72: Source | C72: Epidemiology and Economic Burden of Osteoporosis in UK (Svedbom 2013), P214 table 7
B73: Calculation: | C73: Causally related deaths per 100,000 people first year after clinical vertebral fracture | I73: =+I37 -> 0 | J73: 0 | K73: 0 | L73: 0 | M73: 0 | N73: 0 | O73: 0 | P73: 0 | Q73: 0 | R73: 0 | S73: 1918 | T73: 2172 | U73: 2357 | V73: 2801 | W73: 3381 | X73: 4059 | Y73: 4571 | Z73: =5386+6533 -> 11919 | AA73: =+AA37 -> 0 | AB73: 0 | AC73: 0 | AD73: 0 | AE73: 0 | AF73: 0 | AG73: 0 | AH73: 0 | AI73: 0 | AJ73: 0 | AK73: 867 | AL73: 1014 | AM73: 1313 | AN73: 1760 | AO73: 2264 | AP73: 2772 | AQ73: 2536 | AR73: =2583+1634 -> 4217
C74: Rate of deaths per 100,000 | D74: Annual mortality in cohort | I74: =+I73/100000 -> 0 | J74: 0 | K74: 0 | L74: 0 | M74: 0 | N74: 0 | O74: 0 | P74: 0 | Q74: 0 | R74: 0 | S74: 0.01918 | T74: 0.02172 | U74: 0.02357 | V74: 0.02801 | W74: 0.03381 | X74: 0.04059 | Y74: 0.04571 | Z74: 0.11919 | AA74: 0 | AB74: 0 | AC74: 0 | AD74: 0 | AE74: 0 | AF74: 0 | AG74: 0 | AH74: 0 | AI74: 0 | AJ74: 0 | AK74: 0.00867 | AL74: 0.01014 | AM74: 0.01313 | AN74: 0.0176 | AO74: 0.02264 | AP74: 0.02772 | AQ74: 0.02536 | AR74: =+AR73/100000 -> 0.04217
C75: Deaths in selected cohort | D75: =SUM(I75:AR75) -> 0 | I75: =+I59*I74 -> 0 | J75: =+J59*J74 -> 0 | K75: 0 | L75: 0 | M75: 0 | N75: 0 | O75: 0 | P75: 0 | Q75: 0 | R75: 0 | S75: 0 | T75: 0 | U75: 0 | V75: 0 | W75: 0 | X75: 0 | Y75: 0 | Z75: 0 | AA75: 0 | AB75: 0 | AC75: 0 | AD75: 0 | AE75: 0 | AF75: 0 | AG75: 0 | AH75: 0 | AI75: 0 | AJ75: 0 | AK75: 0 | AL75: 0 | AM75: 0 | AN75: 0 | AO75: 0 | AP75: 0 | AQ75: 0 | AR75: 0
B79: Populations in England, Wales, Scotland & Northern Ireland | AT79: Populations growth for year 1 (age 50+)
B80: Data Sources: | C80: 1 - ONS - MYE2_population_by_sex_and_age_for_local_authorities_UK_2015 | AT80: Data Source: | AU80: 1 - https://www.nrscotland.gov.uk/statistics-and-data/statistics/statistics-by-theme/population/population-projections/population-projections-scotland/2014-based/list-of-tables | BR80: ="<="&Population!F53 -> <=2021
C81: 2 - NHS Digital - Numbers of Patients Registered at a GP Practice - Sept 18 | AU81: 2 - http://www.nisra.gov.uk/demography/default.asp20.htm (projections by sex & single Year 2014) | BR81: 24 | BS81: 25
C82: 3 - National Records of Scotland - Mid Year Population Estimates. (http://www.nrscotland.gov.uk/statistics-and-data/statistics/statistics-by-theme/population/population-estimates/mid-year-population-estimates/mid-2015) | I82: =+I25 -> Male | J82: Male | K82: Male | L82: Male | M82: Male | N82: Male | O82: Male | P82: Male | Q82: Male | R82: Male | S82: Male | T82: Male | U82: Male | V82: Male | W82: Male | X82: Male | Y82: Male | Z82: Male | AA82: Female | AB82: Female | AC82: Female | AD82: Female | AE82: Female | AF82: Female | AG82: Female | AH82: Female | AI82: Female | AJ82: Female | AK82: Female | AL82: Female | AM82: Female | AN82: Female | AO82: Female | AP82: Female | AQ82: Female | AR82: Female | AV82: =+I82 -> Male | AW82: =+J82 -> Male | AX82: Male | AY82: Male | AZ82: Male | BA82: Male | BB82: Male | BC82: Male | BD82: Male | BE82: Male | BF82: Male | BG82: =+AA82 -> Female | BH82: =+AB82 -> Female | BI82: Female | BJ82: Female | BK82: Female | BL82: Female | BM82: Female | BN82: Female | BO82: Female | BP82: Female | BQ82: Female
B83: Source | D83: Total Population | E83: Proportion of total population | F83: Male | G83: Female | H83: Total | I83: =+I26 -> 0 - 4 | J83: 5 - 9 | K83: 10 - 14 | L83: 15 - 19 | M83: 20 - 24 | N83: 25 - 29 | O83: 30 - 34 | P83: 35 - 39 | Q83: 40 - 44 | R83: 45 - 49 | S83: 50 - 54 | T83: 55 - 59 | U83: 60 - 64 | V83: 65 - 69 | W83: 70 - 74 | X83: 75 - 79 | Y83: 80 - 84 | Z83: 85 + | AA83: 0 - 4 | AB83: 5 - 9 | AC83: 10 - 14 | AD83: 15 - 19 | AE83: 20 - 24 | AF83: 25 - 29 | AG83: 30 - 34 | AH83: 35 - 39 | AI83: 40 - 44 | AJ83: 45 - 49 | AK83: 50 - 54 | AL83: 55 - 59 | AM83: 60 - 64 | AN83: 65 - 69 | AO83: 70 - 74 | AP83: 75 - 79 | AQ83: 80 - 84 | AR83: 85 + | AT83: Source | AV83: =+AV94 -> 2015 | AW83: =+AW94 -> 2016 | AX83: 2017 | AY83: 2018 | AZ83: 2019 | BA83: =+BA94 -> 2020 | BB83: 2021 | BC83: 2022 | BD83: 2023 | BE83: 2024 | BF83: 2025 | BG83: =+BG94 -> 2015 | BH83: =+BH94 -> 2016 | BI83: 2017 | BJ83: 2018 | BK83: =+BK94 -> 2019 | BL83: 2020 | BM83: 2021 | BN83: 2022 | BO83: 2023 | BP83: 2024 | BQ83: 2025 | BR83: =+AV82 -> Male | BS83: =+BG82 -> Female
B84: 2 | C84: =+B6 -> England | D84: =SUM(I84:AR84) -> 59297331 | E84: =H84/D84 -> 0.3612527181 | F84: =SUMIF(I$94:Z$94,TRUE,I84:Z84) -> 10370920 | G84: =SUMIF(AA$94:AR$94,TRUE,AA84:AR84) -> 11050402 | H84: =+F84+G84 -> 21421322 | I84: =SUM(I141:I335) -> 1679056 | J84: 1832863 | K84: 1733678 | L84: 1632381 | M84: 1841848 | N84: 2106052 | O84: 2195442 | P84: 2161215 | Q84: 1947778 | R84: 2100931 | S84: 2124353 | T84: 1916408 | U84: 1580947 | V84: 1404716 | W84: 1333237 | X84: 880248 | Y84: 627232 | Z84: 503779 | AA84: 1595641 | AB84: 1744401 | AC84: 1653773 | AD84: 1566639 | AE84: 1906664 | AF84: 2138632 | AG84: 2179492 | AH84: 2059111 | AI84: 1815155 | AJ84: 1985257 | AK84: 2034132 | AL84: 1858791 | AM84: 1575585 | AN84: 1465899 | AO84: 1438228 | AP84: 1015072 | AQ84: 794392 | AR84: 868303 | AU84: =+C84 -> England | AV84: 0 | AW84: 0 | AX84: 0 | AY84: =AY336 -> 0.01729443303 | AZ84: =AZ336 -> 0.01671332041 | BA84: 0.01536956544 | BB84: 0.01563353562 | BC84: 0.01426825094 | BD84: 0.0119173882 | BE84: 0.01065269176 | BF84: 0.009361918769 | BG84: 0 | BH84: 0 | BI84: 0 | BJ84: =BJ336 -> 0.01550431408 | BK84: 0.01477599481 | BL84: 0.01414038006 | BM84: 0.01430374042 | BN84: 0.0130623706 | BO84: 0.01116598104 | BP84: 0.009758848022 | BQ84: 0.009071775267 | BR84: =SUMIF(AV$83:BF$83,BR$80,AV84:BF84) -> 0.0650108545 | BS84: =SUMIF(BH$83:BQ$83,BR$80,BH84:BQ84) -> 0.05872442937
B85: 1 | C85: =+B7 -> Wales | D85: =SUM(I85:AR85) -> 3099086 | E85: =H85/D85 -> 0.3957705594 | F85: =SUMIF(I$94:Z$94,TRUE,I85:Z85) -> 579679 | G85: =SUMIF(AA$94:AR$94,TRUE,AA85:AR85) -> 646848 | H85: =+F85+G85 -> 1226527 | I85: =SUM(I388:I416)/2 -> 90078 | J85: =SUM(J388:J416)/2 -> 92156 | K85: 84755 | L85: 95847 | M85: 110609 | N85: 99318 | O85: 90712 | P85: 84687 | Q85: 93073 | R85: 104647 | S85: 107634 | T85: 96391 | U85: 90266 | V85: 95762 | W85: 72385 | X85: 53621 | Y85: 36258 | Z85: 27362 | AA85: 85844 | AB85: 87647 | AC85: 80198 | AD85: 90144 | AE85: 103605 | AF85: 95737 | AG85: 91253 | AH85: 85988 | AI85: 96809 | AJ85: 109452 | AK85: 112023 | AL85: 100784 | AM85: 94656 | AN85: 99924 | AO85: 78026 | AP85: 61820 | AQ85: 47676 | AR85: 51939 | AU85: =+C85 -> Wales | AV85: 0 | AW85: =AW417 -> 0.0139 | AX85: 0.0137 | AY85: =AY417 -> 0.0123 | AZ85: =AZ417 -> 0.0125 | BA85: 0.0105 | BB85: 0.0109 | BC85: 0.0094 | BD85: 0.007 | BE85: 0.005 | BF85: 0.0041 | BG85: 0 | BH85: 0.0126 | BI85: 0.0126 | BJ85: 0.0117 | BK85: 0.0119 | BL85: 0.0103 | BM85: 0.0111 | BN85: 0.0091 | BO85: 0.0072 | BP85: 0.0055 | BQ85: 0.0044 | BR85: =SUMIF(AV$83:BF$83,BR$80,AV85:BF85) -> 0.0738 | BS85: =SUMIF(BH$83:BQ$83,BR$80,BH85:BQ85) -> 0.0702
B86: 3 | C86: =+B8 -> Scotland | D86: =SUM(I86:AR86) -> 5373000 | E86: =H86/D86 -> 0.3849076866 | F86: =SUMIF(I$94:Z$94,TRUE,I86:Z86) -> 964221 | G86: =SUMIF(AA$94:AR$94,TRUE,AA86:AR86) -> 1103888 | H86: 2068109 | I86: =SUM(I347:I360) -> 149284 | J86: =SUM(J347:J360) -> 148894 | K86: 139159 | L86: 155767 | M86: 183161 | N86: 180793 | O86: 170000 | P86: 157465 | Q86: 170160 | R86: 191565 | S86: 197222 | T86: 177071 | U86: 154247 | V86: 151487 | W86: 107922 | X86: 82703 | Y86: 55020 | Z86: 38549 | AA86: 141890 | AB86: 143462 | AC86: 132983 | AD86: 148216 | AE86: 184509 | AF86: 183093 | AG86: 177900 | AH86: 162672 | AI86: 179665 | AJ86: 204253 | AK86: 208071 | AL86: 185749 | AM86: 162751 | AN86: 161468 | AO86: 124404 | AP86: 104866 | AQ86: 79321 | AR86: 77258 | AT86: 1 | AU86: =+C86 -> Scotland | AV86: 0 | AW86: 0.0162 | AX86: 0.0163 | AY86: 0.0151 | AZ86: 0.014 | BA86: 0.0123 | BB86: 0.0122 | BC86: 0.0108 | BD86: 0.0089 | BE86: 0.007 | BF86: 0.006 | BG86: 0 | BH86: 0.0138 | BI86: 0.0135 | BJ86: 0.0135 | BK86: 0.0125 | BL86: 0.0111 | BM86: 0.0114 | BN86: 0.0098 | BO86: 0.0074 | BP86: 0.0055 | BQ86: 0.0052 | BR86: =SUMIF(AV$83:BF$83,BR$80,AV86:BF86) -> 0.0861 | BS86: 0.0758
B87: 1 | C87: =+B9 -> Northern Ireland | D87: =SUM(I87:AR87) -> 1851621 | E87: =H87/D87 -> 0.3395046827 | F87: =SUMIF(I$94:Z$94,TRUE,I87:Z87) -> 296638 | G87: =SUMIF(AA$94:AR$94,TRUE,AA87:AR87) -> 331996 | H87: 628634 | I87: =SUM(I372:I376) -> 63979 | J87: =SUM(J372:J376) -> 63979 | K87: =SUM(K372:K376) -> 57391 | L87: 62141 | M87: 61485 | N87: 61712 | O87: 60495 | P87: 56785 | Q87: 60167 | R87: 64357 | S87: 63711 | T87: 55493 | U87: 47426 | V87: 42915 | W87: 34827 | X87: 24630 | Y87: 16036 | Z87: 11600 | AA87: 61337 | AB87: 60845 | AC87: 54470 | AD87: 58469 | AE87: 59057 | AF87: 62613 | AG87: 63135 | AH87: 60423 | AI87: 63036 | AJ87: 67111 | AK87: 65676 | AL87: 56852 | AM87: 47652 | AN87: 45898 | AO87: 38979 | AP87: 30181 | AQ87: 22898 | AR87: 23860 | AT87: 2 | AU87: =+C87 -> Northern Ireland | AV87: 0 | AW87: 0.0227 | AX87: 0.0216 | AY87: 0.0211 | AZ87: 0.0193 | BA87: 0.0181 | BB87: 0.0173 | BC87: 0.0163 | BD87: 0.0151 | BE87: 0.0131 | BF87: 0.0119 | BG87: 0 | BH87: 0.0197 | BI87: 0.0193 | BJ87: 0.0188 | BK87: 0.0179 | BL87: 0.017 | BM87: 0.0167 | BN87: 0.0151 | BO87: 0.0144 | BP87: 0.0131 | BQ87: 0.0116 | BR87: 0.0116 | BS87: 0.1094
B90: CCG & STP Populations in England | AU90: CCG Population Projections in England
B91: Data Source: | C91: NHS Digital - Numbers of Patients Registered at a GP Practice - Sep 18 | D91: Data source is for CCG populations. STP's are calculated based on assignment of CCG's in the list below | AU91: Data Source: | AV91: https://www.ons.gov.uk/peoplepopulationandcommunity/populationandmigration/populationprojections/datasets/clinicalcommissioninggroupsinenglandtable3
B92: http://content.digital.nhs.uk/ | AV92: Table 3: 2016-based Subnational Population Projections for Clinical Commissioning Groups in England (calculated for age group 50+)
I93: MALE_0-4 | J93: MALE_5-9 | K93: MALE_10-14 | L93: MALE_15-19 | M93: MALE_20-24 | N93: MALE_25-29 | O93: MALE_30-34 | P93: MALE_35-39 | Q93: MALE_40-44 | R93: MALE_45-49 | S93: MALE_50-54 | T93: MALE_55-59 | U93: MALE_60-64 | V93: MALE_65-69 | W93: MALE_70-74 | X93: MALE_75-79 | Y93: MALE_80-84 | Z93: Male_85+ | AA93: FEMALE_0-4 | AB93: FEMALE_5-9 | AC93: FEMALE_10-14 | AD93: FEMALE_15-19 | AE93: FEMALE_20-24 | AF93: FEMALE_25-29 | AG93: FEMALE_30-34 | AH93: FEMALE_35-39 | AI93: FEMALE_40-44 | AJ93: FEMALE_45-49 | AK93: FEMALE_50-54 | AL93: FEMALE_55-59 | AM93: FEMALE_60-64 | AN93: FEMALE_65-69 | AO93: FEMALE_70-74 | AP93: FEMALE_75-79 | AQ93: FEMALE_80-84 | AR93: FEMALE_85+ | AV93: Male | AW93: Male | AX93: Male | AY93: Male | AZ93: Male | BA93: Male | BB93: Male | BC93: Male | BD93: Male | BE93: Male | BF93: Male | BG93: Female | BH93: Female | BI93: Female | BJ93: Female | BK93: Female | BL93: Female | BM93: Female | BN93: Female | BO93: Female | BP93: Female | BQ93: Female
I94: =IF(Population!$E24=$F96,AND(I97>=Population!$N$25,I97<=Population!$N$26),FALSE) -> FALSE | J94: =IF(Population!$E24=$F96,AND(J97>=Population!$N$25,J97<=Population!$N$26),FALSE) -> FALSE | K94: =IF(Population!$E24=$F96,AND(K97>=Population!$N$25,K97<=Population!$N$26),FALSE) -> FALSE | L94: =IF(Population!$E24=$F96,AND(L97>=Population!$N$25,L97<=Population!$N$26),FALSE) -> FALSE | M94: =IF(Population!$E24=$F96,AND(M97>=Population!$N$25,M97<=Population!$N$26),FALSE) -> FALSE | N94: =IF(Population!$E24=$F96,AND(N97>=Population!$N$25,N97<=Population!$N$26),FALSE) -> FALSE | O94: =IF(Population!$E24=$F96,AND(O97>=Population!$N$25,O97<=Population!$N$26),FALSE) -> FALSE | P94: =IF(Population!$E24=$F96,AND(P97>=Population!$N$25,P97<=Population!$N$26),FALSE) -> FALSE | Q94: =IF(Population!$E24=$F96,AND(Q97>=Population!$N$25,Q97<=Population!$N$26),FALSE) -> FALSE | R94: =IF(Population!$E24=$F96,AND(R97>=Population!$N$25,R97<=Population!$N$26),FALSE) -> FALSE | S94: =IF(Population!$E24=$F96,AND(S97>=Population!$N$25,S97<=Population!$N$26),FALSE) -> TRUE | T94: =IF(Population!$E24=$F96,AND(T97>=Population!$N$25,T97<=Population!$N$26),FALSE) -> TRUE | U94: =IF(Population!$E24=$F96,AND(U97>=Population!$N$25,U97<=Population!$N$26),FALSE) -> TRUE | V94: =IF(Population!$E24=$F96,AND(V97>=Population!$N$25,V97<=Population!$N$26),FALSE) -> TRUE | W94: =IF(Population!$E24=$F96,AND(W97>=Population!$N$25,W97<=Population!$N$26),FALSE) -> TRUE | X94: =IF(Population!$E24=$F96,AND(X97>=Population!$N$25,X97<=Population!$N$26),FALSE) -> TRUE | Y94: =IF(Population!$E24=$F96,AND(Y97>=Population!$N$25,Y97<=Population!$N$26),FALSE) -> TRUE | Z94: =IF(Population!$E24=$F96,AND(Z97>=Population!$N$25,Z97<=Population!$N$26),FALSE) -> TRUE | AA94: =IF(Population!$F24=$F96,AND(AA97>=Population!$O$25,AA97<=Population!$O$26),FALSE) -> FALSE | AB94: =IF(Population!$F24=$F96,AND(AB97>=Population!$O$25,AB97<=Population!$O$26),FALSE) -> FALSE | AC94: =IF(Population!$F24=$F96,AND(AC97>=Population!$O$25,AC97<=Population!$O$26),FALSE) -> FALSE | AD94: =IF(Population!$F24=$F96,AND(AD97>=Population!$O$25,AD97<=Population!$O$26),FALSE) -> FALSE | AE94: =IF(Population!$F24=$F96,AND(AE97>=Population!$O$25,AE97<=Population!$O$26),FALSE) -> FALSE | AF94: =IF(Population!$F24=$F96,AND(AF97>=Population!$O$25,AF97<=Population!$O$26),FALSE) -> FALSE | AG94: =IF(Population!$F24=$F96,AND(AG97>=Population!$O$25,AG97<=Population!$O$26),FALSE) -> FALSE | AH94: =IF(Population!$F24=$F96,AND(AH97>=Population!$O$25,AH97<=Population!$O$26),FALSE) -> FALSE | AI94: =IF(Population!$F24=$F96,AND(AI97>=Population!$O$25,AI97<=Population!$O$26),FALSE) -> FALSE | AJ94: =IF(Population!$F24=$F96,AND(AJ97>=Population!$O$25,AJ97<=Population!$O$26),FALSE) -> FALSE | AK94: =IF(Population!$F24=$F96,AND(AK97>=Population!$O$25,AK97<=Population!$O$26),FALSE) -> TRUE | AL94: =IF(Population!$F24=$F96,AND(AL97>=Population!$O$25,AL97<=Population!$O$26),FALSE) -> TRUE | AM94: =IF(Population!$F24=$F96,AND(AM97>=Population!$O$25,AM97<=Population!$O$26),FALSE) -> TRUE | AN94: =IF(Population!$F24=$F96,AND(AN97>=Population!$O$25,AN97<=Population!$O$26),FALSE) -> TRUE | AO94: =IF(Population!$F24=$F96,AND(AO97>=Population!$O$25,AO97<=Population!$O$26),FALSE) -> TRUE | AP94: =IF(Population!$F24=$F96,AND(AP97>=Population!$O$25,AP97<=Population!$O$26),FALSE) -> TRUE | AQ94: =IF(Population!$F24=$F96,AND(AQ97>=Population!$O$25,AQ97<=Population!$O$26),FALSE) -> TRUE | AR94: =IF(Population!$F24=$F96,AND(AR97>=Population!$O$25,AR97<=Population!$O$26),FALSE) -> TRUE | AV94: 2015 | AW94: 2016 | AX94: 2017 | AY94: 2018 | AZ94: 2019 | BA94: 2020 | BB94: 2021 | BC94: 2022 | BD94: 2023 | BE94: 2024 | BF94: 2025 | BG94: 2015 | BH94: 2016 | BI94: 2017 | BJ94: 2018 | BK94: 2019 | BL94: 2020 | BM94: 2021 | BN94: 2022 | BO94: 2023 | BP94: 2024 | BQ94: 2025
I95: =+I25 -> Male | J95: Male | K95: Male | L95: Male | M95: Male | N95: Male | O95: Male | P95: Male | Q95: Male | R95: Male | S95: Male | T95: Male | U95: Male | V95: Male | W95: Male | X95: Male | Y95: Male | Z95: Male | AA95: Female | AB95: Female | AC95: Female | AD95: Female | AE95: Female | AF95: Female | AG95: Female | AH95: Female | AI95: Female | AJ95: Female | AK95: Female | AL95: Female | AM95: Female | AN95: Female | AO95: Female | AP95: Female | AQ95: Female | AR95: Female
F96: Yes | G96: Yes | I96: =+I26 -> 0 - 4 | J96: 5 - 9 | K96: 10 - 14 | L96: 15 - 19 | M96: 20 - 24 | N96: 25 - 29 | O96: 30 - 34 | P96: 35 - 39 | Q96: 40 - 44 | R96: 45 - 49 | S96: 50 - 54 | T96: 55 - 59 | U96: 60 - 64 | V96: 65 - 69 | W96: 70 - 74 | X96: 75 - 79 | Y96: 80 - 84 | Z96: 85 + | AA96: 0 - 4 | AB96: 5 - 9 | AC96: 10 - 14 | AD96: 15 - 19 | AE96: 20 - 24 | AF96: 25 - 29 | AG96: 30 - 34 | AH96: 35 - 39 | AI96: 40 - 44 | AJ96: 45 - 49 | AK96: 50 - 54 | AL96: 55 - 59 | AM96: 60 - 64 | AN96: 65 - 69 | AO96: 70 - 74 | AP96: 75 - 79 | AQ96: 80 - 84 | AR96: 85 +
B97: Code | C97: Name | D97: STP | E97: Total Population | F97: Male | G97: Female | H97: Total | I97: 1 | J97: 2 | K97: 3 | L97: 4 | M97: 5 | N97: 6 | O97: 7 | P97: 8 | Q97: 9 | R97: 10 | S97: 11 | T97: 12 | U97: 13 | V97: 14 | W97: 15 | X97: 16 | Y97: 17 | Z97: 18 | AA97: 1 | AB97: 2 | AC97: 3 | AD97: 4 | AE97: 5 | AF97: 6 | AG97: 7 | AH97: 8 | AI97: 9 | AJ97: 10 | AK97: 11 | AL97: 12 | AM97: 13 | AN97: 14 | AO97: 15 | AP97: 16 | AQ97: 17 | AR97: 18
C98: BATH, SWINDON AND WILTSHIRE | E98: =SUM(I98:AR98) -> 940612 | F98: =SUMIF($D$141:$D$335,$C98,F$141:F$335) -> 180319 | G98: 194180 | H98: =+F98+G98 -> 374499 | I98: =SUMIF($D$141:$D$335,$C98,I$141:I$335) -> 25506 | J98: 29094 | K98: 27511 | L98: 27155 | M98: 29174 | N98: 27511 | O98: 27021 | P98: 27639 | Q98: 27060 | R98: 32760 | S98: =SUMIF($D$141:$D$335,$C98,S$141:S$335) -> 34739 | T98: 32835 | U98: 27481 | V98: 24662 | W98: 23958 | X98: 15892 | Y98: 11300 | Z98: 9452 | AA98: 24199 | AB98: 27281 | AC98: =SUMIF($D$141:$D$335,$C98,AC$141:AC$335) -> 26639 | AD98: 26460 | AE98: 29926 | AF98: 29340 | AG98: 29903 | AH98: 29443 | AI98: 28645 | AJ98: 33846 | AK98: 35338 | AL98: 32460 | AM98: =SUMIF($D$141:$D$335,$C98,AM$141:AM$335) -> 27212 | AN98: 25712 | AO98: 25751 | AP98: 17948 | AQ98: 13840 | AR98: 15919 | AX98: =SUMPRODUCT(($D$141:$D$335=$C98)*(AX$141:AX$335)*($F$141:$F$335))/$F98 -> 0.02160784246 | AY98: 0.02048548867 | AZ98: 0.01782950764 | BA98: 0.01875395518 | BB98: 0.01712061055 | BC98: 0.01627703972 | BD98: 0.01336738702 | BE98: 0.01325568246 | BF98: 0.009271493966 | BI98: =SUMPRODUCT(($D$141:$D$335=$C98)*(BI$141:BI$335)*($G$141:$G$335))/$G98 -> 0.01967384731 | BJ98: 0.01989661642 | BK98: 0.01946374462 | BL98: 0.01689869182 | BM98: 0.01569853887 | BN98: 0.01688268475 | BO98: 0.01312711397 | BP98: 0.01361637348 | BQ98: 0.01182661476
C99: BIRMINGHAM AND SOLIHULL | E99: 1314409 | F99: 199777 | G99: 211455 | H99: =+F99+G99 -> 411232 | I99: 42787 | J99: 47440 | K99: 45131 | L99: 41875 | M99: 44341 | N99: 49524 | O99: 51136 | P99: 50169 | Q99: 45093 | R99: 46016 | S99: 43514 | T99: 38063 | U99: 30913 | V99: 25654 | W99: 23227 | X99: 16289 | Y99: 11843 | Z99: 10274 | AA99: 40791 | AB99: 45045 | AC99: 42820 | AD99: 39872 | AE99: 47080 | AF99: 47701 | AG99: 49192 | AH99: 46626 | AI99: 39375 | AJ99: 41163 | AK99: 40445 | AL99: 36498 | AM99: 29658 | AN99: 26810 | AO99: 25397 | AP99: 19010 | AQ99: 15851 | AR99: 17786 | AX99: 0.01119622864 | AY99: 0.01515151515 | AZ99: 0.01377726751 | BA99: 0.01359003398 | BB99: 0.01173184358 | BC99: 0.01214798454 | BD99: 0.008183306056 | BE99: 0.009199134199 | BF99: 0.007506702413 | BI99: 0.01195426195 | BJ99: 0.01078582435 | BK99: 0.01117886179 | BL99: 0.01256281407 | BM99: 0.01240694789 | BN99: 0.009803921569 | BO99: 0.007766990291 | BP99: 0.008670520231 | BQ99: 0.004297994269
C100: BRISTOL, NORTH SOMERSET AND SOUTH GLOUCESTERSHIRE | E100: 1010368 | F100: 165830 | G100: 176101 | H100: 341931 | I100: 29047 | J100: 30833 | K100: 27672 | L100: 26611 | M100: 35961 | N100: 39326 | O100: 40922 | P100: 39070 | Q100: 33861 | R100: 34841 | S100: 34621 | T100: 30287 | U100: 24651 | V100: 22053 | W100: 21260 | X100: 14308 | Y100: 10056 | Z100: 8594 | AA100: 27439 | AB100: 29289 | AC100: 26699 | AD100: 26528 | AE100: 38056 | AF100: 40738 | AG100: 41216 | AH100: 37128 | AI100: 31224 | AJ100: 31976 | AK100: 32794 | AL100: 29039 | AM100: 24560 | AN100: 22912 | AO100: 22873 | AP100: 16392 | AQ100: 12825 | AR100: 14706 | AX100: 0.01376146789 | AY100: 0.01422107304 | AZ100: 0.01274697259 | BA100: 0.01321585903 | BB100: 0.01366459627 | BC100: 0.009803921569 | BD100: 0.008495145631 | BE100: 0.007821901324 | BF100: 0.00776119403 | BI100: 0.01122268163 | BJ100: 0.01343457944 | BK100: 0.01095100865 | BL100: 0.01311288483 | BM100: 0.01012943163 | BN100: 0.01337047354 | BO100: 0.008796041781 | BP100: 0.009264305177 | BQ100: 0.009179265659
C101: BUCKINGHAMSHIRE, OXFORDSHIRE AND BERKSHIRE WEST | E101: 1856932 | F101: 320877 | G101: 337762 | H101: 658639 | I101: 51651 | J101: 58217 | K101: 56277 | L101: 54131 | M101: 59314 | N101: 64019 | O101: 65269 | P101: 66896 | Q101: 63671 | R101: 67219 | S101: 68272 | T101: 60594 | U101: 48577 | V101: 41378 | W101: 39705 | X101: 26437 | Y101: 19706 | Z101: 16208 | AA101: 48772 | AB101: 55039 | AC101: 53781 | AD101: 53492 | AE101: 61543 | AF101: 63094 | AG101: 65269 | AH101: 65662 | AI101: 60461 | AJ101: 64516 | AK101: 64751 | AL101: 57804 | AM101: 47543 | AN101: 43527 | AO101: 42863 | AP101: 30604 | AQ101: 23947 | AR101: 26723 | AX101: 0.01779132713 | AY101: 0.01749875545 | AZ101: 0.01729431516 | BA101: 0.01783399215 | BB101: 0.01363285949 | BC101: 0.01639879373 | BD101: 0.01260298098 | BE101: 0.01186345923 | BF101: 0.01086490339 | BI101: 0.01819139911 | BJ101: 0.01911194766 | BK101: 0.01610667478 | BL101: 0.01669348364 | BM101: 0.01518588453 | BN101: 0.01605355418 | BO101: 0.01288501882 | BP101: 0.01145654217 | BQ101: 0.01207492362
C102: CAMBRIDGESHIRE AND PETERBOROUGH | E102: 972906 | F102: 160522 | G102: 169533 | H102: 330055 | I102: 27485 | J102: 30524 | K102: 28153 | L102: 27362 | M102: 33486 | N102: 39464 | O102: 40079 | P102: 38032 | Q102: 33867 | R102: 34019 | S102: 33239 | T102: 29546 | U102: 24377 | V102: 21687 | W102: 20705 | X102: 13427 | Y102: 9657 | Z102: 7884 | AA102: 26022 | AB102: 28780 | AC102: 26153 | AD102: 26033 | AE102: 32908 | AF102: 36607 | AG102: 36730 | AH102: 34490 | AI102: 30439 | AJ102: 32218 | AK102: 31712 | AL102: 28564 | AM102: 24391 | AN102: 22808 | AO102: 22012 | AP102: 15253 | AQ102: 11570 | AR102: 13223 | AX102: 0.02257636122 | AY102: 0.01753246753 | AZ102: 0.01978302489 | BA102: 0.01689612015 | BB102: 0.016 | BC102: 0.01695941853 | BD102: 0.01369863014 | BE102: 0.01351351351 | BF102: 0.0115942029 | BI102: 0.01831501832 | BJ102: 0.01738609113 | BK102: 0.01708898055 | BL102: 0.01506373117 | BM102: 0.01712328767 | BN102: 0.01515151515 | BO102: 0.01326699834 | BP102: 0.01200218221 | BQ102: 0.01185983827
C103: CHESHIRE AND MERSEYSIDE | E103: 2633843 | F103: 497416 | G103: 535949 | H103: 1033365 | I103: 71650 | J103: 77331 | K103: 73862 | L103: 70031 | M103: 81422 | N103: 90331 | O103: 89918 | P103: 87258 | Q103: 78671 | R103: 92909 | S103: 97735 | T103: 93499 | U103: 77542 | V103: 69527 | W103: 63708 | X103: 42450 | Y103: 30258 | Z103: 22697 | AA103: 67079 | AB103: 73197 | AC103: 70691 | AD103: 68293 | AE103: 83135 | AF103: 87583 | AG103: 88641 | AH103: 83567 | AI103: 75203 | AJ103: 89706 | AK103: 95877 | AL103: 91906 | AM103: 77912 | AN103: 71546 | AO103: 68868 | AP103: 50281 | AQ103: 39495 | AR103: 40064 | AX103: 0.01381852118 | AY103: 0.01331511532 | AZ103: 0.01279126406 | BA103: 0.0107791464 | BB103: 0.01103983244 | BC103: 0.01160777534 | BD103: 0.007718959281 | BE103: 0.0060180577 | BF103: 0.004623362214 | BI103: 0.01145126515 | BJ103: 0.01161217732 | BK103: 0.01223662681 | BL103: 0.009443798591 | BM103: 0.01173437464 | BN103: 0.009570555076 | BO103: 0.007444717968 | BP103: 0.006095421831 | BQ103: 0.003431989262
C104: COAST, HUMBER AND VALE | E104: 1433011 | F104: 283777 | G104: 302401 | H104: 586178 | I104: 37013 | J104: 41319 | K104: 39894 | L104: 38694 | M104: 44599 | N104: 46684 | O104: 46426 | P104: 44346 | Q104: 41506 | R104: 49487 | S104: 52829 | T104: 50755 | U104: 43590 | V104: 40420 | W104: 39182 | X104: 24978 | Y104: 18193 | Z104: 13830 | AA104: 34755 | AB104: 39284 | AC104: 38060 | AD104: 37311 | AE104: 46527 | AF104: 45923 | AG104: 45397 | AH104: 42277 | AI104: 39191 | AJ104: 48140 | AK104: 51383 | AL104: 49684 | AM104: 43560 | AN104: 41620 | AO104: 41369 | AP104: 28751 | AQ104: 22644 | AR104: 23390 | AX104: 0.01556498226 | AY104: 0.01157272863 | AZ104: 0.01441929861 | BA104: 0.01179905564 | BB104: 0.009949214078 | BC104: 0.01255255471 | BD104: 0.006622312689 | BE104: 0.006778263027 | BF104: 0.007221231679 | BI104: 0.01107234145 | BJ104: 0.01200473134 | BK104: 0.01419340603 | BL104: 0.009324151122 | BM104: 0.01070121536 | BN104: 0.00870624795 | BO104: 0.007340791342 | BP104: 0.005786179127 | BQ104: 0.005238767776
C105: CORNWALL AND THE ISLES OF SCILLY | E105: 576813 | F105: 124533 | G105: 137030 | H105: 261563 | I105: 14006 | J105: 16129 | K105: 15479 | L105: 14940 | M105: 16058 | N105: 16018 | O105: 15668 | P105: 15777 | Q105: 15090 | R105: 18669 | S105: 20573 | T105: 20164 | U105: 18797 | V105: 18730 | W105: 19347 | X105: 12193 | Y105: 8169 | Z105: 6560 | AA105: 13139 | AB105: 15296 | AC105: 14705 | AD105: 14296 | AE105: 15823 | AF105: 16009 | AG105: 16173 | AH105: 16276 | AI105: 15972 | AJ105: 19727 | AK105: 21514 | AL105: 21022 | AM105: 19764 | AN105: 20044 | AO105: 20360 | AP105: 13277 | AQ105: 9895 | AR105: 11154 | AX105: 0.01513877208 | AY105: 0.01657000829 | AZ105: 0.01466992665 | BA105: 0.01285140562 | BB105: 0.01586042823 | BC105: 0.01405152225 | BD105: 0.01154734411 | BE105: 0.008371385084 | BF105: 0.01056603774 | BI105: 0.01721556886 | BJ105: 0.01324503311 | BK105: 0.01525054466 | BL105: 0.01359084406 | BM105: 0.01482004234 | BN105: 0.01390820584 | BO105: 0.01028806584 | BP105: 0.01086218601 | BQ105: 0.008730691739
C106: COVENTRY AND WARWICKSHIRE | E106: 998797 | F106: 174610 | G106: 182355 | H106: 356965 | I106: 27836 | J106: 30655 | K106: 28561 | L106: 28727 | M106: 37235 | N106: 36614 | O106: 37163 | P106: 35799 | Q106: 32411 | R106: 35550 | S106: 35595 | T106: 32166 | U106: 26102 | V106: 23354 | W106: 22554 | X106: 15253 | Y106: 10796 | Z106: 8790 | AA106: 26470 | AB106: 29178 | AC106: 27466 | AD106: 27161 | AE106: 37090 | AF106: 34314 | AG106: 34962 | AH106: 33038 | AI106: 29065 | AJ106: 32537 | AK106: 33237 | AL106: 29770 | AM106: 25229 | AN106: 24057 | AO106: 24298 | AP106: 17433 | AQ106: 13521 | AR106: 14810 | AX106: 0.01417646257 | AY106: 0.01400076602 | AZ106: 0.01683211323 | BA106: 0.01173012723 | BB106: 0.01276779291 | BC106: 0.01383616224 | BD106: 0.01009264722 | BE106: 0.007102432899 | BF106: 0.009912837653 | BI106: 0.01407204863 | BJ106: 0.01329447502 | BK106: 0.01248413331 | BL106: 0.01405053519 | BM106: 0.01018114866 | BN106: 0.01324964627 | BO106: 0.007623081822 | BP106: 0.008627845598 | BQ106: 0.007500648668
C107: DERBYSHIRE | E107: 1052359 | F107: 205947 | G107: 218838 | H107: 424785 | I107: 27668 | J107: 31105 | K107: 30203 | L107: 28678 | M107: 30659 | N107: 34027 | O107: 33308 | P107: 33710 | Q107: 32064 | R107: 38940 | S107: 40852 | T107: 36905 | U107: 31070 | V107: 28960 | W107: 28068 | X107: 18201 | Y107: 12325 | Z107: 9566 | AA107: 26580 | AB107: 29864 | AC107: 28514 | AD107: 27020 | AE107: 29226 | AF107: 32943 | AG107: 33003 | AH107: 32227 | AI107: 30289 | AJ107: 37546 | AK107: 39553 | AL107: 36036 | AM107: 30914 | AN107: 29434 | AO107: 29964 | AP107: 20393 | AQ107: 15836 | AR107: 16708 | AX107: 0.01658316602 | AY107: 0.0194085609 | AZ107: 0.01501489944 | BA107: 0.01240758358 | BB107: 0.01641520661 | BC107: 0.01258234592 | BD107: 0.01095862542 | BE107: 0.006974117349 | BF107: 0.006166079024 | BI107: 0.01666364998 | BJ107: 0.01684714316 | BK107: 0.01558132549 | BL107: 0.0118396033 | BM107: 0.01704737699 | BN107: 0.01272556741 | BO107: 0.01045008001 | BP107: 0.006916480466 | BQ107: 0.00644308041
C108: DEVON | E108: 1227543 | F108: 255741 | G108: 283360 | H108: 539101 | I108: =SUMIF($D$141:$D$335,$C108,I$141:I$335) -> 29650 | J108: 34244 | K108: 32938 | L108: 33193 | M108: 39454 | N108: 36102 | O108: 34182 | P108: 33729 | Q108: 31810 | R108: 39258 | S108: =SUMIF($D$141:$D$335,$C108,S$141:S$335) -> 43025 | T108: 41797 | U108: 38185 | V108: 37485 | W108: 37976 | X108: 25131 | Y108: 17404 | Z108: 14738 | AA108: 28222 | AB108: 32161 | AC108: =SUMIF($D$141:$D$335,$C108,AC$141:AC$335) -> 31275 | AD108: 31911 | AE108: 40022 | AF108: 35584 | AG108: 35731 | AH108: 35065 | AI108: 33129 | AJ108: 40782 | AK108: 44881 | AL108: 43786 | AM108: =SUMIF($D$141:$D$335,$C108,AM$141:AM$335) -> 39686 | AN108: 39335 | AO108: 40625 | AP108: 28052 | AQ108: 21650 | AR108: 25345 | AX108: =SUMPRODUCT(($D$141:$D$335=$C108)*(AX$141:AX$335)*($F$141:$F$335))/$F108 -> 0.01499619065 | AY108: 0.01559547566 | AZ108: 0.01455797915 | BA108: 0.01313965636 | BB108: 0.01258058238 | BC108: 0.01203421928 | BD108: 0.009205427167 | BE108: 0.008739180699 | BF108: 0.007898076354 | BI108: =SUMPRODUCT(($D$141:$D$335=$C108)*(BI$141:BI$335)*($G$141:$G$335))/$G108 -> 0.01320756217 | BJ108: 0.0130451134 | BK108: 0.01287700049 | BL108: 0.01306105053 | BM108: 0.01186322386 | BN108: 0.01066960213 | BO108: 0.008185934422 | BP108: 0.00845965452 | BQ108: 0.007016896214
C109: DORSET | E109: 802287 | F109: 169863 | G109: 185836 | H109: 355699 | I109: 18309 | J109: 21303 | K109: 20749 | L109: 20867 | M109: 22498 | N109: 23717 | O109: 24102 | P109: 25022 | Q109: 23307 | R109: 26986 | S109: 29029 | T109: 27707 | U109: 24409 | V109: 23628 | W109: 24912 | X109: 16498 | Y109: 12492 | Z109: 11188 | AA109: 17632 | AB109: 20172 | AC109: 19855 | AD109: 19899 | AE109: 23003 | AF109: 23310 | AG109: 23864 | AH109: 23870 | AI109: 21965 | AJ109: 26158 | AK109: 28193 | AL109: 27448 | AM109: 25379 | AN109: 25736 | AO109: 26655 | AP109: 18572 | AQ109: 15032 | AR109: 18821 | AX109: 0.01685393258 | AY109: 0.01718845918 | AZ109: 0.01448400724 | BA109: 0.01427721594 | BB109: 0.01583577713 | BC109: 0.01385681293 | BD109: 0.01138952164 | BE109: 0.0106981982 | BF109: 0.01002785515 | BI109: 0.01329639889 | BJ109: 0.01093493712 | BK109: 0.01352082207 | BL109: 0.01227321238 | BM109: 0.01212440696 | BN109: 0.01145833333 | BO109: 0.01081359423 | BP109: 0.009169638309 | BQ109: 0.008076728925
C110: DURHAM, DARLINGTON AND TEES, HAMBLETON, RICHMONDSHIRE AND WHITBY | E110: 1400068 | F110: 273265 | G110: 293828 | H110: 567093 | I110: 37250 | J110: 42229 | K110: 40470 | L110: 38531 | M110: 44027 | N110: 45453 | O110: 44994 | P110: 43221 | Q110: 38773 | R110: 47428 | S110: 51637 | T110: 49585 | U110: 43481 | V110: 39450 | W110: 36607 | X110: 23503 | Y110: 16689 | Z110: 12313 | AA110: 35185 | AB110: 39843 | AC110: 38775 | AD110: 36989 | AE110: 43963 | AF110: 44136 | AG110: 44395 | AH110: 42201 | AI110: 38333 | AJ110: 46779 | AK110: 51425 | AL110: 50001 | AM110: 43950 | AN110: 40609 | AO110: 38736 | AP110: 26712 | AQ110: 21556 | AR110: 20839 | AX110: 0.01327026658 | AY110: 0.01266490555 | AZ110: 0.01097490484 | BA110: 0.01201424721 | BB110: 0.0115514704 | BC110: 0.007633743884 | BD110: 0.004719618947 | BE110: 0.00610658454 | BF110: 0.00141786743 | BI110: 0.01160668798 | BJ110: 0.01070557593 | BK110: 0.01063844467 | BL110: 0.009856043594 | BM110: 0.009065702606 | BN110: 0.01000161874 | BO110: 0.007208039075 | BP110: 0.003229362332 | BQ110: 0.003270857075
C111: FRIMLEY HEALTH AND CARE | E111: 787488 | F111: 130909 | G111: 135950 | H111: 266859 | I111: 23821 | J111: 26654 | K111: 25523 | L111: 23322 | M111: 21723 | N111: 24467 | O111: 27401 | P111: 30463 | Q111: 29361 | R111: 30427 | S111: 29402 | T111: 25724 | U111: 20137 | V111: 16381 | W111: 15304 | X111: 10330 | Y111: 7491 | Z111: 6140 | AA111: 22328 | AB111: 25476 | AC111: 24077 | AD111: 21425 | AE111: 22974 | AF111: 25684 | AG111: 28898 | AH111: 30558 | AI111: 27819 | AJ111: 28228 | AK111: 27495 | AL111: 23956 | AM111: 19271 | AN111: 17040 | AO111: 16654 | AP111: 11800 | AQ111: 9415 | AR111: 10319 | AX111: 0.02558780644 | AY111: 0.02081797439 | AZ111: 0.0164454674 | BA111: 0.01829376451 | BB111: 0.02125415885 | BC111: 0.01610473003 | BD111: 0.01603716196 | BE111: 0.01636908126 | BF111: 0.01028141462 | BI111: 0.01959421956 | BJ111: 0.01704525256 | BK111: 0.01585303791 | BL111: 0.0177113457 | BM111: 0.01396124548 | BN111: 0.01805352912 | BO111: 0.01415033735 | BP111: 0.01391838716 | BQ111: 0.008334022193
C112: GLOUCESTERSHIRE | E112: 649875 | F112: 129469 | G112: 140197 | H112: 269666 | I112: 17326 | J112: 19294 | K112: 18360 | L112: 18349 | M112: 18708 | N112: 19288 | O112: 18916 | P112: 19390 | Q112: 18054 | R112: 21777 | S112: 24133 | T112: 22782 | U112: 19505 | V112: 18151 | W112: 17520 | X112: 12146 | Y112: 8397 | Z112: 6835 | AA112: 16386 | AB112: 18347 | AC112: 17866 | AD112: 18072 | AE112: 18306 | AF112: 19508 | AG112: 20367 | AH112: 20250 | AI112: 18966 | AJ112: 22679 | AK112: 24772 | AL112: 22941 | AM112: 19478 | AN112: 19022 | AO112: 18787 | AP112: 13312 | AQ112: 10055 | AR112: 11830 | AX112: 0.02231404959 | AY112: 0.01859337106 | AZ112: 0.02222222222 | BA112: 0.01552795031 | BB112: 0.01834862385 | BC112: 0.01726726727 | BD112: 0.01402214022 | BE112: 0.01164483261 | BF112: 0.009352517986 | BI112: 0.01846381093 | BJ112: 0.01667875272 | BK112: 0.01640513552 | BL112: 0.01543859649 | BM112: 0.01727712509 | BN112: 0.01426630435 | BO112: 0.01272605492 | BP112: 0.01124338624 | BQ112: 0.009156311315
C113: GREATER MANCHESTER HEALTH AND SOCIAL CARE PARTNERSHIP | E113: 3057335 | F113: 496754 | G113: 514383 | H113: 1011137 | I113: 94392 | J113: 102965 | K113: 96446 | L113: 86708 | M113: 99772 | N113: 116148 | O113: 120952 | P113: 117126 | Q113: 102365 | R113: 110370 | S113: 109300 | T113: 95462 | U113: 76963 | V113: 67285 | W113: 61000 | X113: 40195 | Y113: 27031 | Z113: 19518 | AA113: 89879 | AB113: 98708 | AC113: 91493 | AD113: 82894 | AE113: 102084 | AF113: 116699 | AG113: 117794 | AH113: 108267 | AI113: 91844 | AJ113: 99292 | AK113: 99669 | AL113: 90058 | AM113: 74024 | AN113: 67563 | AO113: 65489 | AP113: 46790 | AQ113: 35201 | AR113: 35589 | AX113: 0.01619928598 | AY113: 0.01455545808 | AZ113: 0.01491508269 | BA113: 0.01426289373 | BB113: 0.01305991886 | BC113: 0.01271547275 | BD113: 0.009257229231 | BE113: 0.00774289778 | BF113: 0.005616170218 | BI113: 0.01375432188 | BJ113: 0.01432127976 | BK113: 0.01358550615 | BL113: 0.01082773414 | BM113: 0.01346812161 | BN113: 0.01175465726 | BO113: 0.009883299814 | BP113: 0.005878638748 | BQ113: 0.007341883422
C114: HAMPSHIRE AND THE ISLE OF WIGHT | E114: 1873140 | F114: 355408 | G114: 384956 | H114: 740364 | I114: 49712 | J114: 55123 | K114: 52043 | L114: 50658 | M114: 62620 | N114: 61863 | O114: 61572 | P114: 61227 | Q114: 57089 | R114: 63694 | S114: 67202 | T114: 63617 | U114: 53558 | V114: 48116 | W114: 48909 | X114: 31873 | Y114: 22723 | Z114: 19410 | AA114: 47094 | AB114: 52537 | AC114: 49497 | AD114: 48221 | AE114: 61459 | AF114: 60939 | AG114: 61199 | AH114: 59395 | AI114: 54743 | AJ114: 62091 | AK114: 66645 | AL114: 62624 | AM114: 53426 | AN114: 51133 | AO114: 52713 | AP114: 36510 | AQ114: 28695 | AR114: 33210 | AX114: 0.01634552134 | AY114: 0.01706770674 | AZ114: 0.01435158832 | BA114: 0.0142551608 | BB114: 0.0143376872 | BC114: 0.01228738269 | BD114: 0.01256775048 | BE114: 0.0084105705 | BF114: 0.008834160105 | BI114: 0.01508728762 | BJ114: 0.01664901231 | BK114: 0.01397776489 | BL114: 0.0130780679 | BM114: 0.0147248178 | BN114: 0.01265578777 | BO114: 0.01105569938 | BP114: 0.01055271959 | BQ114: 0.009648800125
C115: HEREFORDSHIRE AND WORCESTERSHIRE | E115: 796345 | F115: 166231 | G115: 178352 | H115: 344583 | I115: 20095 | J115: 22653 | K115: 22446 | L115: 21177 | M115: 20918 | N115: 23673 | O115: 23755 | P115: 24051 | Q115: 22855 | R115: 27591 | S115: 30123 | T115: 28241 | U115: 24360 | V115: 24306 | W115: 23825 | X115: 15848 | Y115: 10908 | Z115: 8620 | AA115: 19028 | AB115: 21433 | AC115: 21007 | AD115: 20415 | AE115: 20600 | AF115: 23321 | AG115: 23397 | AH115: 23658 | AI115: 22185 | AJ115: 27504 | AK115: 29819 | AL115: 27537 | AM115: 25379 | AN115: 25368 | AO115: 25050 | AP115: 17399 | AQ115: 13187 | AR115: 14613 | AX115: 0.01847380351 | AY115: 0.01366152001 | AZ115: 0.01531325099 | BA115: 0.01512099898 | BB115: 0.01538843268 | BC115: 0.007538972067 | BD115: 0.01039619465 | BE115: 0.008491929657 | BF115: 0.006340211781 | BI115: 0.01257532189 | BJ115: 0.01825541556 | BK115: 0.01285455467 | BL115: 0.01316707414 | BM115: 0.01227810685 | BN115: 0.01554044916 | BO115: 0.007904902176 | BP115: 0.008437285733 | BQ115: 0.008312671193
C116: HERTFORDSHIRE AND WEST ESSEX | E116: 1565634 | F116: 271737 | G116: 290603 | H116: 562340 | I116: 47030 | J116: 51486 | K116: 48827 | L116: 44008 | M116: 42254 | N116: 48870 | O116: 52089 | P116: 56937 | Q116: 55310 | R116: 58289 | S116: 59375 | T116: 52398 | U116: 41566 | V116: 34311 | W116: 32456 | X116: 21172 | Y116: 16223 | Z116: 14236 | AA116: 45017 | AB116: 49351 | AC116: 46231 | AD116: 41738 | AE116: 42024 | AF116: 50256 | AG116: 55258 | AH116: 58307 | AI116: 53597 | AJ116: 56415 | AK116: 57195 | AL116: 50175 | AM116: 40521 | AN116: 35916 | AO116: 35659 | AP116: 25264 | AQ116: 21057 | AR116: 24816 | AX116: 0.01745940817 | AY116: 0.01716396449 | AZ116: 0.01611244544 | BA116: 0.01619795242 | BB116: 0.01600406883 | BC116: 0.01385147474 | BD116: 0.01367841005 | BE116: 0.01235860145 | BF116: 0.01154843393 | BI116: 0.01746932148 | BJ116: 0.01711170573 | BK116: 0.01476616645 | BL116: 0.01450261723 | BM116: 0.01672403627 | BN116: 0.01374836297 | BO116: 0.01291218107 | BP116: 0.01373924689 | BQ116: 0.01159958018
C117: KENT & MEDWAY | E117: 1893884 | F117: 348099 | G117: 379454 | H117: 727553 | I117: 54705 | J117: 61105 | K117: 58311 | L117: 55963 | M117: 55846 | N117: 58174 | O117: 59950 | P117: 59287 | Q117: 56340 | R117: 64495 | S117: 68516 | T117: 61782 | U117: 51946 | V117: 47625 | W117: 48514 | X117: 30999 | Y117: 21553 | Z117: 17164 | AA117: 52157 | AB117: 57358 | AC117: 55567 | AD117: 53051 | AE117: 56221 | AF117: 60816 | AG117: 62264 | AH117: 61908 | AI117: 57539 | AJ117: 65274 | AK117: 68091 | AL117: 61975 | AM117: 53143 | AN117: 50807 | AO117: 52666 | AP117: 35528 | AQ117: 27106 | AR117: 30138 | AX117: 0.02001959808 | AY117: 0.02043574054 | AZ117: 0.01951757638 | BA117: 0.01764135218 | BB117: 0.01794746954 | BC117: 0.01628056117 | BD117: 0.01267845355 | BE117: 0.01338184657 | BF117: 0.01132439541 | BI117: 0.01916940109 | BJ117: 0.01777246831 | BK117: 0.0164287505 | BL117: 0.01694228689 | BM117: 0.01712658179 | BN117: 0.01287073482 | BO117: 0.01404980429 | BP117: 0.0108676314 | BQ117: 0.01153353581
C118: LANCASHIRE AND SOUTH CUMBRIA | E118: 2088716 | F118: =SUMIF($D$141:$D$335,$C118,F$141:F$335) -> 412427 | G118: 435169 | H118: 847596 | I118: =SUMIF($D$141:$D$335,$C118,I$141:I$335) -> 55373 | J118: 61630 | K118: 60865 | L118: 58086 | M118: 63677 | N118: 66931 | O118: 66971 | P118: 65169 | Q118: 60634 | R118: 73400 | S118: =SUMIF($D$141:$D$335,$C118,S$141:S$335) -> 78801 | T118: 74445 | U118: 62598 | V118: 58502 | W118: 56264 | X118: 37214 | Y118: 25379 | Z118: 19224 | AA118: 53076 | AB118: 58745 | AC118: =SUMIF($D$141:$D$335,$C118,AC$141:AC$335) -> 57390 | AD118: 55149 | AE118: 62664 | AF118: 64986 | AG118: 65408 | AH118: 62773 | AI118: 57406 | AJ118: 70787 | AK118: 75330 | AL118: 71945 | AM118: =SUMIF($D$141:$D$335,$C118,AM$141:AM$335) -> 62649 | AN118: 59457 | AO118: 58636 | AP118: 41590 | AQ118: 32149 | AR118: 33413 | AX118: =SUMPRODUCT(($D$141:$D$335=$C118)*(AX$141:AX$335)*($F$141:$F$335))/$F118 -> 0.01390386623 | AY118: 0.0127181628 | AZ118: 0.01434460035 | BA118: 0.01232916941 | BB118: 0.01173804234 | BC118: 0.008265964993 | BD118: 0.008008102069 | BE118: 0.008095165629 | BF118: 0.002326262902 | BI118: =SUMPRODUCT(($D$141:$D$335=$C118)*(BI$141:BI$335)*($G$141:$G$335))/$G118 -> 0.01188797793 | BJ118: 0.009646528585 | BK118: 0.01140886328 | BL118: 0.01069274976 | BM118: 0.0113810843 | BN118: 0.009512172257 | BO118: 0.007894934343 | BP118: 0.002979747814 | BQ118: 0.005015298096
C119: LEICESTER, LEICESTERSHIRE AND RUTLAND | E119: 1134031 | F119: 196777 | G119: 206839 | H119: 403616 | I119: 32165 | J119: 35193 | K119: 34492 | L119: 34364 | M119: 43294 | N119: 40025 | O119: 39636 | P119: 39694 | Q119: 35863 | R119: 39185 | S119: 39226 | T119: 36334 | U119: 30497 | V119: 27938 | W119: 25329 | X119: 16581 | Y119: 11560 | Z119: 9312 | AA119: 30209 | AB119: 33708 | AC119: 32034 | AD119: 32381 | AE119: 41527 | AF119: 38683 | AG119: 38865 | AH119: 37720 | AI119: 33706 | AJ119: 37671 | AK119: 37862 | AL119: 35196 | AM119: 29680 | AN119: 28570 | AO119: 26734 | AP119: 18550 | AQ119: 14583 | AR119: 15664 | AX119: 0.01552248389 | AY119: 0.01706550545 | AZ119: 0.01830096909 | BA119: 0.01398705934 | BB119: 0.0170669857 | BC119: 0.01499622611 | BD119: 0.01384040175 | BE119: 0.007797820588 | BF119: 0.01123678026 | BI119: 0.0174900057 | BJ119: 0.01521179387 | BK119: 0.01733860839 | BL119: 0.01375510424 | BM119: 0.01672887121 | BN119: 0.01296379018 | BO119: 0.01125583575 | BP119: 0.01133355902 | BQ119: 0.007551617844
C120: LINCOLNSHIRE | E120: 788966 | F120: 165718 | G120: 177762 | H120: 343480 | I120: 20014 | J120: 22231 | K120: 21475 | L120: 21238 | M120: 22552 | N120: 23128 | O120: 23328 | P120: 22388 | Q120: 20969 | R120: 26347 | S120: 28655 | T120: 27932 | U120: 24206 | V120: 23789 | W120: 24711 | X120: 16418 | Y120: 11181 | Z120: 8826 | AA120: 18828 | AB120: 21427 | AC120: 20872 | AD120: 20550 | AE120: 22326 | AF120: 23174 | AG120: 23374 | AH120: 22591 | AI120: 21340 | AJ120: 27334 | AK120: 29159 | AL120: 27961 | AM120: 25028 | AN120: 25109 | AO120: 25747 | AP120: 17772 | AQ120: 13098 | AR120: 13888 | AX120: 0.01685429151 | AY120: 0.01614362106 | AZ120: 0.01524606038 | BA120: 0.01114300103 | BB120: 0.01470499909 | BC120: 0.01468035992 | BD120: 0.01133786011 | BE120: 0.00764882018 | BF120: 0.007091547871 | BI120: 0.01726097507 | BJ120: 0.01272495381 | BK120: 0.01558530282 | BL120: 0.01417259215 | BM120: 0.01561837693 | BN120: 0.01317008701 | BO120: 0.008680153224 | BP120: 0.008133634676 | BQ120: 0.009544175927
C121: MID AND SOUTH ESSEX | E121: 1225271 | F121: 224865 | G121: 243813 | H121: 468678 | I121: 35957 | J121: 38869 | K121: 37262 | L121: 34380 | M121: 33609 | N121: 37990 | O121: 39559 | P121: 40588 | Q121: 39060 | R121: 43968 | S121: 45534 | T121: 40721 | U121: 33183 | V121: 30144 | W121: 30796 | X121: 19060 | Y121: 14130 | Z121: 11297 | AA121: 33879 | AB121: 36807 | AC121: 35412 | AD121: 32255 | AE121: 32828 | AF121: 39121 | AG121: 41471 | AH121: 41707 | AI121: 38804 | AJ121: 43067 | AK121: 44562 | AL121: 39590 | AM121: 33554 | AN121: 32016 | AO121: 33938 | AP121: 22577 | AQ121: 17820 | AR121: 19756 | AX121: 0.02121668805 | AY121: 0.01614585593 | AZ121: 0.0172504985 | BA121: 0.0156412914 | BB121: 0.01578110546 | BC121: 0.01509975888 | BD121: 0.01191163526 | BE121: 0.01257711199 | BF121: 0.01084432187 | BI121: 0.01777915572 | BJ121: 0.01661928606 | BK121: 0.01555729891 | BL121: 0.01247025449 | BM121: 0.01595186863 | BN121: 0.01168722151 | BO121: 0.01355863215 | BP121: 0.00991164857 | BQ121: 0.01169564997
C122: MILTON KEYNES, BEDFORDSHIRE AND LUTON | E122: 1014407 | F122: 162865 | G122: 168649 | H122: 331514 | I122: 33181 | J122: 36233 | K122: 33258 | L122: 29589 | M122: 27996 | N122: 34014 | O122: 38206 | P122: 40635 | Q122: 37095 | R122: 37083 | S122: 36454 | T122: 31795 | U122: 25725 | V122: 21509 | W122: 19194 | X122: 12385 | Y122: 8966 | Z122: 6837 | AA122: 31451 | AB122: 34524 | AC122: 31575 | AD122: 27414 | AE122: 27401 | AF122: 35546 | AG122: 39805 | AH122: 39454 | AI122: 34102 | AJ122: 34331 | AK122: 33796 | AL122: 30361 | AM122: 24938 | AN122: 22625 | AO122: 20450 | AP122: 14128 | AQ122: 11029 | AR122: 11322 | AX122: 0.02580717028 | AY122: 0.02117816447 | AZ122: 0.02007099055 | BA122: 0.02095470697 | BB122: 0.01931867074 | BC122: 0.01828507208 | BD122: 0.01798326609 | BE122: 0.01642547039 | BF122: 0.01736848318 | BI122: 0.02262730455 | BJ122: 0.02082007658 | BK122: 0.02105060492 | BL122: 0.01883351063 | BM122: 0.0173387045 | BN122: 0.01874960948 | BO122: 0.01783636447 | BP122: 0.01474875741 | BQ122: 0.01561912439
C123: NORFOLK AND WAVENEY | E123: 1056033 | F123: 220564 | G123: 239360 | H123: 459924 | I123: 25909 | J123: 28935 | K123: 27937 | L123: 26868 | M123: 30864 | N123: 32791 | O123: 32845 | P123: 31464 | Q123: 29520 | R123: 35373 | S123: 37167 | T123: 35379 | U123: 31600 | V123: 31616 | W123: 33611 | X123: 22156 | Y123: 15912 | Z123: 13123 | AA123: 24449 | AB123: 27670 | AC123: 26235 | AD123: 26003 | AE123: 32057 | AF123: 32385 | AG123: 31594 | AH123: 30240 | AI123: 28642 | AJ123: 34328 | AK123: 37068 | AL123: 35506 | AM123: 33128 | AN123: 33560 | AO123: 35523 | AP123: 24229 | AQ123: 18876 | AR123: 21470 | AX123: 0.01536000932 | AY123: 0.01562740032 | AZ123: 0.01522472068 | BA123: 0.0144184226 | BB123: 0.01321038649 | BC123: 0.01501780251 | BD123: 0.008522935475 | BE123: 0.01030931145 | BF123: 0.007975890815 | BI123: 0.01399404091 | BJ123: 0.01283845332 | BK123: 0.01213481009 | BL123: 0.01172730762 | BM123: 0.01368066144 | BN123: 0.01190392292 | BO123: 0.007030811405 | BP123: 0.009219464837 | BQ123: 0.00898670928
C124: NORTH CENTRAL LONDON | E124: 1625803 | F124: 209123 | G124: 226264 | H124: 435387 | I124: 47408 | J124: 48246 | K124: 45391 | L124: 41255 | M124: 51867 | N124: 74272 | O124: 82748 | P124: 77043 | Q124: 63478 | R124: 57176 | S124: 52328 | T124: 43104 | U124: 32725 | V124: 25531 | W124: 21338 | X124: 14461 | Y124: 10741 | Z124: 8895 | AA124: 45346 | AB124: 46185 | AC124: 43698 | AD124: 41177 | AE124: 65585 | AF124: 87378 | AG124: 87220 | AH124: 73126 | AI124: 58729 | AJ124: 53088 | AK124: 50048 | AL124: 42297 | AM124: 33332 | AN124: 28280 | AO124: 24630 | AP124: 17971 | AQ124: 14339 | AR124: 15367 | AX124: 0.03260668409 | AY124: 0.02622526747 | AZ124: 0.02656894642 | BA124: 0.02802889093 | BB124: 0.02507691153 | BC124: 0.02370568315 | BD124: 0.02225620524 | BE124: 0.02271369312 | BF124: 0.01943438537 | BI124: 0.02377426019 | BJ124: 0.0231879675 | BK124: 0.02255938163 | BL124: 0.02081418764 | BM124: 0.0207671829 | BN124: 0.01916823092 | BO124: 0.01946321194 | BP124: 0.01877733765 | BQ124: 0.01592208423
C125: NORTH EAST LONDON | E125: 2194198 | F125: 255660 | G125: 263148 | H125: 518808 | I125: 76395 | J125: 75334 | K125: 68014 | L125: 59883 | M125: 67244 | N125: 104138 | O125: 124667 | P125: 113826 | Q125: 89295 | R125: 75994 | S125: 67060 | T125: 55497 | U125: 41304 | V125: 29897 | W125: 23480 | X125: 16137 | Y125: 12253 | Z125: 10032 | AA125: 73328 | AB125: 72313 | AC125: 65564 | AD125: 57715 | AE125: 75592 | AF125: 114470 | AG125: 121600 | AH125: 100166 | AI125: 75175 | AJ125: 64677 | AK125: 60130 | AL125: 50773 | AM125: 39943 | AN125: 32229 | AO125: 26785 | AP125: 20315 | AQ125: 15949 | AR125: 17024 | AX125: 0.02680363841 | AY125: 0.03016216801 | AZ125: 0.02684921929 | BA125: 0.02478810526 | BB125: 0.02314937343 | BC125: 0.02784963588 | BD125: 0.02031095803 | BE125: 0.02281625839 | BF125: 0.02145462675 | BI125: 0.02373195757 | BJ125: 0.02306911328 | BK125: 0.02199606416 | BL125: 0.02104829155 | BM125: 0.02064084214 | BN125: 0.0196621512 | BO125: 0.01858502492 | BP125: 0.017669519 | BQ125: 0.01775628992
C126: NORTH WEST LONDON | E126: 2464623 | F126: 333785 | G126: 335778 | H126: 669563 | I126: 70381 | J126: 73383 | K126: 67426 | L126: 62041 | M126: 78345 | N126: 111847 | O126: 131751 | P126: 129605 | Q126: 108675 | R126: 94013 | S126: 84375 | T126: 69780 | U126: 52631 | V126: 40831 | W126: 32766 | X126: 22863 | Y126: 16766 | Z126: 13773 | AA126: 67047 | AB126: 69977 | AC126: 64218 | AD126: 58653 | AE126: 88142 | AF126: 120542 | AG126: 124545 | AH126: 109323 | AI126: 87476 | AJ126: 77670 | AK126: 72658 | AL126: 62695 | AM126: 50836 | AN126: 42278 | AO126: 36613 | AP126: 27390 | AQ126: 21397 | AR126: 21911 | AX126: 0.02474645671 | AY126: 0.02454485906 | AZ126: 0.0218405073 | BA126: 0.02210533478 | BB126: 0.0215186864 | BC126: 0.02244169742 | BD126: 0.01927009256 | BE126: 0.01951395393 | BF126: 0.01788839469 | BI126: 0.0206742228 | BJ126: 0.02242933949 | BK126: 0.01855457089 | BL126: 0.02087735233 | BM126: 0.01726412606 | BN126: 0.01775919965 | BO126: 0.016862641 | BP126: 0.01606932433 | BQ126: 0.01715657961
C127: NORTHAMPTONSHIRE | E127: 769870 | F127: 134687 | G127: 140653 | H127: 275340 | I127: 22756 | J127: 25385 | K127: 23619 | L127: 21400 | M127: 21330 | N127: 25675 | O127: 27659 | P127: 28431 | Q127: 25893 | R127: 28587 | S127: 29046 | T127: 25025 | U127: 20520 | V127: 18364 | W127: 17643 | X127: 10971 | Y127: 7271 | Z127: 5847 | AA127: 21908 | AB127: 24219 | AC127: 22957 | AD127: 20263 | AE127: 21953 | AF127: 26244 | AG127: 27880 | AH127: 27095 | AI127: 24316 | AJ127: 26960 | AK127: 27334 | AL127: 24365 | AM127: 20195 | AN127: 19332 | AO127: 18697 | AP127: 11970 | AQ127: 8888 | AR127: 9872 | AX127: 0.02573879233 | AY127: 0.01932941312 | AZ127: 0.02215110378 | BA127: 0.02010759431 | BB127: 0.01898680664 | BC127: 0.01800773446 | BD127: 0.0190801772 | BE127: 0.01309362485 | BF127: 0.01442390828 | BI127: 0.02129874071 | BJ127: 0.02093289982 | BK127: 0.02127644609 | BL127: 0.01795000343 | BM127: 0.0212596203 | BN127: 0.01581657705 | BO127: 0.01770921293 | BP127: 0.01617997905 | BQ127: 0.01199277374
C128: NORTHUMBERLAND, TYNE AND WEAR | E128: 1512302 | F128: 284513 | G128: 307666 | H128: 592179 | I128: =SUMIF($D$141:$D$335,$C128,I$141:I$335) -> 39047 | J128: 42587 | K128: 40562 | L128: 40009 | M128: 51894 | N128: 56465 | O128: 54513 | P128: 51094 | Q128: 44782 | R128: 51497 | S128: =SUMIF($D$141:$D$335,$C128,S$141:S$335) -> 54133 | T128: 52397 | U128: 46124 | V128: 40767 | W128: 37215 | X128: 23488 | Y128: 17261 | Z128: 13128 | AA128: 36563 | AB128: 40449 | AC128: =SUMIF($D$141:$D$335,$C128,AC$141:AC$335) -> 38989 | AD128: 38341 | AE128: 51445 | AF128: 51987 | AG128: 50637 | AH128: 48175 | AI128: 41912 | AJ128: 49175 | AK128: 52611 | AL128: 52029 | AM128: =SUMIF($D$141:$D$335,$C128,AM$141:AM$335) -> 46320 | AN128: 42381 | AO128: 39898 | AP128: 27886 | AQ128: 23008 | AR128: 23533 | AX128: =SUMPRODUCT(($D$141:$D$335=$C128)*(AX$141:AX$335)*($F$141:$F$335))/$F128 -> 0.01049930965 | AY128: 0.01262319783 | AZ128: 0.01063185452 | BA128: 0.008704161982 | BB128: 0.01150704154 | BC128: 0.00960961124 | BD128: 0.002815396511 | BE128: 0.005252020313 | BF128: 0.003475957327 | BI128: =SUMPRODUCT(($D$141:$D$335=$C128)*(BI$141:BI$335)*($G$141:$G$335))/$G128 -> 0.01032895218 | BJ128: 0.0102412812 | BK128: 0.007495794143 | BL128: 0.01037775555 | BM128: 0.009284913187 | BN128: 0.006993942465 | BO128: 0.007246306077 | BP128: 0.001886809558 | BQ128: 0.003124405684
C129: NOTTINGHAMSHIRE | E129: 1082218 | F129: 185463 | G129: 198009 | H129: 383472 | I129: 30348 | J129: 33188 | K129: 30132 | L129: 29993 | M129: 43538 | N129: 42621 | O129: 41630 | P129: 37849 | Q129: 32726 | R129: 37260 | S129: 37889 | T129: 34278 | U129: 27876 | V129: 25725 | W129: 24020 | X129: 15762 | Y129: 11156 | Z129: 8757 | AA129: 28663 | AB129: 31341 | AC129: 28749 | AD129: 29365 | AE129: 45360 | AF129: 37899 | AG129: 37329 | AH129: 34906 | AI129: 30899 | AJ129: 34950 | AK129: 36536 | AL129: 33635 | AM129: 28051 | AN129: 26002 | AO129: 25789 | AP129: 18340 | AQ129: 14190 | AR129: 15466 | AX129: 0.01436729104 | AY129: 0.01616083876 | AZ129: 0.01761198446 | BA129: 0.01236100817 | BB129: 0.0132629096 | BC129: 0.0142260834 | BD129: 0.01065476762 | BE129: 0.00687700227 | BF129: 0.007933878987 | BI129: 0.01724183564 | BJ129: 0.01203036265 | BK129: 0.01162992432 | BL129: 0.01710723282 | BM129: 0.01234663347 | BN129: 0.01021555047 | BO129: 0.01058624631 | BP129: 0.009202940872 | BQ129: 0.00770390653
C130: SHROPSHIRE AND TELFORD AND WREKIN | E130: 498893 | F130: 102689 | G130: 110349 | H130: 213038 | I130: 12956 | J130: 14536 | K130: 14217 | L130: 14292 | M130: 14003 | N130: 14665 | O130: 14487 | P130: 14440 | Q130: 13986 | R130: 17750 | S130: 18876 | T130: 17863 | U130: 15401 | V130: 14841 | W130: 14405 | X130: 9721 | Y130: 6622 | Z130: 4960 | AA130: 11982 | AB130: 13629 | AC130: 13691 | AD130: 13575 | AE130: 13140 | AF130: 14310 | AG130: 14581 | AH130: 14261 | AI130: 13785 | AJ130: 17569 | AK130: 19020 | AL130: 17700 | AM130: 15509 | AN130: 15375 | AO130: 15388 | AP130: 10914 | AQ130: 7925 | AR130: 8518 | AX130: 0.01960318206 | AY130: 0.02236535137 | AZ130: 0.01985610465 | BA130: 0.0176555892 | BB130: 0.01819813622 | BC130: 0.01313881115 | BD130: 0.01394634379 | BE130: 0.01196652518 | BF130: 0.008153642867 | BI130: 0.01600019064 | BJ130: 0.01950264236 | BK130: 0.01639523219 | BL130: 0.01706068551 | BM130: 0.01676869832 | BN130: 0.01205794911 | BO130: 0.01284103545 | BP130: 0.008437162314 | BQ130: 0.009190210719
C131: SOMERSET | E131: 577998 | F131: 123323 | G131: 134869 | H131: 258192 | I131: 14302 | J131: 16047 | K131: 16319 | L131: 16695 | M131: 14869 | N131: 16282 | O131: 16280 | P131: 16152 | Q131: 15343 | R131: 19327 | S131: 21407 | T131: 20597 | U131: 17993 | V131: 18058 | W131: 17917 | X131: 11931 | Y131: 8375 | Z131: 7045 | AA131: 13749 | AB131: 15618 | AC131: 15533 | AD131: 15455 | AE131: 14024 | AF131: 16290 | AG131: 16311 | AH131: 15955 | AI131: 15663 | AJ131: 19592 | AK131: 21471 | AL131: 20803 | AM131: 18744 | AN131: 19135 | AO131: 19108 | AP131: 13442 | AQ131: 10080 | AR131: 12086 | AX131: 0.01967493584 | AY131: 0.01677852349 | AZ131: 0.01732673267 | BA131: 0.01622060016 | BB131: 0.01596169194 | BC131: 0.01413982718 | BD131: 0.01239349342 | BE131: 0.009946442234 | BF131: 0.008333333333 | BI131: 0.01848998459 | BJ131: 0.01815431165 | BK131: 0.01560178306 | BL131: 0.0153621068 | BM131: 0.01585014409 | BN131: 0.01631205674 | BO131: 0.009769713887 | BP131: 0.01313061507 | BQ131: 0.008867667121
C132: SOUTH EAST LONDON | E132: 1974946 | F132: 267256 | G132: 282005 | H132: 549261 | I132: 61088 | J132: 60736 | K132: 54970 | L132: 48920 | M132: 55232 | N132: 88150 | O132: 97145 | P132: 92423 | Q132: 78065 | R132: 72864 | S132: 69673 | T132: 57429 | U132: 41718 | V132: 30845 | W132: 26299 | X132: 17620 | Y132: 12946 | Z132: 10726 | AA132: 58012 | AB132: 58427 | AC132: 53424 | AD132: 47524 | AE132: 65568 | AF132: 103717 | AG132: 101991 | AH132: 89036 | AI132: 71990 | AJ132: 66403 | AK132: 64613 | AL132: 54784 | AM132: 40852 | AN132: 32837 | AO132: 29943 | AP132: 22308 | AQ132: 17626 | AR132: 19042 | AX132: 0.0241913527 | AY132: 0.02397298062 | AZ132: 0.02287051277 | BA132: 0.01890712387 | BB132: 0.02128921195 | BC132: 0.01973278902 | BD132: 0.01703126286 | BE132: 0.01758401096 | BF132: 0.01513613143 | BI132: 0.01979177994 | BJ132: 0.01839443005 | BK132: 0.02098778296 | BL132: 0.01831068413 | BM132: 0.01672386987 | BN132: 0.01595837871 | BO132: 0.01462637859 | BP132: 0.01366717787 | BQ132: 0.01377368346
C133: SOUTH WEST LONDON | E133: 1672810 | F133: 236039 | G133: 245602 | H133: 481641 | I133: 51547 | J133: 53658 | K133: 48061 | L133: 41478 | M133: 44135 | N133: 66244 | O133: 76067 | P133: 80095 | Q133: 72913 | R133: 65141 | S133: 59367 | T133: 48552 | U133: 36338 | V133: 28755 | W133: 24913 | X133: 16279 | Y133: 11911 | Z133: 9924 | AA133: 49237 | AB133: 51288 | AC133: 46499 | AD133: 40326 | AE133: 52261 | AF133: 77907 | AG133: 79258 | AH133: 75589 | AI133: 62616 | AJ133: 56849 | AK133: 53559 | AL133: 45382 | AM133: 35336 | AN133: 30634 | AO133: 27813 | AP133: 19751 | AQ133: 15439 | AR133: 17688 | AX133: 0.02376598014 | AY133: 0.02123357255 | AZ133: 0.01896914834 | BA133: 0.01878498871 | BB133: 0.02164259789 | BC133: 0.01847059511 | BD133: 0.01910404009 | BE133: 0.015107433 | BF133: 0.01959551044 | BI133: 0.01963110164 | BJ133: 0.01858913788 | BK133: 0.01995190182 | BL133: 0.01827163498 | BM133: 0.01713977759 | BN133: 0.01833736438 | BO133: 0.01784813439 | BP133: 0.01273195559 | BQ133: 0.01685687836
C134: SOUTH YORKSHIRE AND BASSETLAW | E134: 1563976 | F134: 280781 | G134: 298041 | H134: 578822 | I134: 43848 | J134: 47983 | K134: 45121 | L134: 43298 | M134: 58022 | N134: 58807 | O134: 55360 | P134: 51743 | Q134: 46283 | R134: 54724 | S134: 56729 | T134: 51710 | U134: 43228 | V134: 38469 | W134: 36638 | X134: 24224 | Y134: 16999 | Z134: 12784 | AA134: 41954 | AB134: 45870 | AC134: 43188 | AD134: 41721 | AE134: 56305 | AF134: 54319 | AG134: 53110 | AH134: 48598 | AI134: 42828 | AJ134: 52072 | AK134: 54260 | AL134: 50058 | AM134: 42866 | AN134: 39279 | AO134: 39476 | AP134: 27828 | AQ134: 22027 | AR134: 22247 | AX134: 0.01606011047 | AY134: 0.01383682189 | AZ134: 0.01519772354 | BA134: 0.01417885518 | BB134: 0.01402447642 | BC134: 0.01056655911 | BD134: 0.008054535734 | BE134: 0.0059685888 | BF134: 0.005593009778 | BI134: 0.01293677498 | BJ134: 0.01270700417 | BK134: 0.01226419847 | BL134: 0.01242115386 | BM134: 0.01095413471 | BN134: 0.01181779034 | BO134: 0.007707060838 | BP134: 0.006135731979 | BQ134: 0.004766268118
C135: STAFFORDSHIRE | E135: 1153579 | F135: 224737 | G135: 238349 | H135: 463086 | I135: 31072 | J135: 34435 | K135: 33072 | L135: 30783 | M135: 33916 | N135: 38044 | O135: 38546 | P135: 37463 | Q135: 34112 | R135: 42054 | S135: 43424 | T135: 39672 | U135: 34064 | V135: 31623 | W135: 30831 | X135: 21044 | Y135: 13949 | Z135: 10130 | AA135: 29726 | AB135: 32815 | AC135: 31782 | AD135: 29206 | AE135: 32554 | AF135: 36419 | AG135: 36976 | AH135: 35480 | AI135: 32193 | AJ135: 39845 | AK135: 41730 | AL135: 38559 | AM135: 33853 | AN135: 32325 | AO135: 32879 | AP135: 23673 | AQ135: 17449 | AR135: 17881 | AX135: 0.01351093448 | AY135: 0.01624007406 | AZ135: 0.01394932299 | BA135: 0.01434674428 | BB135: 0.01387116691 | BC135: 0.01231238468 | BD135: 0.007199924618 | BE135: 0.0073226231 | BF135: 0.00376631808 | BI135: 0.01269437005 | BJ135: 0.01306611447 | BK135: 0.01294830945 | BL135: 0.0111752205 | BM135: 0.01382627169 | BN135: 0.01115263692 | BO135: 0.006023522734 | BP135: 0.005506884577 | BQ135: 0.005486250973
C136: SUFFOLK AND NORTH EAST ESSEX | E136: 1013640 | F136: 203254 | G136: 221280 | H136: 424534 | I136: 26424 | J136: 29326 | K136: 28820 | L136: 27579 | M136: 28736 | N136: 30639 | O136: 30887 | P136: 31682 | Q136: 29686 | R136: 34743 | S136: 36212 | T136: 33814 | U136: 29046 | V136: 28886 | W136: 30150 | X136: 19690 | Y136: 14093 | Z136: 11363 | AA136: 25034 | AB136: 28161 | AC136: 27651 | AD136: 25852 | AE136: 28508 | AF136: 30674 | AG136: 30888 | AH136: 30551 | AI136: 29140 | AJ136: 34125 | AK136: 36567 | AL136: 33460 | AM136: 30654 | AN136: 30685 | AO136: 32298 | AP136: 21896 | AQ136: 16796 | AR136: 18924 | AX136: 0.0185418426 | AY136: 0.01845114526 | AZ136: 0.01951859284 | BA136: 0.0174800758 | BB136: 0.01826593695 | BC136: 0.01340103676 | BD136: 0.01562242441 | BE136: 0.01083268305 | BF136: 0.01107728504 | BI136: 0.01469157672 | BJ136: 0.01963204815 | BK136: 0.01418054779 | BL136: 0.01532946156 | BM136: 0.01590601268 | BN136: 0.01218055112 | BO136: 0.01387102477 | BP136: 0.01143905216 | BQ136: 0.01094008127
C137: SURREY HEARTLANDS | E137: 908031 | F137: 166311 | G137: 178091 | H137: 344402 | I137: 24926 | J137: 28755 | K137: 28017 | L137: 26050 | M137: 24298 | N137: 25925 | O137: 27362 | P137: 31555 | Q137: 32786 | R137: 34372 | S137: 35045 | T137: 31211 | U137: 24683 | V137: 20994 | W137: 20614 | X137: 13604 | Y137: 10526 | Z137: 9634 | AA137: 23863 | AB137: 27518 | AC137: 26491 | AD137: 24980 | AE137: 25584 | AF137: 26333 | AG137: 28232 | AH137: 31791 | AI137: 31752 | AJ137: 33039 | AK137: 33280 | AL137: 29885 | AM137: 23866 | AN137: 22080 | AO137: 22385 | AP137: 16357 | AQ137: 13418 | AR137: 16820 | AX137: 0.01646811737 | AY137: 0.01492507761 | AZ137: 0.0139680267 | BA137: 0.01321599254 | BB137: 0.01432644535 | BC137: 0.0134520484 | BD137: 0.01506476073 | BE137: 0.0113297145 | BF137: 0.01054859781 | BI137: 0.01240243099 | BJ137: 0.01461517452 | BK137: 0.01380022465 | BL137: 0.01134632682 | BM137: 0.01456285819 | BN137: 0.01272175157 | BO137: 0.009788831222 | BP137: 0.01137579718 | BQ137: 0.01067952721
C138: SUSSEX AND EAST SURREY | E138: 1951867 | F138: 379448 | G138: 417821 | H138: 797269 | I138: 49361 | J138: 56186 | K138: 54328 | L138: 52113 | M138: 55018 | N138: 59988 | O138: 61802 | P138: 63894 | Q138: 60907 | R138: 69769 | S138: 73710 | T138: 66075 | U138: 55215 | V138: 50948 | W138: 52059 | X138: 34122 | Y138: 24872 | Z138: 22447 | AA138: 46793 | AB138: 52912 | AC138: 51251 | AD138: 50627 | AE138: 57080 | AF138: 60205 | AG138: 61877 | AH138: 62881 | AI138: 59724 | AJ138: 67882 | AK138: 71304 | AL138: 64722 | AM138: 56657 | AN138: 55028 | AO138: 57686 | AP138: 40324 | AQ138: 32054 | AR138: 40046 | AX138: 0.02160728982 | AY138: 0.02070135351 | AZ138: 0.0202597685 | BA138: 0.01721788128 | BB138: 0.01811358216 | BC138: 0.0169222724 | BD138: 0.0149981773 | BE138: 0.01295256702 | BF138: 0.0121978699 | BI138: 0.01769789477 | BJ138: 0.01666422485 | BK138: 0.01653883294 | BL138: 0.01564460397 | BM138: 0.01443509311 | BN138: 0.0150355576 | BO138: 0.01436795771 | BP138: 0.01273631046 | BQ138: 0.01136717403
C139: THE BLACK COUNTRY | E139: 1462688 | F139: 236726 | G139: 247002 | H139: 483728 | I139: 46485 | J139: 50958 | K139: 47483 | L139: 43469 | M139: 46276 | N139: 54929 | O139: 56929 | P139: 54293 | Q139: 49245 | R139: 53275 | S139: 50843 | T139: 44335 | U139: 36175 | V139: 30936 | W139: 27522 | X139: 20703 | Y139: 14637 | Z139: 11575 | AA139: 44615 | AB139: 48003 | AC139: 44909 | AD139: 41142 | AE139: 47115 | AF139: 54060 | AG139: 54891 | AH139: 50903 | AI139: 42658 | AJ139: 47322 | AK139: 46840 | AL139: 41643 | AM139: 34699 | AN139: 31632 | AO139: 29470 | AP139: 23771 | AQ139: 19092 | AR139: 19855 | AX139: 0.01360257468 | AY139: 0.01536831538 | AZ139: 0.01463726081 | BA139: 0.01312296509 | BB139: 0.01108495968 | BC139: 0.01189527842 | BD139: 0.01104867577 | BE139: 0.008685663087 | BF139: 0.005662850129 | BI139: 0.0118056348 | BJ139: 0.01215581511 | BK139: 0.01282917822 | BL139: 0.01187829235 | BM139: 0.0124992676 | BN139: 0.00960084881 | BO139: 0.008335920055 | BP139: 0.007040118324 | BQ139: 0.00434812589
C140: WEST YORKSHIRE AND HARROGATE | E140: 2718816 | F140: 452825 | G140: 481360 | H140: 934185 | I140: 81174 | J140: 89326 | K140: 83981 | L140: 77618 | M140: 91064 | N140: 101209 | O140: 102241 | P140: 100540 | Q140: 87904 | R140: 96304 | S140: 94688 | T140: 84554 | U140: 70887 | V140: 62585 | W140: 56785 | X140: 36691 | Y140: 26512 | Z140: 20123 | AA140: 77755 | AB140: 85156 | AC140: 80490 | AD140: 75884 | AE140: 95675 | AF140: 97478 | AG140: 97996 | AH140: 92577 | AI140: 80315 | AJ140: 89944 | AK140: 89605 | AL140: 82158 | AM140: 69895 | AN140: 64051 | AO140: 61553 | AP140: 42809 | AQ140: 34782 | AR140: 36507 | AX140: 0.0145509492 | AY140: 0.01550434761 | AZ140: 0.01577780074 | BA140: 0.01397585984 | BB140: 0.01760854579 | BC140: 0.01084638033 | BD140: 0.01182982904 | BE140: 0.008122624016 | BF140: 0.007271947717 | BI140: 0.01181563608 | BJ140: 0.01516667097 | BK140: 0.01159681021 | BL140: 0.01483134305 | BM140: 0.01279837228 | BN140: 0.01170148826 | BO140: 0.008596850396 | BP140: 0.008132049124 | BQ140: 0.007055734965
B141: 02N | C141: NHS Airedale, Wharfedale and Craven CCG | D141: West Yorkshire and Harrogate | E141: =SUM(I141:AR141) -> 159725 | F141: =SUMIF(I$94:Z$94,TRUE,I141:Z141) -> 32367 | G141: =SUMIF(AA$94:AR$94,TRUE,AA141:AR141) -> 35387 | H141: =+F141+G141 -> 67754 | I141: 4081 | J141: 4894 | K141: 4911 | L141: 4695 | M141: 4023 | N141: 4518 | O141: 4525 | P141: 4844 | Q141: 4519 | R141: 5593 | S141: 5887 | T141: 5693 | U141: 5026 | V141: 4726 | W141: 4461 | X141: 2824 | Y141: 2057 | Z141: 1693 | AA141: 3951 | AB141: 4612 | AC141: 4581 | AD141: 4327 | AE141: 3933 | AF141: 4448 | AG141: 4641 | AH141: 4667 | AI141: 4652 | AJ141: 5556 | AK141: 5898 | AL141: 5698 | AM141: 4986 | AN141: 4843 | AO141: 4764 | AP141: 3342 | AQ141: 2701 | AR141: 3155 | AX141: 0.01257861635 | AY141: 0.01863354037 | AZ141: 0.01219512195 | BA141: 0.01506024096 | BB141: 0.02077151335 | BC141: 0.01453488372 | BD141: 0.005730659026 | BE141: 0.0113960114 | BF141: 0.008450704225 | BI141: 0.01385041551 | BJ141: 0.01639344262 | BK141: 0.01075268817 | BL141: 0.01595744681 | BM141: 0.01308900524 | BN141: 0.01550387597 | BO141: 0.005089058524 | BP141: 0.01012658228 | BQ141: 0.007518796992
B142: 09C | C142: NHS Ashford CCG | D142: Kent & Medway | E142: 134519 | F142: 24377 | G142: 26286 | H142: 50663 | I142: 3989 | J142: 4427 | K142: 4212 | L142: 4249 | M142: 3825 | N142: 4182 | O142: 4169 | P142: 4169 | Q142: 4000 | R142: 4727 | S142: 4975 | T142: 4408 | U142: 3487 | V142: 3296 | W142: 3415 | X142: 2172 | Y142: 1455 | Z142: 1169 | AA142: 3819 | AB142: 4246 | AC142: 4114 | AD142: 3809 | AE142: 3563 | AF142: 4449 | AG142: 4539 | AH142: 4249 | AI142: 4166 | AJ142: 4953 | AK142: 4993 | AL142: 4244 | AM142: 3681 | AN142: 3534 | AO142: 3704 | AP142: 2471 | AQ142: 1729 | AR142: 1930 | AX142: 0.03056768559 | AY142: 0.02118644068 | AZ142: 0.02074688797 | BA142: 0.02032520325 | BB142: 0.02390438247 | BC142: 0.01945525292 | BD142: 0.01145038168 | BE142: 0.01509433962 | BF142: 0.01486988848 | BI142: 0.01992031873 | BJ142: 0.0234375 | BK142: 0.01526717557 | BL142: 0.03007518797 | BM142: 0.02189781022 | BN142: 0.01071428571 | BO142: 0.02120141343 | BP142: 0.01384083045 | BQ142: 0.006825938567
B143: 07L | C143: NHS Barking and Dagenham CCG | D143: North East London | E143: 225367 | F143: 25470 | G143: 26239 | H143: 51709 | I143: 9328 | J143: 10222 | K143: 8861 | L143: 7089 | M143: 6729 | N143: 8129 | O143: 9794 | P143: 10045 | Q143: 9108 | R143: 8196 | S143: 7094 | T143: 5754 | U143: 4139 | V143: 2901 | W143: 2189 | X143: 1337 | Y143: 1090 | Z143: 966 | AA143: 9096 | AB143: 9474 | AC143: 8598 | AD143: 6881 | AE143: 6919 | AF143: 9108 | AG143: 10579 | AH143: 9974 | AI143: 8284 | AJ143: 7244 | AK143: 6519 | AL143: 5179 | AM143: 3819 | AN143: 3042 | AO143: 2482 | AP143: 1900 | AQ143: 1537 | AR143: 1761 | AX143: 0.03097345133 | AY143: 0.02145922747 | AZ143: 0.02521008403 | BA143: 0.02459016393 | BB143: 0.02 | BC143: 0.03137254902 | BD143: 0.01901140684 | BE143: 0.02611940299 | BF143: 0.01818181818 | BI143: 0.0153256705 | BJ143: 0.02641509434 | BK143: 0.01838235294 | BL143: 0.02527075812 | BM143: 0.02112676056 | BN143: 0.01379310345 | BO143: 0.02380952381 | BP143: 0.02325581395 | BQ143: 0.02272727273
B144: 07M | C144: NHS Barnet CCG | D144: North Central London | E144: 425905 | F144: 60125 | G144: 67492 | H144: 127617 | I144: 13402 | J144: 14323 | K144: 13224 | L144: 11329 | M144: 11852 | N144: 16363 | O144: 18435 | P144: 18344 | Q144: 16366 | R144: 14818 | S144: 13315 | T144: 11476 | U144: 9486 | V144: 7852 | W144: 6718 | X144: 4496 | Y144: 3556 | Z144: 3226 | AA144: 12863 | AB144: 13528 | AC144: 12615 | AD144: 10955 | AE144: 13694 | AF144: 18184 | AG144: 19235 | AH144: 18505 | AI144: 15759 | AJ144: 14494 | AK144: 13334 | AL144: 11677 | AM144: 9823 | AN144: 8721 | AO144: 7864 | AP144: 5614 | AQ144: 4664 | AR144: 5795 | AX144: 0.02985074627 | AY144: 0.02717391304 | AZ144: 0.02292768959 | BA144: 0.0275862069 | BB144: 0.02348993289 | BC144: 0.02295081967 | BD144: 0.02564102564 | BE144: 0.0234375 | BF144: 0.01984732824 | BI144: 0.0192926045 | BJ144: 0.02050473186 | BK144: 0.01854714065 | BL144: 0.02427921093 | BM144: 0.01925925926 | BN144: 0.01744186047 | BO144: 0.01857142857 | BP144: 0.01683029453 | BQ144: 0.01793103448
B145: 02P | C145: NHS Barnsley CCG | D145: South Yorkshire and Bassetlaw | E145: 261407 | F145: 49555 | G145: 52515 | H145: 102070 | I145: 7422 | J145: 8158 | K145: 7557 | L145: 6686 | M145: 7479 | N145: 9003 | O145: 8950 | P145: 8627 | Q145: 7566 | R145: 9691 | S145: 10231 | T145: 9032 | U145: 7698 | V145: 7006 | W145: 6521 | X145: 4225 | Y145: 2885 | Z145: 1957 | AA145: 7110 | AB145: 7673 | AC145: 7173 | AD145: 6442 | AE145: 7355 | AF145: 8697 | AG145: 8853 | AH145: 8275 | AI145: 7228 | AJ145: 9392 | AK145: 9829 | AL145: 8925 | AM145: 7807 | AN145: 7044 | AO145: 6981 | AP145: 4738 | AQ145: 3625 | AR145: 3566 | AX145: 0.01982378855 | AY145: 0.01943844492 | AZ145: 0.01906779661 | BA145: 0.01663201663 | BB145: 0.0163599182 | BC145: 0.01408450704 | BD145: 0.009920634921 | BE145: 0.009823182711 | BF145: 0.005836575875 | BI145: 0.01422764228 | BJ145: 0.01603206413 | BK145: 0.0157790927 | BL145: 0.01553398058 | BM145: 0.017208413 | BN145: 0.01315789474 | BO145: 0.007421150278 | BP145: 0.01104972376 | BQ145: 0.005464480874
B146: 99E | C146: NHS Basildon and Brentwood CCG | D146: Mid and South Essex | E146: 280232 | F146: 48953 | G146: 54073 | H146: 103026 | I146: 8716 | J146: 9098 | K146: 8672 | L146: 7996 | M146: 7684 | N146: 9012 | O146: 9717 | P146: 9471 | Q146: 9080 | R146: 9897 | S146: 10162 | T146: 9226 | U146: 7383 | V146: 6277 | W146: 6355 | X146: 3898 | Y146: 3096 | Z146: 2556 | AA146: 8122 | AB146: 8653 | AC146: 8269 | AD146: 7500 | AE146: 7610 | AF146: 9313 | AG146: 10061 | AH146: 9815 | AI146: 8911 | AJ146: 9609 | AK146: 10127 | AL146: 9025 | AM146: 7518 | AN146: 6852 | AO146: 7138 | AP146: 4852 | AQ146: 4139 | AR146: 4422 | AX146: 0.0201793722 | AY146: 0.01758241758 | AZ146: 0.0151187905 | BA146: 0.01489361702 | BB146: 0.01467505241 | BC146: 0.01239669421 | BD146: 0.01020408163 | BE146: 0.008080808081 | BF146: 0.01002004008 | BI146: 0.017578125 | BJ146: 0.01343570058 | BK146: 0.01136363636 | BL146: 0.00936329588 | BM146: 0.01669758813 | BN146: 0.007299270073 | BO146: 0.009057971014 | BP146: 0.008976660682 | BQ146: 0.008896797153
B147: 02Q | C147: NHS Bassetlaw CCG | D147: South Yorkshire and Bassetlaw | E147: 117864 | F147: 24306 | G147: 25752 | H147: 50058 | I147: 3120 | J147: 3401 | K147: 3290 | L147: 3093 | M147: 3282 | N147: 3685 | O147: 3559 | P147: 3391 | Q147: 3423 | R147: 4124 | S147: 4599 | T147: 4370 | U147: 3645 | V147: 3439 | W147: 3453 | X147: 2218 | Y147: 1481 | Z147: 1101 | AA147: 3010 | AB147: 3304 | AC147: 3058 | AD147: 2958 | AE147: 3236 | AF147: 3587 | AG147: 3479 | AH147: 3346 | AI147: 3275 | AJ147: 4185 | AK147: 4556 | AL147: 4237 | AM147: 3613 | AN147: 3616 | AO147: 3561 | AP147: 2483 | AQ147: 1811 | AR147: 1875 | AX147: 0.01680672269 | AY147: 0.02066115702 | AZ147: 0.01214574899 | BA147: 0.02 | BB147: 0.01176470588 | BC147: 0.01550387597 | BD147: 0.01145038168 | BE147: 0 | BF147: 0.007547169811 | BI147: 0.0157480315 | BJ147: 0.01550387597 | BK147: 0.01145038168 | BL147: 0.01509433962 | BM147: 0.007434944238 | BN147: 0.0184501845 | BO147: 0.01811594203 | BP147: 0.003558718861 | BQ147: 0.007092198582
B148: 11E | C148: NHS Bath and North East Somerset CCG | D148: Bath, Swindon and Wiltshire | E148: 208225 | F148: 37478 | G148: 40577 | H148: 78055 | I148: 4997 | J148: 5655 | K148: 5580 | L148: 6532 | M148: 10495 | N148: 6983 | O148: 6135 | P148: 5762 | Q148: 5682 | R148: 6720 | S148: 7084 | T148: 6633 | U148: 5726 | V148: 5031 | W148: 5086 | X148: 3340 | Y148: 2450 | Z148: 2128 | AA148: 4640 | AB148: 5292 | AC148: 5331 | AD148: 6626 | AE148: 11509 | AF148: 7194 | AG148: 6241 | AH148: 6080 | AI148: 5850 | AJ148: 6866 | AK148: 7246 | AL148: 6527 | AM148: 5539 | AN148: 5350 | AO148: 5344 | AP148: 3835 | AQ148: 3100 | AR148: 3636 | AX148: 0.01238390093 | AY148: 0.009174311927 | AZ148: 0.01212121212 | BA148: 0.01796407186 | BB148: 0.008823529412 | BC148: 0.008746355685 | BD148: 0.008670520231 | BE148: 0.01146131805 | BF148: 0.00283286119 | BI148: 0.008196721311 | BJ148: 0.0162601626 | BK148: 0.01333333333 | BL148: 0.002631578947 | BM148: 0.01049868766 | BN148: 0.007792207792 | BO148: 0.005154639175 | BP148: 0.01282051282 | BQ148: 0.005063291139
B149: 06F | C149: NHS Bedfordshire CCG | D149: Milton Keynes, Bedfordshire and Luton | E149: 482946 | F149: 86669 | G149: 91223 | H149: 177892 | I149: 14939 | J149: 15871 | K149: 14692 | L149: 13516 | M149: 12967 | N149: 15078 | O149: 16204 | P149: 17222 | Q149: 15995 | R149: 17611 | S149: 18294 | T149: 16443 | U149: 13281 | V149: 11438 | W149: 11059 | X149: 7002 | Y149: 5134 | Z149: 4018 | AA149: 14027 | AB149: 15195 | AC149: 14009 | AD149: 12404 | AE149: 12140 | AF149: 15561 | AG149: 17402 | AH149: 17446 | AI149: 15756 | AJ149: 17019 | AK149: 17487 | AL149: 15979 | AM149: 13019 | AN149: 12264 | AO149: 11687 | AP149: 7998 | AQ149: 6335 | AR149: 6454 | AX149: 0.02664974619 | AY149: 0.02348578492 | AZ149: 0.02053140097 | BA149: 0.02130177515 | BB149: 0.01969872538 | BC149: 0.01818181818 | BD149: 0.01785714286 | BE149: 0.01754385965 | BF149: 0.0150862069 | BI149: 0.0223266745 | BJ149: 0.0183908046 | BK149: 0.02257336343 | BL149: 0.01876379691 | BM149: 0.01841820152 | BN149: 0.02021276596 | BO149: 0.01981230448 | BP149: 0.01226993865 | BQ149: 0.01616161616
B150: 15A | C150: NHS Berkshire West CCG | D150: Buckinghamshire, Oxfordshire and Berkshire West | E150: 546331 | F150: 89552 | G150: 92243 | H150: 181795 | I150: 15713 | J150: 17970 | K150: 16709 | L150: 15301 | M150: 16745 | N150: 18974 | O150: 20443 | P150: 21807 | Q150: 20996 | R150: 20902 | S150: 19836 | T150: 17420 | U150: 13780 | V150: 11197 | W150: 10891 | X150: 7099 | Y150: 5157 | Z150: 4172 | AA150: 15069 | AB150: 16954 | AC150: 15925 | AD150: 15052 | AE150: 18425 | AF150: 18735 | AG150: 20465 | AH150: 20586 | AI150: 18902 | AJ150: 18863 | AK150: 18354 | AL150: 15932 | AM150: 13220 | AN150: 11903 | AO150: 11672 | AP150: 8022 | AQ150: 6272 | AR150: 6868 | AX150: 0.0218487395 | AY150: 0.01315789474 | AZ150: 0.02272727273 | BA150: 0.02063492063 | BB150: 0.01088646967 | BC150: 0.01692307692 | BD150: 0.01512859304 | BE150: 0.01937406855 | BF150: 0.01169590643 | BI150: 0.01716068643 | BJ150: 0.02147239264 | BK150: 0.01351351351 | BL150: 0.02074074074 | BM150: 0.01161103048 | BN150: 0.01865136298 | BO150: 0.01690140845 | BP150: 0.01108033241 | BQ150: 0.01369863014
B151: 07N | C151: NHS Bexley CCG | D151: South East London | E151: 242620 | F151: 40085 | G151: 45562 | H151: 85647 | I151: 7871 | J151: 8250 | K151: 7787 | L151: 7053 | M151: 6768 | N151: 7750 | O151: 7804 | P151: 8391 | Q151: 7722 | R151: 8194 | S151: 8594 | T151: 7706 | U151: 6092 | V151: 5073 | W151: 4748 | X151: 3198 | Y151: 2570 | Z151: 2104 | AA151: 7232 | AB151: 7823 | AC151: 7439 | AD151: 6781 | AE151: 6933 | AF151: 8429 | AG151: 9098 | AH151: 9213 | AI151: 7969 | AJ151: 8466 | AK151: 8950 | AL151: 7865 | AM151: 6262 | AN151: 5591 | AO151: 5529 | AP151: 4147 | AQ151: 3451 | AR151: 3767 | AX151: 0.01275510204 | AY151: 0.01763224181 | AZ151: 0.01237623762 | BA151: 0.01222493888 | BB151: 0.01207729469 | BC151: 0.01431980907 | BD151: 0.009411764706 | BE151: 0.009324009324 | BF151: 0.01385681293 | BI151: 0.01318681319 | BJ151: 0.01084598698 | BK151: 0.01931330472 | BL151: 0.01263157895 | BM151: 0.01247401247 | BN151: 0.008213552361 | BO151: 0.01221995927 | BP151: 0.006036217304 | BQ151: 0.01
B152: 15E | C152: NHS Birmingham and Solihull CCG | D152: Birmingham and Solihull | E152: 1314409 | F152: 199777 | G152: 211455 | H152: 411232 | I152: 42787 | J152: 47440 | K152: 45131 | L152: 41875 | M152: 44341 | N152: 49524 | O152: 51136 | P152: 50169 | Q152: 45093 | R152: 46016 | S152: 43514 | T152: 38063 | U152: 30913 | V152: 25654 | W152: 23227 | X152: 16289 | Y152: 11843 | Z152: 10274 | AA152: 40791 | AB152: 45045 | AC152: 42820 | AD152: 39872 | AE152: 47080 | AF152: 47701 | AG152: 49192 | AH152: 46626 | AI152: 39375 | AJ152: 41163 | AK152: 40445 | AL152: 36498 | AM152: 29658 | AN152: 26810 | AO152: 25397 | AP152: 19010 | AQ152: 15851 | AR152: 17786 | AX152: 0.01119622864 | AY152: 0.01515151515 | AZ152: 0.01377726751 | BA152: 0.01359003398 | BB152: 0.01173184358 | BC152: 0.01214798454 | BD152: 0.008183306056 | BE152: 0.009199134199 | BF152: 0.007506702413 | BI152: 0.01195426195 | BJ152: 0.01078582435 | BK152: 0.01117886179 | BL152: 0.01256281407 | BM152: 0.01240694789 | BN152: 0.009803921569 | BO152: 0.007766990291 | BP152: 0.008670520231 | BQ152: 0.004297994269
B153: 00Q | C153: NHS Blackburn with Darwen CCG | D153: Lancashire and South Cumbria | E153: 175768 | F153: 27819 | G153: 28432 | H153: 56251 | I153: 5669 | J153: 6421 | K153: 6179 | L153: 5885 | M153: 5885 | N153: 6293 | O153: 6514 | P153: 6478 | Q153: 5879 | R153: 6314 | S153: 6098 | T153: 5425 | U153: 4397 | V153: 3816 | W153: 3322 | X153: 2198 | Y153: 1471 | Z153: 1092 | AA153: 5477 | AB153: 6144 | AC153: 6058 | AD153: 5528 | AE153: 5341 | AF153: 5947 | AG153: 6346 | AH153: 6160 | AI153: 5149 | AJ153: 5850 | AK153: 5568 | AL153: 5037 | AM153: 4403 | AN153: 3780 | AO153: 3391 | AP153: 2408 | AQ153: 1889 | AR153: 1956 | AX153: 0.004424778761 | AY153: 0.01321585903 | AZ153: 0.02608695652 | BA153: 0.008474576271 | BB153: 0.01260504202 | BC153: 0.008298755187 | BD153: 0.008230452675 | BE153: 0.01632653061 | BF153: 0 | BI153: 0.008368200837 | BJ153: 0.01659751037 | BK153: 0.01224489796 | BL153: 0.01612903226 | BM153: 0.007936507937 | BN153: 0.01181102362 | BO153: 0.007782101167 | BP153: 0.01158301158 | BQ153: -0.003816793893
B154: 00R | C154: NHS Blackpool CCG | D154: Lancashire and South Cumbria | E154: 173972 | F154: 35694 | G154: 36194 | H154: 71888 | I154: 4620 | J154: 4833 | K154: 4775 | L154: 4455 | M154: 4878 | N154: 5818 | O154: 5938 | P154: 5547 | Q154: 4959 | R154: 6574 | S154: 7105 | T154: 6652 | U154: 5476 | V154: 4755 | W154: 4674 | X154: 3173 | Y154: 2166 | Z154: 1693 | AA154: 4466 | AB154: 4669 | AC154: 4538 | AD154: 4288 | AE154: 4978 | AF154: 5758 | AG154: 5642 | AH154: 5003 | AI154: 4547 | AJ154: 5798 | AK154: 6421 | AL154: 5973 | AM154: 5092 | AN154: 4621 | AO154: 4822 | AP154: 3628 | AQ154: 2822 | AR154: 2815 | AX154: 0.01094890511 | AY154: 0.007220216606 | AZ154: 0.003584229391 | BA154: 0.01071428571 | BB154: 0.007067137809 | BC154: 0.00350877193 | BD154: 0.003496503497 | BE154: 0.01045296167 | BF154: -0.003448275862 | BI154: 0.006779661017 | BJ154: 0 | BK154: 0.003367003367 | BL154: 0.006711409396 | BM154: 0.003333333333 | BN154: 0.006644518272 | BO154: 0 | BP154: 0 | BQ154: 0
B155: 00T | C155: NHS Bolton CCG | D155: Greater Manchester Health and Social Care Partnership | E155: 310545 | F155: 52363 | G155: 54796 | H155: 107159 | I155: 9837 | J155: 11100 | K155: 10600 | L155: 9525 | M155: 9383 | N155: 10477 | O155: 11128 | P155: 10867 | Q155: 10079 | R155: 11350 | S155: 11151 | T155: 9748 | U155: 8015 | V155: 7399 | W155: 6796 | X155: 4429 | Y155: 2839 | Z155: 1986 | AA155: 9468 | AB155: 10514 | AC155: 9849 | AD155: 8718 | AE155: 8906 | AF155: 10504 | AG155: 11123 | AH155: 10328 | AI155: 9232 | AJ155: 10398 | AK155: 10448 | AL155: 9372 | AM155: 7851 | AN155: 7330 | AO155: 7335 | AP155: 5088 | AQ155: 3548 | AR155: 3824 | AX155: 0.01691331924 | AY155: 0.0103950104 | AZ155: 0.01851851852 | BA155: 0.0101010101 | BB155: 0.014 | BC155: 0.007889546351 | BD155: 0.009784735812 | BE155: 0.001937984496 | BF155: 0.007736943907 | BI155: 0.01348747592 | BJ155: 0.01711026616 | BK155: 0.009345794393 | BL155: 0.01296296296 | BM155: 0.01462522852 | BN155: 0.009009009009 | BO155: 0.0125 | BP155: 0.003527336861 | BQ155: 0.007029876977
B156: 02W | C156: NHS Bradford City CCG | D156: West Yorkshire and Harrogate | E156: 141290 | F156: 12254 | G156: 11356 | H156: 23610 | I156: 5764 | J156: 6315 | K156: 6209 | L156: 5627 | M156: 6303 | N156: 7182 | O156: 7645 | P156: 7535 | Q156: 5694 | R156: 4605 | S156: 3255 | T156: 2476 | U156: 2207 | V156: 1728 | W156: 812 | X156: 735 | Y156: 605 | Z156: 436 | AA156: 5597 | AB156: 6081 | AC156: 5924 | AD156: 5446 | AE156: 6443 | AF156: 5959 | AG156: 6151 | AH156: 5519 | AI156: 4115 | AJ156: 3566 | AK156: 2589 | AL156: 2128 | AM156: 1934 | AN156: 1549 | AO156: 1001 | AP156: 811 | AQ156: 684 | AR156: 660 | AX156: 0 | AY156: 0 | AZ156: 0.02702702703 | BA156: 0.01315789474 | BB156: 0.02597402597 | BC156: 0.01265822785 | BD156: 0.0125 | BE156: 0 | BF156: 0 | BI156: 0 | BJ156: 0.01315789474 | BK156: 0.01298701299 | BL156: 0.02564102564 | BM156: 0.025 | BN156: 0 | BO156: 0.01219512195 | BP156: 0.01204819277 | BQ156: 0
B157: 02R | C157: NHS Bradford Districts CCG | D157: West Yorkshire and Harrogate | E157: 334161 | F157: 54754 | G157: 58749 | H157: 113503 | I157: 10888 | J157: 12169 | K157: 11640 | L157: 10224 | M157: 9480 | N157: 10839 | O157: 11606 | P157: 11954 | Q157: 10533 | R157: 11454 | S157: 11512 | T157: 10586 | U157: 9094 | V157: 7683 | W157: 6437 | X157: 4092 | Y157: 3043 | Z157: 2307 | AA157: 10781 | AB157: 11733 | AC157: 11302 | AD157: 9982 | AE157: 9235 | AF157: 11142 | AG157: 12555 | AH157: 12175 | AI157: 10067 | AJ157: 10899 | AK157: 10851 | AL157: 10548 | AM157: 8952 | AN157: 7712 | AO157: 7045 | AP157: 4867 | AQ157: 4320 | AR157: 4454 | AX157: 0.01178781925 | AY157: 0.01553398058 | AZ157: 0.01529636711 | BA157: 0.0131826742 | BB157: 0.01858736059 | BC157: 0.01277372263 | BD157: 0.01081081081 | BE157: 0.01069518717 | BF157: 0.01058201058 | BI157: 0.01208981002 | BJ157: 0.01365187713 | BK157: 0.01178451178 | BL157: 0.0149750416 | BM157: 0.0131147541 | BN157: 0.01132686084 | BO157: 0.0112 | BP157: 0.007911392405 | BQ157: 0.009419152276
B158: 07P | C158: NHS Brent CCG | D158: North West London | E158: 386245 | F158: 51256 | G158: 51690 | H158: 102946 | I158: 11560 | J158: 11973 | K158: 11409 | L158: 10554 | M158: 12129 | N158: 17540 | O158: 21464 | P158: 20194 | Q158: 16865 | R158: 14692 | S158: 13280 | T158: 11014 | U158: 8527 | V158: 6156 | W158: 4436 | X158: 3359 | Y158: 2521 | Z158: 1963 | AA158: 11030 | AB158: 11456 | AC158: 10883 | AD158: 10058 | AE158: 12719 | AF158: 17814 | AG158: 18698 | AH158: 16424 | AI158: 13606 | AJ158: 12231 | AK158: 11645 | AL158: 10370 | AM158: 8037 | AN158: 6287 | AO158: 4998 | AP158: 4045 | AQ158: 3208 | AR158: 3100 | AX158: 0.02314814815 | AY158: 0.02714932127 | AZ158: 0.02863436123 | BA158: 0.02141327623 | BB158: 0.02096436059 | BC158: 0.02258726899 | BD158: 0.02008032129 | BE158: 0.01968503937 | BF158: 0.01930501931 | BI158: 0.01902748414 | BJ158: 0.02904564315 | BK158: 0.01814516129 | BL158: 0.02376237624 | BM158: 0.02127659574 | BN158: 0.01515151515 | BO158: 0.02425373134 | BP158: 0.01275045537 | BQ158: 0.02158273381
B159: 09D | C159: NHS Brighton and Hove CCG | D159: Sussex and East Surrey | E159: 317586 | F159: 48161 | G159: 48264 | H159: 96425 | I159: 7077 | J159: 7801 | K159: 7566 | L159: 8132 | M159: 13854 | N159: 14547 | O159: 14327 | P159: 13544 | Q159: 12411 | R159: 13107 | S159: 12343 | T159: 9697 | U159: 7272 | V159: 5820 | W159: 5240 | X159: 3210 | Y159: 2388 | Z159: 2191 | AA159: 6724 | AB159: 7584 | AC159: 7425 | AD159: 8772 | AE159: 16978 | AF159: 13975 | AG159: 12974 | AH159: 12008 | AI159: 10883 | AJ159: 11472 | AK159: 10699 | AL159: 8582 | AM159: 6631 | AN159: 5823 | AO159: 5434 | AP159: 3877 | AQ159: 3143 | AR159: 4075 | AX159: 0.02216748768 | AY159: 0.02409638554 | AZ159: 0.01647058824 | BA159: 0.01851851852 | BB159: 0.01363636364 | BC159: 0.01793721973 | BD159: 0.01762114537 | BE159: 0.01515151515 | BF159: 0.006396588486 | BI159: 0.01136363636 | BJ159: 0.01797752809 | BK159: 0.01986754967 | BL159: 0.01515151515 | BM159: 0.01066098081 | BN159: 0.01687763713 | BO159: 0.01659751037 | BP159: 0.01020408163 | BQ159: 0.0101010101
B160: 15C | C160: NHS Bristol, North Somerset and South Gloucestershire CCG | D160: Bristol, North Somerset and South Gloucestershire | E160: 1010368 | F160: 165830 | G160: 176101 | H160: 341931 | I160: 29047 | J160: 30833 | K160: 27672 | L160: 26611 | M160: 35961 | N160: 39326 | O160: 40922 | P160: 39070 | Q160: 33861 | R160: 34841 | S160: 34621 | T160: 30287 | U160: 24651 | V160: 22053 | W160: 21260 | X160: 14308 | Y160: 10056 | Z160: 8594 | AA160: 27439 | AB160: 29289 | AC160: 26699 | AD160: 26528 | AE160: 38056 | AF160: 40738 | AG160: 41216 | AH160: 37128 | AI160: 31224 | AJ160: 31976 | AK160: 32794 | AL160: 29039 | AM160: 24560 | AN160: 22912 | AO160: 22873 | AP160: 16392 | AQ160: 12825 | AR160: 14706 | AX160: 0.01376146789 | AY160: 0.01422107304 | AZ160: 0.01274697259 | BA160: 0.01321585903 | BB160: 0.01366459627 | BC160: 0.009803921569 | BD160: 0.008495145631 | BE160: 0.007821901324 | BF160: 0.00776119403 | BI160: 0.01122268163 | BJ160: 0.01343457944 | BK160: 0.01095100865 | BL160: 0.01311288483 | BM160: 0.01012943163 | BN160: 0.01337047354 | BO160: 0.008796041781 | BP160: 0.009264305177 | BQ160: 0.009179265659
B161: 07Q | C161: NHS Bromley CCG | D161: South East London | E161: 350802 | F161: 60790 | G161: 67080 | H161: 127870 | I161: 10780 | J161: 11580 | K161: 10586 | L161: 9456 | M161: 8535 | N161: 10057 | O161: 11224 | P161: 12892 | Q161: 12631 | R161: 13246 | S161: 13246 | T161: 11482 | U161: 9056 | V161: 7630 | W161: 7500 | X161: 4819 | Y161: 3632 | Z161: 3425 | AA161: 10127 | AB161: 10951 | AC161: 10230 | AD161: 8971 | AE161: 8537 | AF161: 11031 | AG161: 12539 | AH161: 13961 | AI161: 12828 | AJ161: 12770 | AK161: 12985 | AL161: 11251 | AM161: 8965 | AN161: 8343 | AO161: 8490 | AP161: 6043 | AQ161: 5069 | AR161: 5934 | AX161: 0.01481481481 | AY161: 0.01824817518 | AZ161: 0.01792114695 | BA161: 0.01232394366 | BB161: 0.01565217391 | BC161: 0.01369863014 | BD161: 0.01182432432 | BE161: 0.01335559265 | BF161: 0.01317957166 | BI161: 0.01582278481 | BJ161: 0.01401869159 | BK161: 0.0153609831 | BL161: 0.01210287443 | BM161: 0.01195814649 | BN161: 0.01329394387 | BO161: 0.007288629738 | BP161: 0.01302460203 | BQ161: 0.01142857143
B162: 14Y | C162: NHS Buckinghamshire CCG | D162: Buckinghamshire, Oxfordshire and Berkshire West | E162: 562090 | F162: 103699 | G162: 110608 | H162: 214307 | I162: 16167 | J162: 18548 | K162: 18024 | L162: 16208 | M162: 14195 | N162: 15959 | O162: 16796 | P162: 18359 | Q162: 18777 | R162: 20691 | S162: 21747 | T162: 19350 | U162: 15725 | V162: 13411 | W162: 12974 | X162: 8643 | Y162: 6566 | Z162: 5283 | AA162: 15403 | AB162: 17646 | AC162: 17581 | AD162: 15523 | AE162: 14272 | AF162: 16789 | AG162: 17687 | AH162: 19474 | AI162: 18909 | AJ162: 20775 | AK162: 20929 | AL162: 18967 | AM162: 15398 | AN162: 14158 | AO162: 14085 | AP162: 10067 | AQ162: 8026 | AR162: 8978 | AX162: 0.01447776629 | AY162: 0.02038735984 | AZ162: 0.01398601399 | BA162: 0.01674876847 | BB162: 0.01453488372 | BC162: 0.01814708691 | BD162: 0.01313320826 | BE162: 0.009259259259 | BF162: 0.0119266055 | BI162: 0.01883239171 | BJ162: 0.01940850277 | BK162: 0.01722574796 | BL162: 0.01426024955 | BM162: 0.01757469244 | BN162: 0.01554404145 | BO162: 0.009353741497 | BP162: 0.01179443976 | BQ162: 0.01165695254
B163: 00V | C163: NHS Bury CCG | D163: Greater Manchester Health and Social Care Partnership | E163: 205095 | F163: 36586 | G163: 38733 | H163: 75319 | I163: 6204 | J163: 6879 | K163: 6570 | L163: 5823 | M163: 5582 | N163: 6771 | O163: 7156 | P163: 7166 | Q163: 6333 | R163: 7354 | S163: 7621 | T163: 6972 | U163: 5484 | V163: 5037 | W163: 4903 | X163: 3053 | Y163: 2031 | Z163: 1485 | AA163: 5792 | AB163: 6574 | AC163: 6162 | AD163: 5520 | AE163: 5466 | AF163: 6804 | AG163: 7282 | AH163: 7082 | AI163: 6254 | AJ163: 7002 | AK163: 7179 | AL163: 6719 | AM163: 5396 | AN163: 5210 | AO163: 5169 | AP163: 3560 | AQ163: 2761 | AR163: 2739 | AX163: 0.01519756839 | AY163: 0.0119760479 | AZ163: 0.01183431953 | BA163: 0.01169590643 | BB163: 0.01156069364 | BC163: 0.005714285714 | BD163: 0.01136363636 | BE163: 0 | BF163: 0.005617977528 | BI163: 0.01634877384 | BJ163: 0.008042895442 | BK163: 0.01595744681 | BL163: 0.007853403141 | BM163: 0.01558441558 | BN163: 0.01278772379 | BO163: 0.005050505051 | BP163: 0.005025125628 | BQ163: 0.0075
B164: 02T | C164: NHS Calderdale CCG | D164: West Yorkshire and Harrogate | E164: 221345 | F164: 40597 | G164: 43161 | H164: 83758 | I164: 6385 | J164: 7174 | K164: 6909 | L164: 6418 | M164: 6005 | N164: 6959 | O164: 7205 | P164: 7426 | Q164: 6804 | R164: 8473 | S164: 8548 | T164: 7591 | U164: 6479 | V164: 5734 | W164: 5277 | X164: 3255 | Y164: 2122 | Z164: 1591 | AA164: 5979 | AB164: 6900 | AC164: 6750 | AD164: 5895 | AE164: 5804 | AF164: 6959 | AG164: 7409 | AH164: 7247 | AI164: 6747 | AJ164: 8139 | AK164: 8204 | AL164: 7499 | AM164: 6448 | AN164: 5813 | AO164: 5518 | AP164: 3723 | AQ164: 2776 | AR164: 3180 | AX164: 0.0157480315 | AY164: 0.0180878553 | AZ164: 0.01776649746 | BA164: 0.0174563591 | BB164: 0.01715686275 | BC164: 0.01204819277 | BD164: 0.01904761905 | BE164: 0.009345794393 | BF164: 0.002314814815 | BI164: 0.009546539379 | BJ164: 0.01891252955 | BK164: 0.01392111369 | BL164: 0.01601830664 | BM164: 0.01126126126 | BN164: 0.01559020045 | BO164: 0.008771929825 | BP164: 0.00652173913 | BQ164: 0.006479481641
B165: 06H | C165: NHS Cambridgeshire and Peterborough CCG | D165: Cambridgeshire and Peterborough | E165: 972906 | F165: 160522 | G165: 169533 | H165: 330055 | I165: 27485 | J165: 30524 | K165: 28153 | L165: 27362 | M165: 33486 | N165: 39464 | O165: 40079 | P165: 38032 | Q165: 33867 | R165: 34019 | S165: 33239 | T165: 29546 | U165: 24377 | V165: 21687 | W165: 20705 | X165: 13427 | Y165: 9657 | Z165: 7884 | AA165: 26022 | AB165: 28780 | AC165: 26153 | AD165: 26033 | AE165: 32908 | AF165: 36607 | AG165: 36730 | AH165: 34490 | AI165: 30439 | AJ165: 32218 | AK165: 31712 | AL165: 28564 | AM165: 24391 | AN165: 22808 | AO165: 22012 | AP165: 15253 | AQ165: 11570 | AR165: 13223 | AX165: 0.02257636122 | AY165: 0.01753246753 | AZ165: 0.01978302489 | BA165: 0.01689612015 | BB165: 0.016 | BC165: 0.01695941853 | BD165: 0.01369863014 | BE165: 0.01351351351 | BF165: 0.0115942029 | BI165: 0.01831501832 | BJ165: 0.01738609113 | BK165: 0.01708898055 | BL165: 0.01506373117 | BM165: 0.01712328767 | BN165: 0.01515151515 | BO165: 0.01326699834 | BP165: 0.01200218221 | BQ165: 0.01185983827
B166: 07R | C166: NHS Camden CCG | D166: North Central London | E166: 283133 | F166: 30010 | G166: 31634 | H166: 61644 | I166: 6324 | J166: 6199 | K166: 5888 | L166: 6206 | M166: 13549 | N166: 17496 | O166: 17027 | P166: 14806 | Q166: 11130 | R166: 9197 | S166: 7832 | T166: 6018 | U166: 4743 | V166: 3606 | W166: 3170 | X166: 2040 | Y166: 1398 | Z166: 1203 | AA166: 5919 | AB166: 6061 | AC166: 5806 | AD166: 7133 | AE166: 20624 | AF166: 20420 | AG166: 17383 | AH166: 12824 | AI166: 9546 | AJ166: 7951 | AK166: 7068 | AL166: 5769 | AM166: 4605 | AN166: 4138 | AO166: 3654 | AP166: 2602 | AQ166: 1862 | AR166: 1936 | AX166: 0.03278688525 | AY166: 0.0380952381 | AZ166: 0.03363914373 | BA166: 0.0325443787 | BB166: 0.03438395415 | BC166: 0.02770083102 | BD166: 0.02156334232 | BE166: 0.02110817942 | BF166: 0.02583979328 | BI166: 0.02994011976 | BJ166: 0.02906976744 | BK166: 0.03107344633 | BL166: 0.02465753425 | BM166: 0.02941176471 | BN166: 0.02337662338 | BO166: 0.02791878173 | BP166: 0.02469135802 | BQ166: 0.02168674699
B167: 04Y | C167: NHS Cannock Chase CCG | D167: Staffordshire | E167: 133657 | F167: 26441 | G167: 27994 | H167: 54435 | I167: 3659 | J167: 3837 | K167: 3629 | L167: 3598 | M167: 3869 | N167: 4381 | O167: 4334 | P167: 4048 | Q167: 3734 | R167: 5071 | S167: 5437 | T167: 4855 | U167: 3923 | V167: 3612 | W167: 3585 | X167: 2445 | Y167: 1518 | Z167: 1066 | AA167: 3476 | AB167: 3697 | AC167: 3578 | AD167: 3309 | AE167: 3583 | AF167: 4351 | AG167: 4376 | AH167: 4110 | AI167: 3675 | AJ167: 4907 | AK167: 5122 | AL167: 4660 | AM167: 3909 | AN167: 3802 | AO167: 3850 | AP167: 2764 | AQ167: 1909 | AR167: 1978 | AX167: 0.0157480315 | AY167: 0.01937984496 | AZ167: 0.01140684411 | BA167: 0.02631578947 | BB167: 0.01098901099 | BC167: 0.01449275362 | BD167: 0.01071428571 | BE167: 0.007067137809 | BF167: 0 | BI167: 0.02158273381 | BJ167: 0.01056338028 | BK167: 0.01393728223 | BL167: 0.01718213058 | BM167: 0.01013513514 | BN167: 0.01337792642 | BO167: 0.009900990099 | BP167: 0.003267973856 | BQ167: 0.00651465798
B168: 09E | C168: NHS Canterbury and Coastal CCG | D168: Kent & Medway | E168: 225139 | F168: 41231 | G168: 46082 | H168: 87313 | I168: 4942 | J168: 5772 | K168: 5985 | L168: 7468 | M168: 11515 | N168: 7946 | O168: 7035 | P168: 6247 | Q168: 5861 | R168: 6925 | S168: 7372 | T168: 6741 | U168: 6166 | V168: 5971 | W168: 6035 | X168: 3988 | Y168: 2744 | Z168: 2214 | AA168: 4579 | AB168: 5408 | AC168: 5623 | AD168: 7637 | AE168: 12286 | AF168: 7042 | AG168: 6449 | AH168: 6116 | AI168: 5930 | AJ168: 7060 | AK168: 7507 | AL168: 7147 | AM168: 6335 | AN168: 6396 | AO168: 6729 | AP168: 4553 | AQ168: 3342 | AR168: 4073 | AX168: 0.02088772846 | AY168: 0.02046035806 | AZ168: 0.01503759398 | BA168: 0.01975308642 | BB168: 0.01694915254 | BC168: 0.01904761905 | BD168: 0.01168224299 | BE168: 0.01385681293 | BF168: 0.009111617312 | BI168: 0.01138952164 | BJ168: 0.02252252252 | BK168: 0.0154185022 | BL168: 0.01518438178 | BM168: 0.01923076923 | BN168: 0.01257861635 | BO168: 0.01242236025 | BP168: 0.01022494888 | BQ168: 0.01417004049
B169: 99F | C169: NHS Castle Point and Rochford CCG | D169: Mid and South Essex | E169: 185712 | F169: 38885 | G169: 42763 | H169: 81648 | I169: 4565 | J169: 5055 | K169: 5205 | L169: 4980 | M169: 5344 | N169: 5453 | O169: 5226 | P169: 5200 | Q169: 5234 | R169: 6344 | S169: 7104 | T169: 6581 | U169: 5412 | V169: 5297 | W169: 5872 | X169: 3757 | Y169: 2768 | Z169: 2094 | AA169: 4319 | AB169: 4892 | AC169: 4870 | AD169: 4938 | AE169: 4795 | AF169: 5279 | AG169: 5291 | AH169: 5306 | AI169: 5230 | AJ169: 6538 | AK169: 6904 | AL169: 6466 | AM169: 5560 | AN169: 5808 | AO169: 6586 | AP169: 4523 | AQ169: 3490 | AR169: 3426 | AX169: 0.01907356948 | AY169: 0.01069518717 | AZ169: 0.01587301587 | BA169: 0.0078125 | BB169: 0.01550387597 | BC169: 0.01017811705 | BD169: 0.01259445844 | BE169: 0.002487562189 | BF169: 0.01488833747 | BI169: 0.009732360097 | BJ169: 0.01445783133 | BK169: 0.01662707838 | BL169: 0.01168224299 | BM169: 0.01385681293 | BN169: 0.01138952164 | BO169: 0.009009009009 | BP169: 0.006696428571 | BQ169: 0.006651884701
B170: 09A | C170: NHS Central London (Westminster) CCG | D170: North West London | E170: 230949 | F170: 29811 | G170: 27190 | H170: 57001 | I170: 4714 | J170: 4539 | K170: 4094 | L170: 4732 | M170: 11746 | N170: 13704 | O170: 13564 | P170: 12594 | Q170: 10653 | R170: 9299 | S170: 8156 | T170: 6443 | U170: 4549 | V170: 3398 | W170: 2916 | X170: 1911 | Y170: 1279 | Z170: 1159 | AA170: 4368 | AB170: 4341 | AC170: 4011 | AD170: 5045 | AE170: 15280 | AF170: 14291 | AG170: 12817 | AH170: 9836 | AI170: 7699 | AJ170: 6621 | AK170: 5796 | AL170: 5048 | AM170: 4038 | AN170: 3476 | AO170: 3104 | AP170: 2127 | AQ170: 1715 | AR170: 1886 | AX170: 0.03703703704 | AY170: 0.02777777778 | AZ170: 0.03474903475 | BA170: 0.02611940299 | BB170: 0.02545454545 | BC170: 0.02482269504 | BD170: 0.02422145329 | BE170: 0.03040540541 | BF170: 0.02295081967 | BI170: 0.01953125 | BJ170: 0.04214559387 | BK170: 0.02205882353 | BL170: 0.02517985612 | BM170: 0.02105263158 | BN170: 0.02405498282 | BO170: 0.02348993289 | BP170: 0.02295081967 | BQ170: 0.02564102564
B171: 00X | C171: NHS Chorley and South Ribble CCG | D171: Lancashire and South Cumbria | E171: 184308 | F171: 36198 | G171: 38348 | H171: 74546 | I171: 5122 | J171: 5683 | K171: 5366 | L171: 4760 | M171: 4654 | N171: 5539 | O171: 5838 | P171: 6012 | Q171: 5725 | R171: 6842 | S171: 7148 | T171: 6535 | U171: 5363 | V171: 5207 | W171: 5115 | X171: 3318 | Y171: 2089 | Z171: 1423 | AA171: 4954 | AB171: 5280 | AC171: 5036 | AD171: 4464 | AE171: 4597 | AF171: 5695 | AG171: 6116 | AH171: 5931 | AI171: 5509 | AJ171: 6639 | AK171: 6993 | AL171: 6383 | AM171: 5526 | AN171: 5322 | AO171: 5303 | AP171: 3661 | AQ171: 2570 | AR171: 2590 | AX171: 0.0122324159 | AY171: 0.02114803625 | AZ171: 0.02071005917 | BA171: 0.0231884058 | BB171: 0.01699716714 | BC171: 0.01114206128 | BD171: 0.01928374656 | BE171: 0.01351351351 | BF171: 0.01066666667 | BI171: 0.01709401709 | BJ171: 0.01680672269 | BK171: 0.01377410468 | BL171: 0.02445652174 | BM171: 0.01856763926 | BN171: 0.015625 | BO171: 0.01538461538 | BP171: 0.005050505051 | BQ171: 0.01256281407
B172: 07T | C172: NHS City and Hackney CCG | D172: North East London | E172: 321071 | F172: 33541 | G172: 33526 | H172: 67067 | I172: 10572 | J172: 10157 | K172: 9265 | L172: 7910 | M172: 8966 | N172: 16306 | O172: 20572 | P172: 18182 | Q172: 13099 | R172: 10789 | S172: 9807 | T172: 7776 | U172: 5420 | V172: 3755 | W172: 2648 | X172: 1826 | Y172: 1314 | Z172: 995 | AA172: 10326 | AB172: 9725 | AC172: 8930 | AD172: 7829 | AE172: 10906 | AF172: 20781 | AG172: 22532 | AH172: 16621 | AI172: 11305 | AJ172: 9231 | AK172: 8697 | AL172: 7183 | AM172: 5370 | AN172: 3899 | AO172: 2992 | AP172: 2171 | AQ172: 1639 | AR172: 1575 | AX172: 0.02602230483 | AY172: 0.03260869565 | AZ172: 0.03157894737 | BA172: 0.02380952381 | BB172: 0.02325581395 | BC172: 0.03571428571 | BD172: 0.02194357367 | BE172: 0.01840490798 | BF172: 0.02108433735 | BI172: 0.03401360544 | BJ172: 0.02960526316 | BK172: 0.02875399361 | BL172: 0.02173913043 | BM172: 0.0273556231 | BN172: 0.02662721893 | BO172: 0.02593659942 | BP172: 0.01966292135 | BQ172: 0.02203856749
B173: 09G | C173: NHS Coastal West Sussex CCG | D173: Sussex and East Surrey | E173: 516905 | F173: 110956 | G173: 126128 | H173: 237084 | I173: 12323 | J173: 14361 | K173: 13789 | L173: 12819 | M173: 13202 | N173: 14380 | O173: 14412 | P173: 14751 | Q173: 14200 | R173: 17306 | S173: 19081 | T173: 17679 | U173: 15553 | V173: 15272 | W173: 16506 | X173: 11307 | Y173: 8229 | Z173: 7329 | AA173: 11751 | AB173: 13264 | AC173: 12648 | AD173: 12262 | AE173: 13107 | AF173: 14133 | AG173: 14439 | AH173: 14868 | AI173: 14509 | AJ173: 17297 | AK173: 19043 | AL173: 18089 | AM173: 16550 | AN173: 17001 | AO173: 18641 | AP173: 13412 | AQ173: 10487 | AR173: 12905 | AX173: 0.02071563089 | AY173: 0.02121771218 | AZ173: 0.0189701897 | BA173: 0.0195035461 | BB173: 0.01826086957 | BC173: 0.01622544833 | BD173: 0.01512605042 | BE173: 0.01407284768 | BF173: 0.01224489796 | BI173: 0.01767068273 | BJ173: 0.01657458564 | BK173: 0.01630434783 | BL173: 0.01451489687 | BM173: 0.01656626506 | BN173: 0.01407407407 | BO173: 0.01533966399 | BP173: 0.01294964029 | BQ173: 0.01136363636
B174: 03V | C174: NHS Corby CCG | D174: Northamptonshire | E174: 79478 | F174: 12746 | G174: 13397 | H174: 26143 | I174: 2639 | J174: 2828 | K174: 2510 | L174: 2162 | M174: 2041 | N174: 2842 | O174: 3245 | P174: 3347 | Q174: 2676 | R174: 2783 | S174: 2909 | T174: 2681 | U174: 2085 | V174: 1646 | W174: 1373 | X174: 931 | Y174: 660 | Z174: 461 | AA174: 2447 | AB174: 2726 | AC174: 2419 | AD174: 2099 | AE174: 2113 | AF174: 3036 | AG174: 3328 | AH174: 3087 | AI174: 2472 | AJ174: 2535 | AK174: 2824 | AL174: 2529 | AM174: 2107 | AN174: 1693 | AO174: 1555 | AP174: 1091 | AQ174: 792 | AR174: 806 | AX174: 0.04716981132 | AY174: 0.009009009009 | AZ174: 0.02678571429 | BA174: 0.01739130435 | BB174: 0.01709401709 | BC174: 0.02521008403 | BD174: 0.02459016393 | BE174: 0.008 | BF174: 0.02380952381 | BI174: 0.01694915254 | BJ174: 0.025 | BK174: 0.0325203252 | BL174: 0.0157480315 | BM174: 0.04651162791 | BN174: -0.007407407407 | BO174: 0.0223880597 | BP174: 0.02919708029 | BQ174: 0.007092198582
B175: 05A | C175: NHS Coventry and Rugby CCG | D175: Coventry and Warwickshire | E175: 516553 | F175: 78676 | G175: 80541 | H175: 159217 | I175: 15304 | J175: 16917 | K175: 15335 | L175: 16366 | M175: 24728 | N175: 21132 | O175: 20570 | P175: 19514 | Q175: 17009 | R175: 17864 | S175: 17080 | T175: 15248 | U175: 11897 | V175: 9969 | W175: 9288 | X175: 6516 | Y175: 4664 | Z175: 4014 | AA175: 14627 | AB175: 15934 | AC175: 14551 | AD175: 15481 | AE175: 25078 | AF175: 19321 | AG175: 19318 | AH175: 17787 | AI175: 14826 | AJ175: 15674 | AK175: 15363 | AL175: 13573 | AM175: 11127 | AN175: 10144 | AO175: 10152 | AP175: 7634 | AQ175: 5961 | AR175: 6587 | AX175: 0.01485884101 | AY175: 0.01610541728 | AZ175: 0.01873198847 | BA175: 0.01272984441 | BB175: 0.0125698324 | BC175: 0.01379310345 | BD175: 0.01224489796 | BE175: 0.009408602151 | BF175: 0.0119840213 | BI175: 0.01358695652 | BJ175: 0.01474530831 | BK175: 0.01188903567 | BL175: 0.01305483029 | BM175: 0.01288659794 | BN175: 0.01399491094 | BO175: 0.006273525721 | BP175: 0.01122194514 | BQ175: 0.008631319359
B176: 09H | C176: NHS Crawley CCG | D176: Sussex and East Surrey | E176: 134188 | F176: 20648 | G176: 21664 | H176: 42312 | I176: 4483 | J176: 4751 | K176: 4111 | L176: 3692 | M176: 3736 | N176: 4766 | O176: 5529 | P176: 5964 | Q176: 5048 | R176: 4941 | S176: 4788 | T176: 4269 | U176: 3387 | V176: 2620 | W176: 2222 | X176: 1392 | Y176: 993 | Z176: 977 | AA176: 4114 | AB176: 4333 | AC176: 3925 | AD176: 3389 | AE176: 3749 | AF176: 5082 | AG176: 5778 | AH176: 5536 | AI176: 4537 | AJ176: 4412 | AK176: 4365 | AL176: 4020 | AM176: 3286 | AN176: 2731 | AO176: 2486 | AP176: 1580 | AQ176: 1356 | AR176: 1840 | AX176: 0.01875 | AY176: 0.01840490798 | AZ176: 0.03012048193 | BA176: 0.01754385965 | BB176: 0.01724137931 | BC176: 0.02259887006 | BD176: 0.005524861878 | BE176: 0.01648351648 | BF176: 0.02162162162 | BI176: 0.01704545455 | BJ176: 0.01117318436 | BK176: 0.02209944751 | BL176: 0.01081081081 | BM176: 0.005347593583 | BN176: 0.01595744681 | BO176: 0.01570680628 | BP176: 0.005154639175 | BQ176: 0.01538461538
B177: 07V | C177: NHS Croydon CCG | D177: South West London | E177: 414124 | F177: 62593 | G177: 65373 | H177: 127966 | I177: 13441 | J177: 13780 | K177: 12959 | L177: 12348 | M177: 11874 | N177: 15120 | O177: 17517 | P177: 17609 | Q177: 15946 | R177: 15011 | S177: 15179 | T177: 13075 | U177: 9982 | V177: 7634 | W177: 6462 | X177: 4240 | Y177: 3383 | Z177: 2638 | AA177: 12835 | AB177: 13303 | AC177: 12234 | AD177: 11337 | AE177: 11536 | AF177: 16027 | AG177: 17921 | AH177: 17082 | AI177: 14269 | AJ177: 14009 | AK177: 14280 | AL177: 12524 | AM177: 9645 | AN177: 7881 | AO177: 7086 | AP177: 5247 | AQ177: 4204 | AR177: 4506 | AX177: 0.02146690519 | AY177: 0.01926444834 | AZ177: 0.02233676976 | BA177: 0.01680672269 | BB177: 0.01983471074 | BC177: 0.01944894652 | BD177: 0.01430842607 | BE177: 0.01724137931 | BF177: 0.01848998459 | BI177: 0.0205371248 | BJ177: 0.01857585139 | BK177: 0.02279635258 | BL177: 0.01783060921 | BM177: 0.01605839416 | BN177: 0.01724137931 | BO177: 0.01553672316 | BP177: 0.009735744089 | BQ177: 0.01652892562
B178: 00C | C178: NHS Darlington CCG | D178: Durham, Darlington and Tees, Hambleton, Richmondshire and Whitby | E178: 108651 | F178: 21017 | G178: 22461 | H178: 43478 | I178: 2924 | J178: 3398 | K178: 3247 | L178: 2946 | M178: 2839 | N178: 3304 | O178: 3475 | P178: 3565 | Q178: 3329 | R178: 3898 | S178: 4057 | T178: 3825 | U178: 3276 | V178: 2973 | W178: 2728 | X178: 1817 | Y178: 1304 | Z178: 1037 | AA178: 2770 | AB178: 3169 | AC178: 3125 | AD178: 2872 | AE178: 2897 | AF178: 3444 | AG178: 3531 | AH178: 3442 | AI178: 3306 | AJ178: 3692 | AK178: 3940 | AL178: 3796 | AM178: 3266 | AN178: 3024 | AO178: 2941 | AP178: 2014 | AQ178: 1723 | AR178: 1757 | AX178: 0.01 | AY178: 0.00495049505 | AZ178: 0.0197044335 | BA178: 0.009661835749 | BB178: 0.01435406699 | BC178: 0.004716981132 | BD178: 0.009389671362 | BE178: 0.004651162791 | BF178: 0.00462962963 | BI178: 0.004464285714 | BJ178: 0.008888888889 | BK178: 0.01762114537 | BL178: 0.004329004329 | BM178: 0.01724137931 | BN178: 0.004237288136 | BO178: 0.01687763713 | BP178: 0.008298755187 | BQ178: 0.008230452675
B179: 09J | C179: NHS Dartford, Gravesham and Swanley CCG | D179: Kent & Medway | E179: 270809 | F179: 45782 | G179: 49693 | H179: 95475 | I179: 8856 | J179: 9324 | K179: 8642 | L179: 7706 | M179: 7238 | N179: 8540 | O179: 9626 | P179: 9542 | Q179: 8728 | R179: 9312 | S179: 9614 | T179: 8520 | U179: 7035 | V179: 5828 | W179: 5745 | X179: 3818 | Y179: 2830 | Z179: 2392 | AA179: 8581 | AB179: 8974 | AC179: 8352 | AD179: 7104 | AE179: 7214 | AF179: 9478 | AG179: 10362 | AH179: 10062 | AI179: 8475 | AJ179: 9218 | AK179: 9469 | AL179: 8378 | AM179: 6902 | AN179: 6274 | AO179: 6490 | AP179: 4555 | AQ179: 3740 | AR179: 3885 | AX179: 0.01360544218 | AY179: 0.02237136465 | AZ179: 0.01969365427 | BA179: 0.01287553648 | BB179: 0.01906779661 | BC179: 0.01455301455 | BD179: 0.01229508197 | BE179: 0.01012145749 | BF179: 0.01402805611 | BI179: 0.01875 | BJ179: 0.01840490798 | BK179: 0.0140562249 | BL179: 0.01584158416 | BM179: 0.01754385965 | BN179: 0.01149425287 | BO179: 0.01136363636 | BP179: 0.01123595506 | BQ179: 0.01296296296
B180: 02X | C180: NHS Doncaster CCG | D180: South Yorkshire and Bassetlaw | E180: 322035 | F180: 60345 | G180: 64570 | H180: 124915 | I180: 9251 | J180: 10218 | K180: 9543 | L180: 8625 | M180: 9134 | N180: 11199 | O180: 11405 | P180: 10747 | Q180: 9455 | R180: 11083 | S180: 11760 | T180: 11344 | U180: 9510 | V180: 8454 | W180: 7793 | X180: 5109 | Y180: 3564 | Z180: 2811 | AA180: 8672 | AB180: 9734 | AC180: 9254 | AD180: 8225 | AE180: 9052 | AF180: 10933 | AG180: 11104 | AH180: 9983 | AI180: 8846 | AJ180: 10657 | AK180: 11705 | AL180: 10989 | AM180: 9545 | AN180: 8678 | AO180: 8373 | AP180: 5783 | AQ180: 4777 | AR180: 4720 | AX180: 0.01423487544 | AY180: 0.008771929825 | AZ180: 0.01391304348 | BA180: 0.0102915952 | BB180: 0.01358234295 | BC180: 0.00837520938 | BD180: 0.009966777409 | BE180: 0.006578947368 | BF180: 0.006535947712 | BI180: 0.01623376623 | BJ180: 0.009584664537 | BK180: 0.01107594937 | BL180: 0.009389671362 | BM180: 0.009302325581 | BN180: 0.01228878648 | BO180: 0.003034901366 | BP180: 0.003025718608 | BQ180: 0.006033182504
B181: 11J | C181: NHS Dorset CCG | D181: Dorset | E181: 802287 | F181: 169863 | G181: 185836 | H181: 355699 | I181: 18309 | J181: 21303 | K181: 20749 | L181: 20867 | M181: 22498 | N181: 23717 | O181: 24102 | P181: 25022 | Q181: 23307 | R181: 26986 | S181: 29029 | T181: 27707 | U181: 24409 | V181: 23628 | W181: 24912 | X181: 16498 | Y181: 12492 | Z181: 11188 | AA181: 17632 | AB181: 20172 | AC181: 19855 | AD181: 19899 | AE181: 23003 | AF181: 23310 | AG181: 23864 | AH181: 23870 | AI181: 21965 | AJ181: 26158 | AK181: 28193 | AL181: 27448 | AM181: 25379 | AN181: 25736 | AO181: 26655 | AP181: 18572 | AQ181: 15032 | AR181: 18821 | AX181: 0.01685393258 | AY181: 0.01718845918 | AZ181: 0.01448400724 | BA181: 0.01427721594 | BB181: 0.01583577713 | BC181: 0.01385681293 | BD181: 0.01138952164 | BE181: 0.0106981982 | BF181: 0.01002785515 | BI181: 0.01329639889 | BJ181: 0.01093493712 | BK181: 0.01352082207 | BL181: 0.01227321238 | BM181: 0.01212440696 | BN181: 0.01145833333 | BO181: 0.01081359423 | BP181: 0.009169638309 | BQ181: 0.008076728925
B182: 05C | C182: NHS Dudley CCG | D182: The Black Country | E182: 320108 | F182: 61646 | G182: 65905 | H182: 127551 | I182: 9164 | J182: 9874 | K182: 9328 | L182: 8949 | M182: 8999 | N182: 10145 | O182: 10270 | P182: 9886 | Q182: 9306 | R182: 11687 | S182: 11949 | T182: 10571 | U182: 9087 | V182: 8409 | W182: 8349 | X182: 5952 | Y182: 4156 | Z182: 3173 | AA182: 8759 | AB182: 9397 | AC182: 8835 | AD182: 8419 | AE182: 8870 | AF182: 10284 | AG182: 10320 | AH182: 9983 | AI182: 8930 | AJ182: 11152 | AK182: 11461 | AL182: 10213 | AM182: 8897 | AN182: 8867 | AO182: 8754 | AP182: 6751 | AQ182: 5392 | AR182: 5570 | AX182: 0.01360544218 | AY182: 0.01510067114 | AZ182: 0.01487603306 | BA182: 0.009771986971 | BB182: 0.008064516129 | BC182: 0.0112 | BD182: 0.007911392405 | BE182: 0.004709576138 | BF182: 0.003125 | BI182: 0.01236476043 | BJ182: 0.0106870229 | BK182: 0.01359516616 | BL182: 0.008941877794 | BM182: 0.01329394387 | BN182: 0.00583090379 | BO182: 0.007246376812 | BP182: 0.004316546763 | BQ182: 0.001432664756
B183: 00D | C183: NHS Durham Dales, Easington and Sedgefield CCG | D183: Durham, Darlington and Tees, Hambleton, Richmondshire and Whitby | E183: 292752 | F183: 60079 | G183: 63921 | H183: 124000 | I183: 7528 | J183: 8620 | K183: 8509 | L183: 7852 | M183: 8014 | N183: 8775 | O183: 8957 | P183: 8919 | Q183: 8051 | R183: 10305 | S183: 11390 | T183: 10865 | U183: 9594 | V183: 8781 | W183: 8088 | X183: 5117 | Y183: 3651 | Z183: 2593 | AA183: 7112 | AB183: 8146 | AC183: 8112 | AD183: 7424 | AE183: 7699 | AF183: 8926 | AG183: 8780 | AH183: 8756 | AI183: 8085 | AJ183: 10182 | AK183: 11345 | AL183: 10854 | AM183: 9619 | AN183: 8924 | AO183: 8519 | AP183: 5734 | AQ183: 4527 | AR183: 4399 | AX183: 0.01268115942 | AY183: 0.01610017889 | AZ183: 0.01056338028 | BA183: 0.01393728223 | BB183: 0.01374570447 | BC183: 0.008474576271 | BD183: 0.005042016807 | BE183: 0.005016722408 | BF183: 0.003327787022 | BI183: 0.01320132013 | BJ183: 0.008143322476 | BK183: 0.01292407108 | BL183: 0.01116427432 | BM183: 0.006309148265 | BN183: 0.01253918495 | BO183: 0.004643962848 | BP183: 0.004622496148 | BQ183: 0.003067484663
B184: 07W | C184: NHS Ealing CCG | D184: North West London | E184: 440048 | F184: 59410 | G184: 58511 | H184: 117921 | I184: 13232 | J184: 14367 | K184: 13563 | L184: 11857 | M184: 12877 | N184: 18552 | O184: 23191 | P184: 23816 | Q184: 20674 | R184: 17597 | S184: 15407 | T184: 12615 | U184: 9440 | V184: 7255 | W184: 5447 | X184: 3971 | Y184: 2946 | Z184: 2329 | AA184: 12510 | AB184: 13720 | AC184: 12748 | AD184: 11067 | AE184: 13527 | AF184: 18520 | AG184: 20603 | AH184: 19671 | AI184: 15974 | AJ184: 14061 | AK184: 12874 | AL184: 10968 | AM184: 9092 | AN184: 7474 | AO184: 6124 | AP184: 4694 | AQ184: 3671 | AR184: 3614 | AX184: 0.02591792657 | AY184: 0.02526315789 | AZ184: 0.02258726899 | BA184: 0.02610441767 | BB184: 0.02348336595 | BC184: 0.02103250478 | BD184: 0.02059925094 | BE184: 0.0128440367 | BF184: 0.02173913043 | BI184: 0.02357563851 | BJ184: 0.01727447217 | BK184: 0.01886792453 | BL184: 0.01851851852 | BM184: 0.02 | BN184: 0.01782531194 | BO184: 0.01576182137 | BP184: 0.01724137931 | BQ184: 0.01355932203
B185: 06K | C185: NHS East and North Hertfordshire CCG | D185: Hertfordshire and West Essex | E185: 600341 | F185: 105283 | G185: 112389 | H185: 217672 | I185: 17416 | J185: 19181 | K185: 18193 | L185: 17182 | M185: 18076 | N185: 19684 | O185: 20171 | P185: 21391 | Q185: 20075 | R185: 21959 | S185: 22955 | T185: 20332 | U185: 16112 | V185: 13155 | W185: 12517 | X185: 8325 | Y185: 6430 | Z185: 5457 | AA185: 16657 | AB185: 18353 | AC185: 17171 | AD185: 16213 | AE185: 17788 | AF185: 19566 | AG185: 20927 | AH185: 21488 | AI185: 19749 | AJ185: 21429 | AK185: 22107 | AL185: 19425 | AM185: 15483 | AN185: 13729 | AO185: 13842 | AP185: 10001 | AQ185: 8448 | AR185: 9354 | AX185: 0.01682439537 | AY185: 0.0196483971 | AZ185: 0.01724137931 | BA185: 0.01694915254 | BB185: 0.01568627451 | BC185: 0.01351351351 | BD185: 0.01428571429 | BE185: 0.01314553991 | BF185: 0.01019462465 | BI185: 0.01990521327 | BJ185: 0.01765799257 | BK185: 0.01643835616 | BL185: 0.01347708895 | BM185: 0.01773049645 | BN185: 0.01480836237 | BO185: 0.01373390558 | BP185: 0.01185436071 | BQ185: 0.01171548117
B186: 15D | C186: NHS East Berkshire CCG | D186: Frimley Health and Care | E186: 462156 | F186: 71786 | G186: 73233 | H186: 145019 | I186: 14532 | J186: 16281 | K186: 15604 | L186: 14245 | M186: 13001 | N186: 14770 | O186: 17144 | P186: 19400 | Q186: 18164 | R186: 17790 | S186: 16731 | T186: 14469 | U186: 11481 | V186: 9087 | W186: 7722 | X186: 5158 | Y186: 3878 | Z186: 3260 | AA186: 13686 | AB186: 15625 | AC186: 14594 | AD186: 12984 | AE186: 14274 | AF186: 15401 | AG186: 18093 | AH186: 19012 | AI186: 16635 | AJ186: 15902 | AK186: 15184 | AL186: 13543 | AM186: 10725 | AN186: 9005 | AO186: 8532 | AP186: 5990 | AQ186: 4860 | AR186: 5394 | AX186: 0.02825745683 | AY186: 0.02290076336 | AZ186: 0.01791044776 | BA186: 0.01759530792 | BB186: 0.02593659942 | BC186: 0.0154494382 | BD186: 0.0193637621 | BE186: 0.01899592944 | BF186: 0.01331557923 | BI186: 0.02170767004 | BJ186: 0.01558073654 | BK186: 0.01673640167 | BL186: 0.01920438957 | BM186: 0.0134589502 | BN186: 0.01859229748 | BO186: 0.01434159061 | BP186: 0.01542416452 | BQ186: 0.007594936709
B187: 01A | C187: NHS East Lancashire CCG | D187: Lancashire and South Cumbria | E187: 383602 | F187: 70550 | G187: 73507 | H187: 144057 | I187: 11535 | J187: 12617 | K187: 12307 | L187: 11194 | M187: 10798 | N187: 12513 | O187: 13200 | P187: 12534 | Q187: 11622 | R187: 13598 | S187: 14070 | T187: 12950 | U187: 10913 | V187: 10292 | W187: 9617 | X187: 5898 | Y187: 3943 | Z187: 2867 | AA187: 11035 | AB187: 12164 | AC187: 11626 | AD187: 10416 | AE187: 10457 | AF187: 12633 | AG187: 12992 | AH187: 12387 | AI187: 11039 | AJ187: 12878 | AK187: 13192 | AL187: 12481 | AM187: 10989 | AN187: 10044 | AO187: 10031 | AP187: 6539 | AQ187: 4956 | AR187: 5275 | AX187: 0.01608187135 | AY187: 0.01438848921 | AZ187: 0.0170212766 | BA187: 0.009762900976 | BB187: 0.0138121547 | BC187: 0.008174386921 | BD187: 0.009459459459 | BE187: 0.006693440428 | BF187: 0.002659574468 | BI187: 0.01069518717 | BJ187: 0.0119047619 | BK187: 0.01307189542 | BL187: 0.007741935484 | BM187: 0.01408450704 | BN187: 0.0101010101 | BO187: 0.00625 | BP187: 0.003726708075 | BQ187: 0.008663366337
B188: 03W | C188: NHS East Leicestershire and Rutland CCG | D188: Leicester, Leicestershire and Rutland | E188: 333189 | F188: 68631 | G188: 74330 | H188: 142961 | I188: 8744 | J188: 9708 | K188: 9932 | L188: 9577 | M188: 8377 | N188: 9117 | O188: 9274 | P188: 9704 | Q188: 9513 | R188: 11805 | S188: 12774 | T188: 11946 | U188: 10182 | V188: 9706 | W188: 9511 | X188: 6425 | Y188: 4508 | Z188: 3579 | AA188: 8044 | AB188: 9258 | AC188: 9237 | AD188: 8932 | AE188: 7791 | AF188: 9342 | AG188: 9640 | AH188: 10243 | AI188: 10003 | AJ188: 11987 | AK188: 12934 | AL188: 11924 | AM188: 10199 | AN188: 10213 | AO188: 10208 | AP188: 7069 | AQ188: 5771 | AR188: 6012 | AX188: 0.01823708207 | AY188: 0.01641791045 | AZ188: 0.01908957416 | BA188: 0.01152737752 | BB188: 0.01994301994 | BC188: 0.0125698324 | BD188: 0.0124137931 | BE188: 0.006811989101 | BF188: 0.009472259811 | BI188: 0.0179558011 | BJ188: 0.01492537313 | BK188: 0.01737967914 | BL188: 0.01445466491 | BM188: 0.01554404145 | BN188: 0.01403061224 | BO188: 0.01006289308 | BP188: 0.01120797011 | BQ188: 0.006157635468
B189: 02Y | C189: NHS East Riding of Yorkshire CCG | D189: Coast, Humber and Vale | E189: 305305 | F189: 69395 | G189: 75063 | H189: 144458 | I189: 7192 | J189: 8108 | K189: 8226 | L189: 7899 | M189: 7550 | N189: 8017 | O189: 7871 | P189: 7996 | Q189: 8077 | R189: 10456 | S189: 11480 | T189: 11470 | U189: 10396 | V189: 10320 | W189: 10463 | X189: 6789 | Y189: 4825 | Z189: 3652 | AA189: 6411 | AB189: 7671 | AC189: 7851 | AD189: 7449 | AE189: 7004 | AF189: 7721 | AG189: 8109 | AH189: 8064 | AI189: 8321 | AJ189: 10854 | AK189: 11641 | AL189: 11468 | AM189: 10615 | AN189: 10731 | AO189: 11212 | AP189: 7564 | AQ189: 5894 | AR189: 5938 | AX189: 0.01420454545 | AY189: 0.01820728291 | AZ189: 0.01375515818 | BA189: 0.01492537313 | BB189: 0.01069518717 | BC189: 0.01322751323 | BD189: 0.007832898172 | BE189: 0.009067357513 | BF189: 0.007702182285 | BI189: 0.0141025641 | BJ189: 0.01264222503 | BK189: 0.01498127341 | BL189: 0.012300123 | BM189: 0.01093560146 | BN189: 0.01081730769 | BO189: 0.008323424495 | BP189: 0.009433962264 | BQ189: 0.005841121495
B190: 05D | C190: NHS East Staffordshire CCG | D190: Staffordshire | E190: 142844 | F190: 27276 | G190: 28829 | H190: 56105 | I190: 4026 | J190: 4464 | K190: 4232 | L190: 3904 | M190: 3813 | N190: 4851 | O190: 4842 | P190: 4818 | Q190: 4238 | R190: 5161 | S190: 5534 | T190: 4960 | U190: 4193 | V190: 3768 | W190: 3531 | X190: 2378 | Y190: 1637 | Z190: 1275 | AA190: 3718 | AB190: 4276 | AC190: 4152 | AD190: 3775 | AE190: 3778 | AF190: 4663 | AG190: 4575 | AH190: 4452 | AI190: 4101 | AJ190: 4900 | AK190: 5354 | AL190: 4862 | AM190: 4036 | AN190: 3722 | AO190: 3845 | AP190: 2800 | AQ190: 2033 | AR190: 2177 | AX190: 0.02118644068 | AY190: 0.02489626556 | AZ190: 0.008097165992 | BA190: 0.02008032129 | BB190: 0.0157480315 | BC190: 0.02325581395 | BD190: 0 | BE190: 0.01515151515 | BF190: 0.01119402985 | BI190: 0.0078125 | BJ190: 0.01937984496 | BK190: 0.01520912548 | BL190: 0.01872659176 | BM190: 0.01102941176 | BN190: 0.01090909091 | BO190: 0.003597122302 | BP190: 0.007168458781 | BQ190: 0.007117437722
B191: 09L | C191: NHS East Surrey CCG | D191: Sussex and East Surrey | E191: 183482 | F191: 32571 | G191: 34967 | H191: 67538 | I191: 5638 | J191: 6152 | K191: 5692 | L191: 5063 | M191: 4371 | N191: 5141 | O191: 5819 | P191: 6666 | Q191: 6676 | R191: 6967 | S191: 7092 | T191: 6109 | U191: 4893 | V191: 4180 | W191: 4128 | X191: 2532 | Y191: 1872 | Z191: 1765 | AA191: 5350 | AB191: 5836 | AC191: 5543 | AD191: 4916 | AE191: 4247 | AF191: 5540 | AG191: 6320 | AH191: 6921 | AI191: 6409 | AJ191: 6677 | AK191: 6778 | AL191: 5849 | AM191: 4788 | AN191: 4488 | AO191: 4316 | AP191: 3132 | AQ191: 2463 | AR191: 3153 | AX191: 0.02492211838 | AY191: 0.01215805471 | AZ191: 0.02402402402 | BA191: 0.01173020528 | BB191: 0.01449275362 | BC191: 0.02 | BD191: 0.01120448179 | BE191: 0.01385041551 | BF191: 0.01366120219 | BI191: 0.01685393258 | BJ191: 0.01657458564 | BK191: 0.01630434783 | BL191: 0.01336898396 | BM191: 0.01319261214 | BN191: 0.01822916667 | BO191: 0.01278772379 | BP191: 0.0101010101 | BQ191: 0.0125
B192: 09F | C192: NHS Eastbourne, Hailsham and Seaford CCG | D192: Sussex and East Surrey | E192: 197093 | F192: 41851 | G192: 48556 | H192: 90407 | I192: 4669 | J192: 5457 | K192: 5356 | L192: 5365 | M192: 5069 | N192: 5397 | O192: 5412 | P192: 5531 | Q192: 5095 | R192: 6232 | S192: 6830 | T192: 6625 | U192: 5720 | V192: 5760 | W192: 6314 | X192: 4286 | Y192: 3287 | Z192: 3029 | AA192: 4559 | AB192: 5192 | AC192: 4882 | AD192: 5108 | AE192: 5049 | AF192: 5509 | AG192: 5653 | AH192: 5642 | AI192: 5288 | AJ192: 6221 | AK192: 7051 | AL192: 6767 | AM192: 6275 | AN192: 6548 | AO192: 7290 | AP192: 5058 | AQ192: 4144 | AR192: 5423 | AX192: 0.02475247525 | AY192: 0.01690821256 | AZ192: 0.02612826603 | BA192: 0.0162037037 | BB192: 0.02050113895 | BC192: 0.01785714286 | BD192: 0.02192982456 | BE192: 0.01072961373 | BF192: 0.016985138 | BI192: 0.01882845188 | BJ192: 0.01642710472 | BK192: 0.01212121212 | BL192: 0.02195608782 | BM192: 0.015625 | BN192: 0.01730769231 | BO192: 0.01323251418 | BP192: 0.01492537313 | BQ192: 0.01102941176
B193: 01C | C193: NHS Eastern Cheshire CCG | D193: Cheshire and Merseyside | E193: 209352 | F193: 44628 | G193: 48519 | H193: 93147 | I193: 5241 | J193: 6038 | K193: 5900 | L193: 5344 | M193: 4661 | N193: 5420 | O193: 5782 | P193: 6440 | Q193: 6501 | R193: 7718 | S193: 8232 | T193: 7897 | U193: 6495 | V193: 6262 | W193: 6257 | X193: 4095 | Y193: 2938 | Z193: 2452 | AA193: 4829 | AB193: 5658 | AC193: 5517 | AD193: 5057 | AE193: 4353 | AF193: 5396 | AG193: 5876 | AH193: 6404 | AI193: 6370 | AJ193: 7700 | AK193: 8334 | AL193: 7586 | AM193: 6457 | AN193: 6388 | AO193: 6886 | AP193: 4761 | AQ193: 3839 | AR193: 4268 | AX193: 0.01913875598 | AY193: 0.01643192488 | AZ193: 0.01616628176 | BA193: 0.01363636364 | BB193: 0.0134529148 | BC193: 0.01327433628 | BD193: 0.01310043668 | BE193: 0.004310344828 | BF193: 0.008583690987 | BI193: 0.01492537313 | BJ193: 0.01890756303 | BK193: 0.01237113402 | BL193: 0.01425661914 | BM193: 0.01606425703 | BN193: 0.00790513834 | BO193: 0.0137254902 | BP193: 0.01353965184 | BQ193: 0.00572519084
B194: 07X | C194: NHS Enfield CCG | D194: North Central London | E194: 342143 | F194: 49352 | G194: 54260 | H194: 103612 | I194: 11665 | J194: 12580 | K194: 12049 | L194: 10688 | M194: 9872 | N194: 11619 | O194: 12521 | P194: 13118 | Q194: 12116 | R194: 11992 | S194: 11856 | T194: 10116 | U194: 7716 | V194: 5891 | W194: 5129 | X194: 3634 | Y194: 2756 | Z194: 2254 | AA194: 11143 | AB194: 11849 | AC194: 11562 | AD194: 10100 | AE194: 10174 | AF194: 12963 | AG194: 14205 | AH194: 13956 | AI194: 12496 | AJ194: 11863 | AK194: 11798 | AL194: 10068 | AM194: 7979 | AN194: 6555 | AO194: 5764 | AP194: 4552 | AQ194: 3730 | AR194: 3814 | AX194: 0.03311258278 | AY194: 0.01709401709 | AZ194: 0.0231092437 | BA194: 0.0205338809 | BB194: 0.02213279678 | BC194: 0.0157480315 | BD194: 0.01937984496 | BE194: 0.02091254753 | BF194: 0.009310986965 | BI194: 0.02303262956 | BJ194: 0.02063789869 | BK194: 0.02205882353 | BL194: 0.01798561151 | BM194: 0.01590106007 | BN194: 0.01565217391 | BO194: 0.01369863014 | BP194: 0.0152027027 | BQ194: 0.01331114809
B195: 03X | C195: NHS Erewash CCG | D195: Derbyshire | E195: 97703 | F195: 19338 | G195: 20311 | H195: 39649 | I195: 2706 | J195: 2882 | K195: 2663 | L195: 2492 | M195: 2749 | N195: 3238 | O195: 3210 | P195: 3085 | Q195: 2904 | R195: 3675 | S195: 3918 | T195: 3552 | U195: 2865 | V195: 2612 | W195: 2619 | X195: 1681 | Y195: 1164 | Z195: 927 | AA195: 2429 | AB195: 2623 | AC195: 2489 | AD195: 2406 | AE195: 2662 | AF195: 3292 | AG195: 3180 | AH195: 3025 | AI195: 2798 | AJ195: 3546 | AK195: 3828 | AL195: 3424 | AM195: 2826 | AN195: 2627 | AO195: 2769 | AP195: 1886 | AQ195: 1455 | AR195: 1496 | AX195: 0.005524861878 | AY195: 0.02197802198 | AZ195: 0.02150537634 | BA195: 0 | BB195: 0.01578947368 | BC195: 0.01554404145 | BD195: 0.02040816327 | BE195: 0.005 | BF195: 0.004975124378 | BI195: 0.01546391753 | BJ195: 0.02538071066 | BK195: 0.01485148515 | BL195: 0 | BM195: 0.03414634146 | BN195: 0.009433962264 | BO195: 0.01401869159 | BP195: 0 | BQ195: 0
B196: 10K | C196: NHS Fareham and Gosport CCG | D196: Hampshire and the Isle of Wight | E196: 205111 | F196: 42288 | G196: 46487 | H196: 88775 | I196: 5360 | J196: 6079 | K196: 5862 | L196: 5524 | M196: 5324 | N196: 5697 | O196: 5916 | P196: 5770 | Q196: 5537 | R196: 6913 | S196: 7614 | T196: 7657 | U196: 6367 | V196: 5664 | W196: 6037 | X196: 3750 | Y196: 2821 | Z196: 2378 | AA196: 5106 | AB196: 5785 | AC196: 5535 | AD196: 5207 | AE196: 4968 | AF196: 5955 | AG196: 6340 | AH196: 6211 | AI196: 5946 | AJ196: 7301 | AK196: 7858 | AL196: 7602 | AM196: 6251 | AN196: 6174 | AO196: 6466 | AP196: 4537 | AQ196: 3624 | AR196: 3975 | AX196: 0.01767676768 | AY196: 0.01736972705 | AZ196: 0.01707317073 | BA196: 0.01438848921 | BB196: 0.01418439716 | BC196: 0.01165501166 | BD196: 0.01382488479 | BE196: 0.009090909091 | BF196: 0.006756756757 | BI196: 0.0159453303 | BJ196: 0.02242152466 | BK196: 0.01315789474 | BL196: 0.01515151515 | BM196: 0.01492537313 | BN196: 0.01260504202 | BO196: 0.01452282158 | BP196: 0.0081799591 | BQ196: 0.006085192698
B197: 02M | C197: NHS Fylde & Wyre CCG | D197: Lancashire and South Cumbria | E197: 177936 | F197: 41330 | G197: 45770 | H197: 87100 | I197: 3892 | J197: 4516 | K197: 4605 | L197: 4701 | M197: 4205 | N197: 4637 | O197: 4712 | P197: 4761 | Q197: 4425 | R197: 5771 | S197: 6720 | T197: 6795 | U197: 6009 | V197: 5893 | W197: 6234 | X197: 4267 | Y197: 3046 | Z197: 2366 | AA197: 3639 | AB197: 4263 | AC197: 4485 | AD197: 4227 | AE197: 3954 | AF197: 4466 | AG197: 4631 | AH197: 4575 | AI197: 4431 | AJ197: 5940 | AK197: 6774 | AL197: 6982 | AM197: 6142 | AN197: 6269 | AO197: 6637 | AP197: 4967 | AQ197: 3859 | AR197: 4140 | AX197: 0.02094240838 | AY197: 0.01538461538 | AZ197: 0.01515151515 | BA197: 0.01492537313 | BB197: 0.01715686275 | BC197: 0.007228915663 | BD197: 0.00956937799 | BE197: 0.01184834123 | BF197: 0.002341920375 | BI197: 0.01376146789 | BJ197: 0.01357466063 | BK197: 0.008928571429 | BL197: 0.0110619469 | BM197: 0.01312910284 | BN197: 0.01295896328 | BO197: 0.008528784648 | BP197: 0.008456659619 | BQ197: 0.006289308176
B198: 11M | C198: NHS Gloucestershire CCG | D198: Gloucestershire | E198: 649875 | F198: 129469 | G198: 140197 | H198: 269666 | I198: 17326 | J198: 19294 | K198: 18360 | L198: 18349 | M198: 18708 | N198: 19288 | O198: 18916 | P198: 19390 | Q198: 18054 | R198: 21777 | S198: 24133 | T198: 22782 | U198: 19505 | V198: 18151 | W198: 17520 | X198: 12146 | Y198: 8397 | Z198: 6835 | AA198: 16386 | AB198: 18347 | AC198: 17866 | AD198: 18072 | AE198: 18306 | AF198: 19508 | AG198: 20367 | AH198: 20250 | AI198: 18966 | AJ198: 22679 | AK198: 24772 | AL198: 22941 | AM198: 19478 | AN198: 19022 | AO198: 18787 | AP198: 13312 | AQ198: 10055 | AR198: 11830 | AX198: 0.02231404959 | AY198: 0.01859337106 | AZ198: 0.02222222222 | BA198: 0.01552795031 | BB198: 0.01834862385 | BC198: 0.01726726727 | BD198: 0.01402214022 | BE198: 0.01164483261 | BF198: 0.009352517986 | BI198: 0.01846381093 | BJ198: 0.01667875272 | BK198: 0.01640513552 | BL198: 0.01543859649 | BM198: 0.01727712509 | BN198: 0.01426630435 | BO198: 0.01272605492 | BP198: 0.01124338624 | BQ198: 0.009156311315
B199: 06M | C199: NHS Great Yarmouth and Waveney CCG | D199: Norfolk and Waveney | E199: 240437 | F199: 51837 | G199: 55764 | H199: 107601 | I199: 5850 | J199: 6751 | K199: 6436 | L199: 6258 | M199: 6653 | N199: 7442 | O199: 7532 | P199: 7006 | Q199: 6462 | R199: 7903 | S199: 8670 | T199: 8143 | U199: 7542 | V199: 7432 | W199: 8177 | X199: 5226 | Y199: 3679 | Z199: 2968 | AA199: 5646 | AB199: 6369 | AC199: 6208 | AD199: 6027 | AE199: 6178 | AF199: 7012 | AG199: 6739 | AH199: 6425 | AI199: 6219 | AJ199: 7720 | AK199: 8668 | AL199: 8205 | AM199: 7689 | AN199: 7853 | AO199: 8434 | AP199: 5691 | AQ199: 4245 | AR199: 4979 | AX199: 0.0174291939 | AY199: 0.008565310493 | AZ199: 0.01486199575 | BA199: 0.01255230126 | BB199: 0.01239669421 | BC199: 0.01224489796 | BD199: 0.006048387097 | BE199: 0.008016032064 | BF199: 0.005964214712 | BI199: 0.01364522417 | BJ199: 0.007692307692 | BK199: 0.01335877863 | BL199: 0.009416195857 | BM199: 0.01119402985 | BN199: 0.0110701107 | BO199: 0.007299270073 | BP199: 0.003623188406 | BQ199: 0.01083032491
B200: 03A | C200: NHS Greater Huddersfield CCG | D200: West Yorkshire and Harrogate | E200: 248991 | F200: 43918 | G200: 46431 | H200: 90349 | I200: 6942 | J200: 7833 | K200: 7521 | L200: 7025 | M200: 9511 | N200: 8881 | O200: 8448 | P200: 8234 | Q200: 7704 | R200: 9057 | S200: 9147 | T200: 8132 | U200: 6737 | V200: 6141 | W200: 5731 | X200: 3580 | Y200: 2529 | Z200: 1921 | AA200: 6611 | AB200: 7521 | AC200: 7197 | AD200: 6695 | AE200: 9054 | AF200: 8160 | AG200: 7977 | AH200: 8057 | AI200: 7507 | AJ200: 8707 | AK200: 8615 | AL200: 7863 | AM200: 6732 | AN200: 6265 | AO200: 6174 | AP200: 4093 | AQ200: 3345 | AR200: 3344 | AX200: 0.01639344262 | AY200: 0.02073732719 | AZ200: 0.01805869074 | BA200: 0.0155210643 | BB200: 0.01528384279 | BC200: 0.01505376344 | BD200: 0.01271186441 | BE200: 0.008368200837 | BF200: 0.01037344398 | BI200: 0.01489361702 | BJ200: 0.01467505241 | BK200: 0.01652892562 | BL200: 0.01219512195 | BM200: 0.01807228916 | BN200: 0.007889546351 | BO200: 0.01369863014 | BP200: 0.007722007722 | BQ200: 0.005747126437
B201: 01E | C201: NHS Greater Preston CCG | D201: Lancashire and South Cumbria | E201: 209270 | F201: 35446 | G201: 36889 | H201: 72335 | I201: 6105 | J201: 6471 | K201: 6447 | L201: 5713 | M201: 8383 | N201: 7932 | O201: 7487 | P201: 7250 | Q201: 6648 | R201: 7518 | S201: 7563 | T201: 6847 | U201: 5435 | V201: 4768 | W201: 4245 | X201: 2867 | Y201: 2110 | Z201: 1611 | AA201: 5781 | AB201: 6298 | AC201: 5915 | AD201: 5671 | AE201: 8681 | AF201: 7679 | AG201: 7235 | AH201: 6845 | AI201: 5979 | AJ201: 6897 | AK201: 6995 | AL201: 6573 | AM201: 5348 | AN201: 4841 | AO201: 4488 | AP201: 3307 | AQ201: 2595 | AR201: 2742 | AX201: 0.01149425287 | AY201: 0.01704545455 | AZ201: 0.008379888268 | BA201: 0.01385041551 | BB201: 0.01092896175 | BC201: 0.01081081081 | BD201: 0.008021390374 | BE201: 0.007957559682 | BF201: 0.002631578947 | BI201: 0.01344086022 | BJ201: 0.007957559682 | BK201: 0.01052631579 | BL201: 0.01302083333 | BM201: 0.005141388175 | BN201: 0.01023017903 | BO201: 0.007594936709 | BP201: 0.005025125628 | BQ201: 0.0025
B202: 08A | C202: NHS Greenwich CCG | D202: South East London | E202: 298066 | F202: 38042 | G202: 39774 | H202: 77816 | I202: 10798 | J202: 10691 | K202: 9142 | L202: 7732 | M202: 8337 | N202: 11752 | O202: 13853 | P202: 13590 | Q202: 11760 | R202: 10826 | S202: 9876 | T202: 8294 | U202: 6155 | V202: 4523 | W202: 3845 | X202: 2441 | Y202: 1695 | Z202: 1213 | AA202: 10488 | AB202: 10342 | AC202: 8956 | AD202: 7572 | AE202: 9753 | AF202: 13797 | AG202: 15093 | AH202: 14256 | AI202: 11387 | AJ202: 10125 | AK202: 9207 | AL202: 7821 | AM202: 5932 | AN202: 4765 | AO202: 4339 | AP202: 3017 | AQ202: 2290 | AR202: 2403 | AX202: 0.0328358209 | AY202: 0.02601156069 | AZ202: 0.02816901408 | BA202: 0.02465753425 | BB202: 0.02673796791 | BC202: 0.02604166667 | BD202: 0.02284263959 | BE202: 0.02729528536 | BF202: 0.0193236715 | BI202: 0.02179836512 | BJ202: 0.02133333333 | BK202: 0.02872062663 | BL202: 0.02284263959 | BM202: 0.0223325062 | BN202: 0.01941747573 | BO202: 0.01666666667 | BP202: 0.02107728337 | BQ202: 0.01834862385
B203: 09N | C203: NHS Guildford and Waverley CCG | D203: Surrey Heartlands | E203: 225739 | F203: 41012 | G203: 44629 | H203: 85641 | I203: 5470 | J203: 6629 | K203: 6893 | L203: 7213 | M203: 7755 | N203: 6881 | O203: 6709 | P203: 7277 | Q203: 7670 | R203: 8253 | S203: 8373 | T203: 7519 | U203: 6135 | V203: 5245 | W203: 5302 | X203: 3415 | Y203: 2587 | Z203: 2436 | AA203: 5229 | AB203: 6429 | AC203: 6462 | AD203: 7023 | AE203: 8530 | AF203: 6738 | AG203: 6527 | AH203: 7076 | AI203: 7342 | AJ203: 7992 | AK203: 8166 | AL203: 7347 | AM203: 6041 | AN203: 5570 | AO203: 5706 | AP203: 4109 | AQ203: 3390 | AR203: 4300 | AX203: 0.01690140845 | AY203: 0.01662049861 | AZ203: 0.008174386921 | BA203: 0.01351351351 | BB203: 0.016 | BC203: 0.01312335958 | BD203: 0.0103626943 | BE203: 0.01282051282 | BF203: 0.007594936709 | BI203: 0.009900990099 | BJ203: 0.01470588235 | BK203: 0.01207729469 | BL203: 0.009546539379 | BM203: 0.01182033097 | BN203: 0.01168224299 | BO203: 0.006928406467 | BP203: 0.01146788991 | BQ203: 0.009070294785
B204: 01F | C204: NHS Halton CCG | D204: Cheshire and Merseyside | E204: =SUM(I204:AR204) -> 131950 | F204: =SUMIF(I$94:Z$94,TRUE,I204:Z204) -> 23912 | G204: =SUMIF(AA$94:AR$94,TRUE,AA204:AR204) -> 25369 | H204: =+F204+G204 -> 49281 | I204: 3807 | J204: 4154 | K204: 4158 | L204: 3704 | M204: 3785 | N204: 4338 | O204: 4487 | P204: 4594 | Q204: 4133 | R204: 4813 | S204: 4842 | T204: 4502 | U204: 3858 | V204: 3633 | W204: 3079 | X204: 1924 | Y204: 1233 | Z204: 841 | AA204: 3656 | AB204: 4044 | AC204: 3916 | AD204: 3579 | AE204: 3630 | AF204: 4377 | AG204: 4619 | AH204: 4342 | AI204: 3935 | AJ204: 4598 | AK204: 4613 | AL204: 4623 | AM204: 4079 | AN204: 3753 | AO204: 3177 | AP204: 2112 | AQ204: 1581 | AR204: 1431 | AX204: 0.004385964912 | AY204: 0.008733624454 | AZ204: 0.01731601732 | BA204: 0.0170212766 | BB204: 0.004184100418 | BC204: 0.02083333333 | BD204: 0.01224489796 | BE204: 0 | BF204: 0.008064516129 | BI204: 0.007936507937 | BJ204: 0.01181102362 | BK204: 0.01167315175 | BL204: 0.007692307692 | BM204: 0.01526717557 | BN204: 0.01503759398 | BO204: 0.007407407407 | BP204: 0.01470588235 | BQ204: 0
B205: 03D | C205: NHS Hambleton, Richmondshire and Whitby CCG | D205: Durham, Darlington and Tees, Hambleton, Richmondshire and Whitby | E205: 144441 | F205: 34052 | G205: 36751 | H205: 70803 | I205: 3358 | J205: 3738 | K205: 3797 | L205: 3793 | M205: 3431 | N205: 3563 | O205: 3428 | P205: 3522 | Q205: 3398 | R205: 4650 | S205: 5575 | T205: 5774 | U205: 5216 | V205: 5116 | W205: 5106 | X205: 3248 | Y205: 2285 | Z205: 1732 | AA205: 3135 | AB205: 3550 | AC205: 3561 | AD205: 3494 | AE205: 3188 | AF205: 3825 | AG205: 3807 | AH205: 3733 | AI205: 3670 | AJ205: 4997 | AK205: 5830 | AL205: 5968 | AM205: 5268 | AN205: 5265 | AO205: 5300 | AP205: 3526 | AQ205: 2849 | AR205: 2745 | AX205: 0.01194029851 | AY205: 0.01474926254 | AZ205: 0.01744186047 | BA205: 0.01142857143 | BB205: 0.008474576271 | BC205: 0.01120448179 | BD205: 0.002770083102 | BE205: 0.01104972376 | BF205: 0 | BI205: 0.0136239782 | BJ205: 0.0188172043 | BK205: 0.01055408971 | BL205: 0.01044386423 | BM205: 0.01033591731 | BN205: 0.01278772379 | BO205: 0.01262626263 | BP205: 0.007481296758 | BQ205: -0.002475247525
B206: 08C | C206: NHS Hammersmith and Fulham CCG | D206: North West London | E206: 250827 | F206: 26200 | G206: 27264 | H206: 53464 | I206: 5614 | J206: 5711 | K206: 5171 | L206: 4635 | M206: 8245 | N206: 16746 | O206: 18167 | P206: 15599 | Q206: 11163 | R206: 8668 | S206: 7254 | T206: 5484 | U206: 3973 | V206: 3130 | W206: 2547 | X206: 1665 | Y206: 1142 | Z206: 1005 | AA206: 5542 | AB206: 5578 | AC206: 5095 | AD206: 4812 | AE206: 11459 | AF206: 20358 | AG206: 16887 | AH206: 11745 | AI206: 8555 | AJ206: 7613 | AK206: 6609 | AL206: 5120 | AM206: 4029 | AN206: 3226 | AO206: 2906 | AP206: 2283 | AQ206: 1542 | AR206: 1549 | AX206: 0.01941747573 | AY206: 0.03333333333 | AZ206: 0.01382488479 | BA206: 0.02272727273 | BB206: 0.02222222222 | BC206: 0.03043478261 | BD206: 0.01687763713 | BE206: 0.01659751037 | BF206: 0.02857142857 | BI206: 0.03278688525 | BJ206: 0.02380952381 | BK206: 0.02713178295 | BL206: 0.02641509434 | BM206: 0.01838235294 | BN206: 0.02166064982 | BO206: 0.01766784452 | BP206: 0.02083333333 | BQ206: 0.01700680272
B207: 03Y | C207: NHS Hardwick CCG | D207: Derbyshire | E207: 104606 | F207: 21508 | G207: 22674 | H207: 44182 | I207: 2730 | J207: 2994 | K207: 2884 | L207: 2664 | M207: 2984 | N207: 3374 | O207: 3218 | P207: 3165 | Q207: 2881 | R207: 3776 | S207: 4181 | T207: 3835 | U207: 3222 | V207: 3003 | W207: 3050 | X207: 2012 | Y207: 1227 | Z207: 978 | AA207: 2632 | AB207: 2764 | AC207: 2791 | AD207: 2677 | AE207: 2788 | AF207: 3267 | AG207: 3218 | AH207: 2999 | AI207: 2804 | AJ207: 3814 | AK207: 4062 | AL207: 3599 | AM207: 3276 | AN207: 3060 | AO207: 3133 | AP207: 2200 | AQ207: 1652 | AR207: 1692 | AX207: 0.01785714286 | AY207: 0.01754385965 | AZ207: 0.01293103448 | BA207: 0.008510638298 | BB207: 0.0253164557 | BC207: 0.004115226337 | BD207: 0.004098360656 | BE207: 0.008163265306 | BF207: -0.004048582996 | BI207: 0.01673640167 | BJ207: 0.01646090535 | BK207: 0.02024291498 | BL207: 0.007936507937 | BM207: 0.0157480315 | BN207: 0.01550387597 | BO207: 0.007633587786 | BP207: 0 | BQ207: 0.007575757576
B208: 08D | C208: NHS Haringey CCG | D208: North Central London | E208: 320808 | F208: 40785 | G208: 43179 | H208: 83964 | I208: 9395 | J208: 9227 | K208: 8872 | L208: 8033 | M208: 8862 | N208: 14493 | O208: 17089 | P208: 16549 | Q208: 13809 | R208: 12412 | S208: 11284 | T208: 9194 | U208: 6368 | V208: 4692 | W208: 3566 | X208: 2533 | Y208: 1845 | Z208: 1303 | AA208: 9075 | AB208: 8934 | AC208: 8656 | AD208: 7978 | AE208: 10517 | AF208: 16772 | AG208: 17442 | AH208: 15078 | AI208: 12335 | AJ208: 11316 | AK208: 10636 | AL208: 8789 | AM208: 6519 | AN208: 5294 | AO208: 4249 | AP208: 3075 | AQ208: 2412 | AR208: 2205 | AX208: 0.0325732899 | AY208: 0.03154574132 | AZ208: 0.02752293578 | BA208: 0.03273809524 | BB208: 0.0288184438 | BC208: 0.02521008403 | BD208: 0.02459016393 | BE208: 0.024 | BF208: 0.0234375 | BI208: 0.02808988764 | BJ208: 0.02459016393 | BK208: 0.024 | BL208: 0.02083333333 | BM208: 0.02295918367 | BN208: 0.02244389027 | BO208: 0.01707317073 | BP208: 0.02158273381 | BQ208: 0.01408450704
B209: 03E | C209: NHS Harrogate and Rural District CCG | D209: West Yorkshire and Harrogate | E209: 163853 | F209: 34724 | G209: 37871 | H209: 72595 | I209: 3762 | J209: 4500 | K209: 4703 | L209: 4429 | M209: 3801 | N209: 4290 | O209: 4485 | P209: 5007 | Q209: 5019 | R209: 6037 | S209: 6611 | T209: 6331 | U209: 5245 | V209: 4510 | W209: 4778 | X209: 3086 | Y209: 2294 | Z209: 1869 | AA209: 3655 | AB209: 4246 | AC209: 4525 | AD209: 4323 | AE209: 3672 | AF209: 4246 | AG209: 4646 | AH209: 4879 | AI209: 4959 | AJ209: 6074 | AK209: 6695 | AL209: 6096 | AM209: 5230 | AN209: 4938 | AO209: 5036 | AP209: 3605 | AQ209: 2957 | AR209: 3314 | AX209: 0.01818181818 | AY209: 0.0119047619 | AZ209: 0.02058823529 | BA209: 0.02017291066 | BB209: 0.01694915254 | BC209: 0.01388888889 | BD209: 0.01095890411 | BE209: 0.008130081301 | BF209: 0.01344086022 | BI209: 0.02144772118 | BJ209: 0.0157480315 | BK209: 0.01291989664 | BL209: 0.01785714286 | BM209: 0.01253132832 | BN209: 0.009900990099 | BO209: 0.01470588235 | BP209: 0.009661835749 | BQ209: 0.00956937799
B210: 08E | C210: NHS Harrow CCG | D210: North West London | E210: 269090 | F210: 39845 | G210: 43837 | H210: 83682 | I210: 8419 | J210: 8809 | K210: 8080 | L210: 7863 | M210: 7907 | N210: 10422 | O210: 12265 | P210: 12352 | Q210: 10476 | R210: 8980 | S210: 8343 | T210: 7564 | U210: 6402 | V210: 5228 | W210: 4440 | X210: 3229 | Y210: 2573 | Z210: 2066 | AA210: 8069 | AB210: 8383 | AC210: 7470 | AD210: 6581 | AE210: 8131 | AF210: 10787 | AG210: 11888 | AH210: 11220 | AI210: 9130 | AJ210: 8176 | AK210: 8319 | AL210: 7563 | AM210: 6616 | AN210: 5772 | AO210: 5130 | AP210: 3936 | AQ210: 3138 | AR210: 3363 | AX210: 0.0182767624 | AY210: 0.01538461538 | AZ210: 0.01262626263 | BA210: 0.01496259352 | BB210: 0.0171990172 | BC210: 0.01207729469 | BD210: 0.01909307876 | BE210: 0.01405152225 | BF210: 0.01154734411 | BI210: 0.01627906977 | BJ210: 0.006864988558 | BK210: 0.01363636364 | BL210: 0.01793721973 | BM210: 0.008810572687 | BN210: 0.008733624454 | BO210: 0.01082251082 | BP210: 0.01284796574 | BQ210: 0.01057082452
B211: 00K | C211: NHS Hartlepool and Stockton-on-Tees CCG | D211: Durham, Darlington and Tees, Hambleton, Richmondshire and Whitby | E211: 298049 | F211: 55054 | G211: 59560 | H211: 114614 | I211: 8482 | J211: 9736 | K211: 9102 | L211: 8351 | M211: 9096 | N211: 9894 | O211: 10032 | P211: 9582 | Q211: 8332 | R211: 10220 | S211: 10865 | T211: 10404 | U211: 8970 | V211: 7931 | W211: 6964 | X211: 4356 | Y211: 3148 | Z211: 2416 | AA211: 7900 | AB211: 9185 | AC211: 8896 | AD211: 8019 | AE211: 8842 | AF211: 9734 | AG211: 10141 | AH211: 9476 | AI211: 8477 | AJ211: 9938 | AK211: 10829 | AL211: 10658 | AM211: 9085 | AN211: 8106 | AO211: 7376 | AP211: 5164 | AQ211: 4271 | AR211: 4071 | AX211: 0.01550387597 | AY211: 0.01526717557 | AZ211: 0.009398496241 | BA211: 0.01303538175 | BB211: 0.009191176471 | BC211: 0.01275045537 | BD211: 0.005395683453 | BE211: 0.005366726297 | BF211: 0.001779359431 | BI211: 0.01386481802 | BJ211: 0.01196581197 | BK211: 0.01013513514 | BL211: 0.01170568562 | BM211: 0.00826446281 | BN211: 0.01147540984 | BO211: 0.004862236629 | BP211: 0.001612903226 | BQ211: 0.006441223833
B212: 09P | C212: NHS Hastings and Rother CCG | D212: Sussex and East Surrey | E212: 189274 | F212: 41563 | G212: 46405 | H212: 87968 | I212: 4550 | J212: 5195 | K212: 5162 | L212: 5037 | M212: 4861 | N212: 5067 | O212: 5160 | P212: 5083 | Q212: 4894 | R212: 6157 | S212: 7126 | T212: 6804 | U212: 5968 | V212: 6043 | W212: 6418 | X212: 3941 | Y212: 2870 | Z212: 2393 | AA212: 4211 | AB212: 4930 | AC212: 4829 | AD212: 4784 | AE212: 4561 | AF212: 5192 | AG212: 5197 | AH212: 5124 | AI212: 4996 | AJ212: 6316 | AK212: 7074 | AL212: 6736 | AM212: 6456 | AN212: 6467 | AO212: 6872 | AP212: 4716 | AQ212: 3677 | AR212: 4407 | AX212: 0.0174563591 | AY212: 0.02205882353 | AZ212: 0.02398081535 | BA212: 0.01405152225 | BB212: 0.01847575058 | BC212: 0.01133786848 | BD212: 0.01793721973 | BE212: 0.008810572687 | BF212: 0.01528384279 | BI212: 0.01515151515 | BJ212: 0.0170575693 | BK212: 0.01467505241 | BL212: 0.01446280992 | BM212: 0.01629327902 | BN212: 0.0120240481 | BO212: 0.009900990099 | BP212: 0.01568627451 | BQ212: 0.007722007722
B213: 08F | C213: NHS Havering CCG | D213: North East London | E213: 279216 | F213: 48057 | G213: 54168 | H213: 102225 | I213: 8921 | J213: 8892 | K213: 8109 | L213: 7700 | M213: 7792 | N213: 9211 | O213: 9641 | P213: 9861 | Q213: 8661 | R213: 9113 | S213: 9752 | T213: 9082 | U213: 7476 | V213: 6212 | W213: 5954 | X213: 3853 | Y213: 3067 | Z213: 2661 | AA213: 8552 | AB213: 8564 | AC213: 7989 | AD213: 7311 | AE213: 7955 | AF213: 9953 | AG213: 10785 | AH213: 10167 | AI213: 8735 | AJ213: 9079 | AK213: 9860 | AL213: 9034 | AM213: 7440 | AN213: 6740 | AO213: 6829 | AP213: 5038 | AQ213: 4193 | AR213: 5034 | AX213: 0.009367681499 | AY213: 0.02088167053 | AZ213: 0.004545454545 | BA213: 0.009049773756 | BB213: 0.01121076233 | BC213: 0.0133037694 | BD213: 0.00875273523 | BE213: 0.01084598698 | BF213: 0.008583690987 | BI213: 0.01192842942 | BJ213: 0.009823182711 | BK213: 0.007782101167 | BL213: 0.01351351351 | BM213: 0.009523809524 | BN213: 0.007547169811 | BO213: 0.007490636704 | BP213: 0.007434944238 | BQ213: 0.007380073801
B214: 05F | C214: NHS Herefordshire CCG | D214: Herefordshire and Worcestershire | E214: 188010 | F214: 41757 | G214: 45165 | H214: 86922 | I214: 4612 | J214: 5191 | K214: 5196 | L214: 4867 | M214: 4570 | N214: 5178 | O214: 5243 | P214: 5317 | Q214: 4944 | R214: 6195 | S214: 7000 | T214: 6948 | U214: 6235 | V214: 6184 | W214: 6056 | X214: 4082 | Y214: 2864 | Z214: 2388 | AA214: 4176 | AB214: 4910 | AC214: 4693 | AD214: 4634 | AE214: 4408 | AF214: 5302 | AG214: 5257 | AH214: 5206 | AI214: 4813 | AJ214: 6376 | AK214: 7178 | AL214: 6770 | AM214: 6601 | AN214: 6391 | AO214: 6347 | AP214: 4458 | AQ214: 3520 | AR214: 3900 | AX214: 0.01724137931 | AY214: 0.01452784504 | AZ214: 0.01670644391 | BA214: 0.009389671362 | BB214: 0.01860465116 | BC214: 0.004566210046 | BD214: 0.01363636364 | BE214: 0.004484304933 | BF214: 0.006696428571 | BI214: 0.01118568233 | BJ214: 0.01769911504 | BK214: 0.008695652174 | BL214: 0.01293103448 | BM214: 0.008510638298 | BN214: 0.01476793249 | BO214: 0.0103950104 | BP214: 0.004115226337 | BQ214: 0.006147540984
B215: 06N | C215: NHS Herts Valleys CCG | D215: Hertfordshire and West Essex | E215: 649966 | F215: 110095 | G215: 116869 | H215: 226964 | I215: 20037 | J215: 21940 | K215: 20859 | L215: 18125 | M215: 15811 | N215: 19755 | O215: 21722 | P215: 24643 | Q215: 24979 | R215: 25077 | S215: 24710 | T215: 21421 | U215: 16636 | V215: 13837 | W215: 12866 | X215: 8338 | Y215: 6468 | Z215: 5819 | AA215: 19031 | AB215: 21098 | AC215: 19909 | AD215: 17431 | AE215: 16238 | AF215: 20695 | AG215: 23123 | AH215: 25363 | AI215: 23492 | AJ215: 23674 | AK215: 23268 | AL215: 20234 | AM215: 16360 | AN215: 14451 | AO215: 14124 | AP215: 9955 | AQ215: 8318 | AR215: 10159 | AX215: 0.01743589744 | AY215: 0.01512096774 | AZ215: 0.01588877855 | BA215: 0.0146627566 | BB215: 0.01734104046 | BC215: 0.01420454545 | BD215: 0.01400560224 | BE215: 0.01104972376 | BF215: 0.01366120219 | BI215: 0.01651376147 | BJ215: 0.01534296029 | BK215: 0.01422222222 | BL215: 0.01402278703 | BM215: 0.01642178047 | BN215: 0.01275510204 | BO215: 0.01259445844 | BP215: 0.01575456053 | BQ215: 0.01142857143
B216: 01D | C216: NHS Heywood, Middleton and Rochdale CCG | D216: Greater Manchester Health and Social Care Partnership | E216: 234673 | F216: 39408 | G216: 40934 | H216: 80342 | I216: 7702 | J216: 8263 | K216: 7914 | L216: 7063 | M216: 6904 | N216: 8071 | O216: 8503 | P216: 8362 | Q216: 7563 | R216: 8385 | S216: 8556 | T216: 7480 | U216: 6317 | V216: 5662 | W216: 4808 | X216: 3115 | Y216: 2001 | Z216: 1469 | AA216: 7213 | AB216: 7919 | AC216: 7403 | AD216: 6537 | AE216: 6855 | AF216: 8124 | AG216: 8631 | AH216: 8260 | AI216: 6949 | AJ216: 7710 | AK216: 7707 | AL216: 7153 | AM216: 6367 | AN216: 5619 | AO216: 5107 | AP216: 3614 | AQ216: 2616 | AR216: 2751 | AX216: 0.01694915254 | AY216: 0.01666666667 | AZ216: 0.01092896175 | BA216: 0.01081081081 | BB216: 0.01336898396 | BC216: 0.01583113456 | BD216: 0.007792207792 | BE216: 0.005154639175 | BF216: 0.005128205128 | BI216: 0.01526717557 | BJ216: 0.01503759398 | BK216: 0.00987654321 | BL216: 0.0097799511 | BM216: 0.01694915254 | BN216: 0.009523809524 | BO216: 0.01179245283 | BP216: 0.002331002331 | BQ216: 0.004651162791
B217: 99K | C217: NHS High Weald Lewes Havens CCG | D217: Sussex and East Surrey | E217: 171049 | F217: 36960 | G217: 40706 | H217: 77666 | I217: 4009 | J217: 4982 | K217: 5263 | L217: 4851 | M217: 4161 | N217: 4377 | O217: 4143 | P217: 4545 | Q217: 4584 | R217: 6080 | S217: 6878 | T217: 6425 | U217: 5514 | V217: 5175 | W217: 5155 | X217: 3471 | Y217: 2342 | Z217: 2000 | AA217: 3796 | AB217: 4559 | AC217: 4859 | AD217: 4689 | AE217: 3915 | AF217: 4282 | AG217: 4255 | AH217: 4636 | AI217: 4998 | AJ217: 6399 | AK217: 6965 | AL217: 6432 | AM217: 5717 | AN217: 5490 | AO217: 5829 | AP217: 3852 | AQ217: 2977 | AR217: 3444 | AX217: 0.02479338843 | AY217: 0.02150537634 | AZ217: 0.01578947368 | BA217: 0.01813471503 | BB217: 0.0203562341 | BC217: 0.01496259352 | BD217: 0.01228501229 | BE217: 0.007281553398 | BF217: 0.009638554217 | BI217: 0.02195121951 | BJ217: 0.01909307876 | BK217: 0.01405152225 | BL217: 0.0207852194 | BM217: 0.01131221719 | BN217: 0.01342281879 | BO217: 0.01766004415 | BP217: 0.01084598698 | BQ217: 0.01287553648
B218: 08G | C218: NHS Hillingdon CCG | D218: North West London | E218: 314555 | F218: 46856 | G218: 47853 | H218: 94709 | I218: 10393 | J218: 10855 | K218: 9704 | L218: 9232 | M218: 10817 | N218: 11936 | O218: 12863 | P218: 13957 | Q218: 12130 | R218: 11330 | S218: 11022 | T218: 9632 | U218: 7362 | V218: 5701 | W218: 4944 | X218: 3307 | Y218: 2585 | Z218: 2303 | AA218: 9876 | AB218: 10312 | AC218: 9265 | AD218: 8443 | AE218: 10367 | AF218: 11726 | AG218: 13234 | AH218: 12893 | AI218: 10694 | AJ218: 9819 | AK218: 9746 | AL218: 8664 | AM218: 6902 | AN218: 5712 | AO218: 5490 | AP218: 4074 | AQ218: 3532 | AR218: 3733 | AX218: 0.02142857143 | AY218: 0.02331002331 | AZ218: 0.02050113895 | BA218: 0.01785714286 | BB218: 0.02192982456 | BC218: 0.02145922747 | BD218: 0.01890756303 | BE218: 0.01855670103 | BF218: 0.008097165992 | BI218: 0.0174291939 | BJ218: 0.02355460385 | BK218: 0.01464435146 | BL218: 0.0206185567 | BM218: 0.01616161616 | BN218: 0.01789264414 | BO218: 0.013671875 | BP218: 0.01348747592 | BQ218: 0.01520912548
B219: 09X | C219: NHS Horsham and Mid Sussex CCG | D219: Sussex and East Surrey | E219: 242290 | F219: 46738 | G219: 51131 | H219: 97869 | I219: 6612 | J219: 7487 | K219: 7389 | L219: 7154 | M219: 5764 | N219: 6313 | O219: 7000 | P219: 7810 | Q219: 7999 | R219: 8979 | S219: 9572 | T219: 8467 | U219: 6908 | V219: 6078 | W219: 6076 | X219: 3983 | Y219: 2891 | Z219: 2763 | AA219: 6288 | AB219: 7214 | AC219: 7140 | AD219: 6707 | AE219: 5474 | AF219: 6492 | AG219: 7261 | AH219: 8146 | AI219: 8104 | AJ219: 9088 | AK219: 9329 | AL219: 8247 | AM219: 6954 | AN219: 6480 | AO219: 6818 | AP219: 4697 | AQ219: 3807 | AR219: 4799 | AX219: 0.02045454545 | AY219: 0.02449888641 | AZ219: 0.0152173913 | BA219: 0.01713062099 | BB219: 0.02105263158 | BC219: 0.01855670103 | BD219: 0.01214574899 | BE219: 0.016 | BF219: 0.007874015748 | BI219: 0.02244897959 | BJ219: 0.01596806387 | BK219: 0.01964636542 | BL219: 0.01348747592 | BM219: 0.01711026616 | BN219: 0.01495327103 | BO219: 0.01289134438 | BP219: 0.01636363636 | BQ219: 0.01252236136
B220: 07Y | C220: NHS Hounslow CCG | D220: North West London | E220: 320788 | F220: 42393 | G220: 43022 | H220: 85415 | I220: 10515 | J220: 11006 | K220: 9690 | L220: 8109 | M220: 8465 | N220: 12793 | O220: 17709 | P220: 18105 | Q220: 14625 | R220: 12248 | S220: 10744 | T220: 8869 | U220: 6671 | V220: 5410 | W220: 4276 | X220: 2875 | Y220: 1991 | Z220: 1557 | AA220: 9988 | AB220: 10283 | AC220: 9133 | AD220: 7586 | AE220: 8791 | AF220: 13406 | AG220: 15776 | AH220: 15089 | AI220: 11824 | AJ220: 10232 | AK220: 9439 | AL220: 8171 | AM220: 6717 | AN220: 5613 | AO220: 4700 | AP220: 3272 | AQ220: 2563 | AR220: 2547 | AX220: 0.02542372881 | AY220: 0.02203856749 | AZ220: 0.01886792453 | BA220: 0.02645502646 | BB220: 0.0206185567 | BC220: 0.02525252525 | BD220: 0.02216748768 | BE220: 0.0265060241 | BF220: 0.01877934272 | BI220: 0.01837270341 | BJ220: 0.02319587629 | BK220: 0.0201511335 | BL220: 0.01975308642 | BM220: 0.01694915254 | BN220: 0.01904761905 | BO220: 0.01401869159 | BP220: 0.01843317972 | BQ220: 0.02262443439
B221: 03F | C221: NHS Hull CCG | D221: Coast, Humber and Vale | E221: 299868 | F221: 50000 | G221: 51403 | H221: 101403 | I221: 9258 | J221: 9941 | K221: 8865 | L221: 8053 | M221: 11106 | N221: 11826 | O221: 11821 | P221: 10747 | Q221: 9898 | R221: 10643 | S221: 10692 | T221: 9916 | U221: 8087 | V221: 6847 | W221: 6027 | X221: 3668 | Y221: 2787 | Z221: 1976 | AA221: 8773 | AB221: 9435 | AC221: 8372 | AD221: 7480 | AE221: 11411 | AF221: 11766 | AG221: 11520 | AH221: 9745 | AI221: 8381 | AJ221: 9424 | AK221: 9730 | AL221: 9299 | AM221: 7741 | AN221: 6811 | AO221: 6189 | AP221: 4470 | AQ221: 3551 | AR221: 3612 | AX221: 0.01736972705 | AY221: 0.00487804878 | AZ221: 0.004854368932 | BA221: 0.009661835749 | BB221: 0.00956937799 | BC221: 0.007109004739 | BD221: 0.009411764706 | BE221: 0.002331002331 | BF221: 0.006976744186 | BI221: 0.004587155963 | BJ221: 0.009132420091 | BK221: 0.006787330317 | BL221: 0.004494382022 | BM221: 0.008948545861 | BN221: 0.0022172949 | BO221: 0.006637168142 | BP221: 0.002197802198 | BQ221: 0.002192982456
B222: 06L | C222: NHS Ipswich and East Suffolk CCG | D222: Suffolk and North East Essex | E222: 409392 | F222: 82820 | G222: 88815 | H222: 171635 | I222: 10682 | J222: 11782 | K222: 12093 | L222: 11483 | M222: 10413 | N222: 11910 | O222: 12765 | P222: 13306 | Q222: 12361 | R222: 14202 | S222: 14817 | T222: 14013 | U222: 12320 | V222: 11825 | W222: 11822 | X222: 7659 | Y222: 5635 | Z222: 4729 | AA222: 10083 | AB222: 11518 | AC222: 11558 | AD222: 10663 | AE222: 10220 | AF222: 12193 | AG222: 12415 | AH222: 12443 | AI222: 11692 | AJ222: 13975 | AK222: 14824 | AL222: 13759 | AM222: 12691 | AN222: 12263 | AO222: 12312 | AP222: 8467 | AQ222: 6729 | AR222: 7770 | AX222: 0.01833740831 | AY222: 0.02040816327 | AZ222: 0.01764705882 | BA222: 0.01734104046 | BB222: 0.01704545455 | BC222: 0.01452513966 | BD222: 0.0154185022 | BE222: 0.009761388286 | BF222: 0.01181525242 | BI222: 0.01553829079 | BJ222: 0.01857923497 | BK222: 0.01394849785 | BL222: 0.01587301587 | BM222: 0.01875 | BN222: 0.01226993865 | BO222: 0.01313131313 | BP222: 0.01196410768 | BQ222: 0.009852216749
... 440 more rows

Sheet References
A1: =+Intro!A1 -> Vertebral Fracture Benefits Calculator
A2: References
B5: Number | G5: Reference detail
B7: 1 | C7: Population
C8: CCG, STP, health board and other population data is shown on the sheet Data including information about data sources.
C9: England: | D9: STP and CCG populations: Data/rows 90 - 335
C10: Scotland: | D10: Health board populations: Data/rows 339 - 360
C11: N Ireland: | D11: Health and social care board populations: Data rows 364 - 376
C12: Wales: | D12: Health board populations: Data/rows 380 - 416
B15: 2 | C15: Population growth
C16: Population growth projections are shown on the sheet Data including information about data sources.
C17: England: | D17: STP and CCG populations: Data/rows 90 - 335/columns AU - BQ
C18: Scotland: | D18: No data available
C19: N Ireland: | D19: No data available
C20: Wales: | D20: Health board populations: Data/rows 380 - 416/columns AU - BQ
B23: 3 | C23: Incidence in year
C24: Incidence is calculated for age bands selected and applied to the input population. Parameters for 'Other site' in Calculator is calculated from 'forearm' and 'other' in source paper below.
C25: Source: | D25: Svedbom et al, Epidemiology and Economic Burden of Osteoporosis in UK, Archives of Osteoporosis, 2013 8:137, P212
C26: For data see sheet Data/rows 56 - 60
B29: 4 | C29: Prevalence
C30: Incidence is calculated for age bands selected and applied to the input population.
C31: Source: | D31: Waterloo et al, Prevalence of vertebral fractures in women and men in the population-based Tromsø Study, BMC Musculo-skeletal Disorders 2013, 13:3
D32: Table 2, P4 of 9
C34: Source data
E35: Prevalence %
D36: Age group | E36: Men | F36: Women
D37: < 60 | E37: 7.6 | F37: 3.4
D38: 60 - 69 | E38: 11.9 | F38: 11.1
D39: 70+ | E39: 20.3 | F39: 19.2
C41: Values used in calculation - per 100,000
E42: 50 - 54 | F42: 55 - 59 | G42: 60 - 64 | H42: 65 - 69 | I42: 70 - 74 | J42: 75 - 79 | K42: 80 - 84 | L42: 85 +
D43: Male | E43: =100000*0.076 -> 7600 | F43: =100000*0.076 -> 7600 | G43: =100000*0.119 -> 11900 | H43: =100000*0.119 -> 11900 | I43: =100000*0.203 -> 20300 | J43: =100000*0.203 -> 20300 | K43: =100000*0.203 -> 20300 | L43: =100000*0.203 -> 20300
D44: Female | E44: =100000*0.034 -> 3400 | F44: =100000*0.034 -> 3400 | G44: =100000*0.111 -> 11100 | H44: =100000*0.111 -> 11100 | I44: =100000*0.192 -> 19200 | J44: =100000*0.192 -> 19200 | K44: =100000*0.192 -> 19200 | L44: =100000*0.192 -> 19200
B48: 5 | C48: Treatment options
C49: Data shown is the average percentage of all treatments prescribed by general practitioners for the class 6 Endocrine System, section 6.6 Drugs
C50: affecting bone metabolism, paragraph 6.6.2 Bisphosphonates and other drugs
C51: Source: | E51: https://openprescribing.net
C52: Downloaded | E52: 2020-11-11
C53: Date range : | E53: 2019
C54: Population : | E54: GP practices in England
C55: Data:
G56: Items dispensed
D57: Drug name | G57: Number | H57: %
D58: Alendronic acid (effervescent solution) | G58: No data | H58: No data
D59: Alendronic acid (oral tablet) | G59: 5912780 | H59: 0.872566209
D60: Alendronic acid and calciferol | G60: 5298 | H60: 0.0007817993337
D61: Denosumab | G61: 65942 | H61: 0.009730730779
D62: Ibandronic acid (intravenous) | G62: No data | H62: No data
D63: Ibandronic acid (oral) | G63: 162506 | H63: 0.02398019678
D64: Risedronate | G64: 628488 | H64: 0.09274282742
D65: Romosozumab | G65: No data | H65: No data
D66: Strontium ranelate | G66: 1243 | H66: 0.0001834232865
D67: Teriparatide | G67: No data | H67: No data
D68: Zoledronic acid | G68: 54 | H68: 7.96850963e-06
D69: Grand Total | H69: =SUM(H58:H68) -> 0.9999931551
C70: Note that diagnosis is not recorded in the data source.
B73: 6 | C73: Compliance rates
C74: Sources: | D74: Li L et al, Persistence with osteoporosis medications among postmenopausal women in the UK General Practice Research Database, Menopause Vol19 No.1, 2011
D75: Persistence at 12 months. Data is Jan 1995 to Mar 2008, women aged 50 and over
D77: Borek D M et al, Long-term persistence in patients with osteoporosis receiving denosumab in routine practice: 36-month non-interventional, observational study.
D78: Osteoporosis International (2019) 30:1455–1464
D79: Persistence at 12 months. Jan 2011 to November 2018, postmenopausal females or males who were deemed to be at high risk for fracture
D81: Drug name | G81: Type | I81: Compliance | J81: Source
D82: Alendronic acid (effervescent solution) | G82: Oral bisphosphonate | I82: 0.413 | J82: Li L et al
D83: Alendronic acid (oral tablet) | G83: Oral bisphosphonate | I83: 0.413 | J83: Li L et al
D84: Alendronic acid and calciferol | G84: Oral bisphosphonate | I84: 0.413 | J84: Li L et al
D85: Denosumab | G85: Subcutaneous injection | I85: 0.769 | J85: Borek D M et al
D86: Ibandronic acid (intravenous) | G86: Intravenous injection | I86: 1 | J86: Assumed rate for patients receiving intravenous infusion
D87: Ibandronic acid (oral) | G87: Oral bisphosphonate | I87: 0.465 | J87: Li L et al
D88: Risedronate | G88: Oral bisphosphonate | I88: 0.264 | J88: Li L et al
D89: Romosozumab | G89: Subcutaneous injection | I89: 1 | J89: Assumed rate for patients managed by a FLS
D90: Strontium ranelate | G90: Oral suspension | I90: No data
D91: Teriparatide | G91: Subcutaneous injection | I91: 1 | J91: Assumed rate for patients managed by a FLS
D92: Zoledronic acid | G92: Intravenous infusion | I92: 1 | J92: Assumed rate for patients receiving intravenous infusion
B96: 7 | C96: Reduction in fracture risk as a result of effective treatment
C97: Source: | D97: See table for fracture risk reduction rate by Drug name
D99: Drug name | G99: Hip fracture (inpatient) | H99: Other fracture site (inpatient) | I99: Other fracture site (outpatient) | J99: Clinical vertebral | M99: Source
D100: Alendronic acid (effervescent solution) | G100: 0.61 | H100: 0.84 | I100: 0.84 | J100: 0.55 | K100: SIGN 142 Management of osteoporosis and the prevention of fragility fractures, 2020 | P100: 6.4.1, P56 - 57
D101: Alendronic acid (oral tablet) | G101: 0.61 | H101: 0.84 | I101: 0.84 | J101: 0.55 | K101: SIGN 142 Management of osteoporosis and the prevention of fragility fractures, 2020 | P101: 6.4.1, P56 - 57
D102: Alendronic acid and calciferol | G102: 0.61 | H102: 0.84 | I102: 0.84 | J102: 0.55 | K102: SIGN 142 Management of osteoporosis and the prevention of fragility fractures, 2020 | P102: 6.4.1, P56 - 57
D103: Denosumab | G103: 0.6 | H103: 0.8 | I103: 0.8 | J103: 0.32 | K103: SIGN 142 Management of osteoporosis and the prevention of fragility fractures, 2020 | P103: 6.4.7, P66 - 68
D104: Ibandronic acid (intravenous) | G104: 1 | H104: 1.11 | I104: 1.11 | J104: 0.51 | K104: NICE Evidence Review: Osteoporosis: assessment of fracture risk and the prevention of osteoporotic fractures in individuals at high risk, 2008, P19
D105: Ibandronic acid (oral) | G105: 1 | H105: 1.11 | I105: 1.11 | J105: 0.51 | K105: NICE Evidence Review: Osteoporosis: assessment of fracture risk and the prevention of osteoporotic fractures in individuals at high risk, 2008, P19
D106: Risedronate | G106: 0.74 | H106: 0.8 | I106: 0.8 | J106: 0.61 | K106: SIGN 142 Management of osteoporosis and the prevention of fragility fractures, 2020 | P106: 6.4.2, P58 - 59
D107: Romosozumab | K107: No data
D108: Strontium ranelate | G108: 0.85 | H108: 0.86 | I108: 0.86 | J108: 0.62 | K108: SIGN 142 Management of osteoporosis and the prevention of fragility fractures, 2020 | P108: 6.4.6, P65 - 66
D109: Teriparatide | G109: 1 | H109: 0.47 | I109: 0.47 | J109: 0.35 | K109: SIGN 142 Management of osteoporosis and the prevention of fragility fractures, 2020 | P109: 6.4.8, P68 - 70
D110: Zoledronic acid | G110: 0.59 | H110: 0.75 | I110: 0.75 | J110: 0.3 | K110: SIGN 142 Management of osteoporosis and the prevention of fragility fractures, 2020 | P110: 6.4.3, P59 - 60
B114: 8 | C114: Risk of secondary fracture with no treatment
C115: Source: | D115: Fracture risk following an osteoporotic fracture, Osteoporosis International, 15: 175-179 , 2002 | J115: https://search.proquest.com/docview/218853972/A8217C14CBF04767PQ/2?accountid=48337
C116: Population: | D116: 500 men and women with prior spinal fracture aged 60-80, Sweden.
D118: Number | J118: Rate
E119: Hip fracture (inpatient) | F119: Other fracture site (inpatient) | G119: Other fracture site (outpatient) | H119: Clinical vertebral | K119: Hip fracture (inpatient) | L119: Other fracture site (inpatient) | M119: Other fracture site (outpatient) | N119: Clinical vertebral
D120: Year 1 | E120: 19 | F120: 6 | G120: 3 | H120: 7 | J120: Year 1 | K120: 0.038 | L120: 0.012 | M120: 0.006 | N120: 0.014
D121: Year 2 | E121: 11 | F121: 2 | G121: 5 | H121: 16 | J121: Year 2 | K121: 0.022 | L121: 0.004 | M121: 0.01 | N121: 0.032
D122: Year 3 | E122: 20 | F122: 3 | G122: 8 | H122: 18 | J122: Year 3 | K122: 0.04 | L122: 0.006 | M122: 0.016 | N122: 0.036
D123: Year 4 | E123: 10 | F123: 3 | G123: 4 | H123: 9 | J123: Year 4 | K123: 0.02 | L123: 0.006 | M123: 0.008 | N123: 0.018
D124: Year 5 | E124: 5 | F124: 1 | G124: 0 | H124: 4 | J124: Year 5 | K124: 0.01 | L124: 0.002 | M124: 0 | N124: 0.008
D125: 5 year | E125: =SUM(E120:E124) -> 65 | F125: =SUM(F120:F124) -> 15 | G125: 20 | H125: 54 | J125: 5 year | K125: 0.13 | L125: 0.03 | M125: 0.04 | N125: 0.108
B128: 9 | C128: Benefits
C129: The calculation of benefits is shown on a separate sheet and is available on request.
B132: 10 | C132: Market Forces Factor (England only)
C133: Market forces factor is used to adjust tariff costs for activity taking place in NHS hospitals.
C134: Source: | D134: 2019/20 National Tariff Payment System: national prices and prices for emergency care services/MFF Values
C135: Year: | D135: 2021/22 Projected payment index values
C136: For values and additional detail see Data/rows 419 - 654

Sheet Benefits detail
A1: =+Intro!A1 -> Vertebral Fracture Benefits Calculator
A2: Benefits detail
B4: Used in benefits calculator
C6: Estimated costs | D6: Hip fracture (inpatient) | E6: Other fracture site (inpatient) | F6: Other fracture site (outpatient) | G6: Clinical vertebral
C7: Acute care | D7: =+D42 -> 7842.594896 | E7: =+F42 -> 1767.975776 | F7: =+H42 -> 366.073691 | G7: =+J42 -> 1923.41
C8: Community and primary care | D8: =+D53 -> 447.69 | E8: =+F53 -> 57.255 | F8: =+H53 -> 57.255 | G8: =+J53 -> 58.605
C9: Social care | D9: =+D60 -> 8237.36 | E9: =+F60 -> 149.76 | F9: =+H60 -> 149.76 | G9: =+J60 -> 2907.84
C10: All | D10: =SUM(D7:D9) -> 16527.6449 | E10: =SUM(E7:E9) -> 1974.990776 | F10: =SUM(F7:F9) -> 573.088691 | G10: =SUM(G7:G9) -> 4889.855
B13: Component costs | D13: Hip fracture (inpatient) | F13: Other fracture site (inpatient) | H13: Other fracture site (outpatient) | J13: Clinical vertebral
E14: See reference | G14: See reference | I14: See reference | K14: See reference | L14: Assumptions
B15: Acute care
C17: A&E visits presentation of fracture
C18: Unit cost of event | D18: 212 | E18: B9 | F18: 212 | G18: B9 | H18: 212 | I18: B9 | J18: 212 | K18: B9 | L18: Assumes HRG is VB03Z
C19: Rate of event (patients with previous fracture) | D19: 1 | E19: Assumed | F19: 1 | G19: Assumed | H19: 1 | I19: Assumed | J19: 1 | K19: Assumed | L19: Assumes one A&E attendance for each fracture event
C20: Sub-total | D20: =+D18*D19 -> 212 | F20: =+F18*F19 -> 212 | H20: =+H18*H19 -> 212 | J20: =+J18*J19 -> 212
C22: Hospitalisation incl. excess bed days
C23: Unit cost of event | D23: 7487.058896 | E23: B1 | F23: =+K96 -> 4123.241427 | G23: Table A | H23: 0 | I23: NA | J23: 3846 | K23: B1 | L23: Weighted average cost compared to matched controls
C24: Rate of event (patients with previous fracture) | D24: 1 | E24: B8 | F24: 0.34 | G24: B8 | H24: 0 | I24: NA | J24: 0.399 | K24: B8
C25: Sub-total | D25: =+D23*D24 -> 7487.058896 | F25: =+F23*F24 -> 1401.902085 | H25: =+H23*H24 -> 0 | J25: =+J23*J24 -> 1534.554
C27: A&E visits post fracture
C28: Unit cost of event | D28: 92 | E28: B1 | F28: =+L96 -> 84.27819145 | G28: Table A | H28: =+L96 -> 84.27819145 | I28: Table A | J28: 84 | K28: B1 | L28: Weighted average cost compared to matched controls
C29: Rate of event (patients with previous fracture) | D29: 0.182 | E29: B8 | F29: 0.193 | G29: B8 | H29: 0.193 | I29: B8 | J29: 0.116 | K29: B8
C30: Sub-total | D30: =+D28*D29 -> 16.744 | F30: =+F28*F29 -> 16.26569095 | H30: =+H28*H29 -> 16.26569095 | J30: =+J28*J29 -> 9.744
C32: Outpatient follow up (fracture clinic)
C33: Unit cost of event | D33: 60 | E33: B7 | F33: 60 | G33: B7 | H33: 60 | I33: B7 | J33: 60 | K33: B7
C34: Rate of event (patients with previous fracture) | D34: 0.8848 | E34: 2 | F34: 0.95 | H34: 0.95 | J34: 0.95 | L34: Assumes 5% DNA rate, except hip fracture
C35: Sub-total | D35: =+D33*D34 -> 53.088 | F35: =+F33*F34 -> 57 | H35: =+H33*H34 -> 57 | J35: =+J33*J34 -> 57
C37: Outpatient referral costs
C38: Unit cost of event | D38: 222 | E38: B6 | F38: 222 | G38: B6 | H38: 222 | I38: B6 | J38: 222 | K38: B6 | L38: Assumes appointment is Endocrinology
C39: Rate of event (patients with previous fracture) | D39: 0.332 | E39: B8 | F39: 0.364 | G39: B8 | H39: 0.364 | I39: B8 | J39: 0.496 | K39: B8
C40: Sub-total | D40: =+D38*D39 -> 73.704 | F40: =+F38*F39 -> 80.808 | H40: =+H38*H39 -> 80.808 | J40: =+J38*J39 -> 110.112
C42: Total | D42: =+D20+D25+D30+D35+D40 -> 7842.594896 | F42: =+F20+F25+F30+F35+F40 -> 1767.975776 | H42: =+H20+H25+H30+H35+H40 -> 366.073691 | J42: =+J20+J25+J30+J35+J40 -> 1923.41
B44: Community and primary care
C45: GP visits | L45: Assumes one GP visit following discharge
C46: Unit cost of event | D46: 45 | E46: B1 | F46: 45 | G46: B1 | H46: 45 | I46: B1 | J46: 45 | K46: B1 | L46: or fracture clinic appointment
C47: Rate of event (patients with previous fracture) | D47: 0.882 | E47: B8 | F47: 0.939 | G47: B8 | H47: 0.939 | I47: B8 | J47: 0.969 | K47: B8
C48: Sub-total | D48: =+D46*D47 -> 39.69 | F48: =+F46*F47 -> 42.255 | H48: =+H46*H47 -> 42.255 | J48: =+J46*J47 -> 43.605
C49: Prescriptions | D49: 9 | E49: B3 | F49: 15 | G49: B3 | H49: 15 | I49: B3 | J49: 15 | K49: B3 | L49: Cost of medications to manage fracture symptoms only. Excludes any osteoporosis treatment
C51: Other community services | D51: 399 | E51: B4 | F51: No data available | H51: No data available | J51: No data available | L51: Estimated cost of post-acute rehabilitation
C53: Total | D53: =+D48+D49+D51 -> 447.69 | F53: =+F48+F49 -> 57.255 | H53: =+H48+H49 -> 57.255 | J53: =+J48+J49 -> 58.605
B55: Social care
C56: Home help | D56: =+D107 -> 1959.36 | E56: Table B | F56: =+F107 -> 149.76 | G56: Table B | H56: =+H107 -> 149.76 | I56: Table B | J56: =+J107 -> 2907.84 | K56: Table B | L56: Costs are for home help in first 12 months post discharge
C57: Care home costs | D57: 6278 | E57: B5 | F57: No data available | H57: No data available | J57: No data available | L57: Cost is proportion of lifetime cost for care home for 1/10 patients discharged to care home post fracture following admission from own home
C60: Total | D60: =SUM(D56:D59) -> 8237.36 | F60: =SUM(F56:F59) -> 149.76 | H60: 149.76 | J60: 2907.84
B63: Summary of costs
D64: =+D6 -> Hip fracture (inpatient) | F64: =+E6 -> Other fracture site (inpatient) | H64: =+F6 -> Other fracture site (outpatient) | J64: =+G6 -> Clinical vertebral
B65: Acute care | D65: =+D7 -> 7842.594896 | F65: =+E7 -> 1767.975776 | H65: =+F7 -> 366.073691 | J65: =+G7 -> 1923.41
B66: Community and primary care | D66: =+D8 -> 447.69 | F66: =+E8 -> 57.255 | H66: =+F8 -> 57.255 | J66: =+G8 -> 58.605
B67: Social care | D67: =+D9 -> 8237.36 | F67: =+E9 -> 149.76 | H67: =+F9 -> 149.76 | J67: =+G9 -> 2907.84
B68: All | D68: =+D10 -> 16527.6449 | F68: =+E10 -> 1974.990776 | H68: =+F10 -> 573.088691 | J68: =+G10 -> 4889.855
B74: Table A: Calculation of weighted cost for 'Other fracture site (inpatient)': Acute care
C77: Age band | D77: <55 (50 - 54 population) | E77: 55 - 59 | F77: 60 - 64 | G77: 65 - 69 | H77: 70 - 74 | I77: 75 - 79 | J77: 80 - 84 | K77: 85 - 89 (>85 population) | L77: Sum | M77: Reference
C78: % of all fractures - Proximal humerus | D78: 17 | E78: 17 | F78: 16 | G78: 14 | H78: 16 | I78: 15 | J78: 15 | K78: 13 | M78: B2
B79: Female | C79: % of all fractures - Wrist | D79: 56 | E79: 56 | F79: 55 | G79: 52 | H79: 46 | I79: 40 | J79: 34 | K79: 29 | M79: B2
C80: Population by age band - England | D80: =Data!AK84 -> 2034132 | E80: =+Data!AL84 -> 1858791 | F80: =+Data!AM84 -> 1575585 | G80: =+Data!AN84 -> 1465899 | H80: =+Data!AO84 -> 1438228 | I80: =+Data!AP84 -> 1015072 | J80: =+Data!AQ84 -> 794392 | K80: =+Data!AR84 -> 868303 | M80: See sheet 'Data'
C81: Weighted population - Proximal humerus | D81: =+D$80*(D78/100) -> 345802.44 | E81: =+E$80*(E78/100) -> 315994.47 | F81: 252093.6 | G81: 205225.86 | H81: 230116.48 | I81: 152260.8 | J81: 119158.8 | K81: 112879.39 | L81: =SUM(D81:K81) -> 1733531.84
C82: Weighted population - Wrist | D82: =+D$80*(D79/100) -> 1139113.92 | E82: 1040922.96 | F82: 866571.75 | G82: 762267.48 | H82: 661584.88 | I82: 406028.8 | J82: 270093.28 | K82: 251807.87 | L82: =SUM(D82:K82) -> 5398390.94
C84: Age band | D84: <55 (50 - 54 population) | E84: 55 - 59 | F84: 60 - 64 | G84: 65 - 69 | H84: 70 - 74 | I84: 75 - 79 | J84: 80 - 84 | K84: 85 - 89 (>85 population) | L84: Sum | M84: Reference
C85: % of all fractures - Proximal humerus | D85: 16 | E85: 16 | F85: 12 | G85: 12 | H85: 11 | I85: 13 | J85: 12 | K85: 10 | M85: B2
B86: Male | C86: % of all fractures - Wrist | D86: 25 | E86: 25 | F86: 33 | G86: 29 | H86: 30 | I86: 22 | J86: 17 | K86: 14 | M86: B2
C87: Population by age band - England | D87: =+Data!S84 -> 2124353 | E87: =+Data!T84 -> 1916408 | F87: =+Data!U84 -> 1580947 | G87: =+Data!V84 -> 1404716 | H87: =+Data!W84 -> 1333237 | I87: =+Data!X84 -> 880248 | J87: =+Data!Y84 -> 627232 | K87: =+Data!Z84 -> 503779 | M87: See sheet 'Data'
C88: Weighted population - Proximal humerus | D88: =+D$87*(D85/100) -> 339896.48 | E88: =+E$87*(E85/100) -> 306625.28 | F88: 189713.64 | G88: 168565.92 | H88: 146656.07 | I88: 114432.24 | J88: 75267.84 | K88: 50377.9 | L88: =SUM(D88:K88) -> 1391535.37
C89: Weighted population - Wrist | D89: =+D$87*(D86/100) -> 531088.25 | E89: 479102 | F89: 521712.51 | G89: 407367.64 | H89: 399971.1 | I89: 193654.56 | J89: 106629.44 | K89: 70529.06 | L89: =SUM(D89:K89) -> 2710054.56
H92: Unweighted cost of fracture | K92: Weighted cost of fracture
B93: All | D93: Female | E93: Male | F93: All | G93: Weighted contribution to cost | H93: Hospitalisation incl. excess bed days | I93: A&E visits | J93: Outpatient referral costs | K93: Hospitalisation incl. excess bed days | L93: A&E visits | M93: Outpatient referral costs
C94: Weighted population - Proximal humerus | D94: =+L81 -> 1733531.84 | E94: =+L88 -> 1391535.37 | F94: =SUM(D94:E94) -> 3125067.21 | G94: =+F94/(F$94+F$95) -> 0.2781914518 | H94: 5320 | I94: 85 | J94: 146 | K94: =+H94*$G94 -> 1479.978524 | L94: =+I94*$G94 -> 23.64627341 | M94: 40.61595197
C95: Weighted population - Wrist | D95: =+L82 -> 5398390.94 | E95: =+L89 -> 2710054.56 | F95: =SUM(D95:E95) -> 8108445.5 | G95: =+F95/(F$94+F$95) -> 0.7218085482 | H95: 3662 | I95: 84 | J95: 146 | K95: =+H95*$G95 -> 2643.262903 | L95: 60.63191805 | M95: 105.384048
C96: Combined cost | G96: =SUM(G94:G95) -> 1 | K96: =SUM(K94:K95) -> 4123.241427 | L96: =SUM(L94:L95) -> 84.27819145 | M96: 146
B100: Table B: Calculation of home help costs
D102: Hip fracture (inpatient) | E102: Reference | F102: Other fracture site (inpatient) | G102: Reference | H102: Other fracture site (outpatient) | I102: Reference | J102: Clinical vertebral | K102: Reference
C103: Hours per week | D103: 1.57 | E103: B1 | F103: 0.12 | G103: B1 | H103: 0.12 | I103: B1 | J103: 2.33 | K103: B1
C104: Weeks in first year post fracture | D104: 52 | F104: 52 | H104: 52 | J104: 52
C105: Sub-total - hours in first year post fracture | D105: =+D103*D104 -> 81.64 | F105: =+F103*F104 -> 6.24 | H105: =+H103*H104 -> 6.24 | J105: 121.16
C106: Cost per hour | D106: 24 | E106: B1 | F106: 24 | G106: B1 | H106: 24 | I106: B1 | J106: 24 | K106: B1
C107: Cost in first year post fracture | D107: =+D105*D106 -> 1959.36 | F107: =+F105*F106 -> 149.76 | H107: =+H105*H106 -> 149.76 | J107: =+J105*J106 -> 2907.84
B110: Notes
B111: B1 | C111: National Institute for health and Clinical Excellence/ScHARR, Bisphosphonates for preventing osteoporotic fragility fractures (including a partial update of NICE technology
C112: appraisal guidance 160 and 161): Assessment report , March 2015; Table 31, P328
B114: B2 | C114: National Institute for health and Clinical Excellence/ScHARR, Bisphosphonates for preventing osteoporotic fragility fractures (including a partial update of NICE technology
C115: appraisal guidance 160 and 161): Assessment report , March 2015; Table 12, P276
B117: B3 | C117: National Institute for health and Clinical Excellence/ScHARR, Bisphosphonates for preventing osteoporotic fragility fractures (including a partial update of NICE technology
C118: appraisal guidance 160 and 161): Assessment report , March 2015; P327 and Table 31, P328
B120: B4 | C120: Department of Health, Fracture prevention services: An economic evaluation, 2009
C121: Table 4, P9. NHS Community service savings divided by number of fractures prevented (18). Not uplifted.
B123: B5 | C123: Lifetime cost of residential and nursing home care weighted for individual fracture. Calculated from sources below.
C124: Calculations available on request, file name: NOS Benefits Calculator Source data 03 V1.0
C125: Johanssen A et al, Outcome following hip fracture: post-discharge residence and long term mortality, Age and Ageing, 28 June 2010
C126: Social care costs for proximal femoral fractures (PROFFS) patients admitted to JR in 2008 (draft)
B128: B6 | C128: 2017/18 and 2018/19 National Tariff: Currencies and prices - Annex A National tariff workbook (2a Outpatients 17.18); Endocrinology 1st Appointment
B130: B7 | C130: 2017/18 and 2018/19 National Tariff: Currencies and prices - Annex A National tariff workbook (2a Outpatients 17.18); Trauma & Orthopaedic Follow up
B132: B8 | C132: National Institute for health and Clinical Excellence/ScHARR, Osteo model 31 preped for consultation; sheet 'Cost of fractures'
B134: B9 | C134: 2017/18 and 2018/19 National Tariff: Currencies and prices - Annex A National tariff workbook (3a A&E 17.18); tariff VB03Z

Sheet Updates
A1: =+Intro!A1 -> Vertebral Fracture Benefits Calculator
A2: Updates and amendments - for information only
A5: Version | B5: Date | C5: Detail
